Workbook

Sheet CONDITIONS
D2: SHARP_METAL_CALCULATOR v1.1 | E2: =INDEX(LEN_CON[],1,MATCH($E$3,LEN_CON[#Headers],0)) -> Language
E3: EN
D6: =INDEX(LEN_CON[],2,MATCH($E$3,LEN_CON[#Headers],0)) -> SHARP METAL CALCULATOR
C7: =INDEX(LEN_CON[],3,MATCH($E$3,LEN_CON[#Headers],0)) -> GENERAL TERMS AND CONDITIONS OF THE LICENSE AGREEMENT FOR THE USE OF THE SPREADSHEET "SHARP_METAL_CALCULATOR"
B14: =INDEX(LEN_CON[],4,MATCH($E$3,LEN_CON[#Headers],0)) -> 1. SUBJECT
C16: =INDEX(LEN_CON[],5,MATCH($E$3,LEN_CON[#Headers],0)) -> With these General Terms and Conditions (or "Agreement"), ROTHO BLAAS SRL, with registered office at I-39040 Cortaccia (BZ), Via dell'Adige 2/1 (hereinafter "RB") grants the user the non-exclusive and revocable right to use the spreadsheet (hereinafter "XLS") free of charge under the following conditions and during the term of this Agreement. In any case, RB does not guarantee the legal and design conformity of the calculations, as RB intends to provide only an indicative calculation tool to be considered as a technical-commercial service within the sales activity. XLS allows the user to perform static calculations only for the products and materials indicated in each of its sections. This Agreement expressly prohibits to use XLS to manufacture products that are not indicated. This Agreement therefore governs the relationship between the User and RB with respect to the use of this spreadsheet. By downloading and using XLS, the user accepts this Agreement and the conditions set out herein.
B18: =INDEX(LEN_CON[],6,MATCH($E$3,LEN_CON[#Headers],0)) -> 2. TECHNICAL-STANDARDS REFERENCES
C20: =INDEX(LEN_CON[],7,MATCH($E$3,LEN_CON[#Headers],0)) -> RB carried out the checks according to the Limit State method in accordance with EN 1995-1-1 Eurocode 5 - Design of timber structures and EN 1999-1-1 Eurocode 9 - Design of aluminium structures. For the mechanical resistance values and the geometry of the connectors, reference was made to ETA-23/0824.
B22: =INDEX(LEN_CON[],8,MATCH($E$3,LEN_CON[#Headers],0)) -> 3. RB RIGHTS AND OBLIGATIONS
C24: =INDEX(LEN_CON[],9,MATCH($E$3,LEN_CON[#Headers],0)) -> RB: a) makes available XLS to the User free of charge, as it is; b) does not provide the user with any technical support for using XLS; c) does not guarantee that XLS complies with the regulations in force or with the calculations design made using it. In particular, as a result of changes to the relevant provisions, such as standards, approvals, etc., the spreadsheet may become invalid in part or in full. d) while reserving the right to update, revise and develop XLS, RB does not assume any obligation towards the user to verify, correct, complete or update the spreadsheet and/or make the updates available to the user.
B27: =INDEX(LEN_CON[],10,MATCH($E$3,LEN_CON[#Headers],0)) -> 4. USER RIGHTS AND OBLIGATIONS
C29: =INDEX(LEN_CON[],11,MATCH($E$3,LEN_CON[#Headers],0)) -> The User declares to use the spreadsheet as a professional excluding any use as a consumer, and to always comply with the following obligations and prohibitions: a) obligation and responsibility to verify that XLS meets the specific needs and that it is compatible with the hardware-software-systems; b) obligation to verify, for each use, the compliance of the calculations made through XLS to the regulations in force and to the project; c) obligation to verify the legal compliance of the calculations made through the Software; d) obligation to use the latest version of XLS made available by the RB contact person, checking at each use for any updates that have occurred; e) prohibition to use XLS for products not indicated in each calculation section; f) obligation to use updated antivirus software that complies with the industry standard in force; g) obligation not to assign the licence to use XLS to third parties and/or in any other way transfer, pledge or lease, rent or share with others or sublicense the rights to use the spreadsheet; h) prohibition to modify or vary XLS in any way, including through third parties. The user commits himself to ask the RB contact person for the last version of the XLS.
B31: =INDEX(LEN_CON[],12,MATCH($E$3,LEN_CON[#Headers],0)) -> 5. COPYRIGHTS
C33: =INDEX(LEN_CON[],13,MATCH($E$3,LEN_CON[#Headers],0)) -> The copyrights on the formulations referred to in the spreadsheet and all the intellectual and industrial property rights underlying them (such as, but not limited to: trademarks, patents, trade secrets, know-how, confidential information) are and remain the exclusive property of RB. This agreement does not transfer any of the above rights to the user.
B35: =INDEX(LEN_CON[],14,MATCH($E$3,LEN_CON[#Headers],0)) -> 6. DURATION, WITHDRAWAL AND TERMINATION
C37: =INDEX(LEN_CON[],15,MATCH($E$3,LEN_CON[#Headers],0)) -> These general conditions and, consequently, the licence to use the spreadsheet, are valid from the moment of downloading it until the termination of its use. The user may withdraw from this Agreement at any time by deleting the XLS and all copies from its systems. RB may withdraw from this Agreement and deactivate the service in the event of a breach of any of the provisions governing the license of use. In the event that RB notifies its termination, the user shall remove the spreadsheet and any copies thereof from its systems.
B39: =INDEX(LEN_CON[],16,MATCH($E$3,LEN_CON[#Headers],0)) -> 7. RESPONSIBILITY
C41: =INDEX(LEN_CON[],17,MATCH($E$3,LEN_CON[#Headers],0)) -> The user is solely responsible for the use of XLS, including, but not limited to, all calculations, printouts, export data made with it and/or for entry errors, protection of data files and maintenance and in general for any use of the spreadsheet. RB does not guarantee and in no case can be held responsible for damages, losses and costs or other consequences, for any reason (warranty for defects, warranty for malfunction, product or legal responsibility, etc.) deriving from: • use of XLS, calculations made, compliance with current legislation, with the design or other User needs; • hardware and software compatibility, viruses, malfunctions, defects, errors or gaps; • failure to update the spreadsheet and/or interruption of the availability of the spreadsheet and/or termination of the agreement for any reason; • infringement of intellectual property rights of third parties. The user confirms to have understood and accepted the disclaimers and limitations of liability and claim of this Agreement. The user also confirms that the spreadsheet is available for free, that the exclusions and limitations are fundamental elements of this Agreement and that RB does not make its spreadsheet available to the user if the exclusions or limitations are deleted or modified in favour of the user.
B43: =INDEX(LEN_CON[],18,MATCH($E$3,LEN_CON[#Headers],0)) -> 8. REFUND
C45: =INDEX(LEN_CON[],19,MATCH($E$3,LEN_CON[#Headers],0)) -> The user agrees to indemnify and hold harmless RB, its subsidiaries and its or its officers, directors, employees, successors and appointees (each individually, ""Beneficiary"", collectively, the ""Beneficiaries"") for the costs incurred in relation to claims made by third parties for damages or losses deriving from the use of the spreadsheet by the user (including, but not limited to, fees and management costs incurred by RB).
B47: =INDEX(LEN_CON[],20,MATCH($E$3,LEN_CON[#Headers],0)) -> 9. MISCELLANEOUS
C49: =INDEX(LEN_CON[],21,MATCH($E$3,LEN_CON[#Headers],0)) -> These general conditions constitute the entire agreement between RB and the user regarding the subject matter and replace all previous, oral or written agreements, as well as any agreements between RB and the user.
B52: =INDEX(LEN_CON[],22,MATCH($E$3,LEN_CON[#Headers],0)) -> 10. LANGUAGE
C54: =INDEX(LEN_CON[],23,MATCH($E$3,LEN_CON[#Headers],0)) -> In the event of differences between versions of these conditions in the various languages, the English text is binding and takes precedence with respect to the translations.
B57: =INDEX(LEN_CON[],24,MATCH($E$3,LEN_CON[#Headers],0)) -> 11. APPLICABLE LAW AND COURT OF JURISDICTION
C59: =INDEX(LEN_CON[],25,MATCH($E$3,LEN_CON[#Headers],0)) -> This agreement and any relationship between the parties is governed exclusively by the Italian law. Any dispute that may arise between the parties in relation to this agreement, that cannot be resolved amicably, shall be brought before the court of Bolzano.
B61: =INDEX(LEN_CON[],26,MATCH($E$3,LEN_CON[#Headers],0)) -> 12. PRIVACY
C63: =INDEX(LEN_CON[],27,MATCH($E$3,LEN_CON[#Headers],0)) -> Refer to the privacy policy available at the link:
C64: https://www.rothoblaas.com/privacy-policy
A66: =INDEX(LEN_CON[],28,MATCH($E$3,LEN_CON[#Headers],0)) -> ACCEPT

Sheet Len_DB (hidden)
C2: LENGUAGES
C4: IT | D4: EN | E4: DE | F4: FR | G4: ES
C6: CONDITIONS
B8: Column1 | C8: IT | D8: EN | E8: DE | F8: FR | G8: ES | H8: Column2
B9: 1 | C9: Lingua | D9: Language | E9: Sprache | F9: Langue | G9: Idioma
B10: 2 | C10: SHARP METAL CALCULATOR | D10: SHARP METAL CALCULATOR | E10: SHARP METAL CALCULATOR | F10: SHARP METAL CALCULATOR | G10: SHARP METAL CALCULATOR
B11: 3 | C11: CONDIZIONI GENERALI DEL CONTRATTO DI LICENZA PER L'USO DEL FOGLIO DI CALCOLO "SHARP_METAL_CALCULATOR" | D11: GENERAL TERMS AND CONDITIONS OF THE LICENSE AGREEMENT FOR THE USE OF THE SPREADSHEET "SHARP_METAL_CALCULATOR" | E11: ALLGEMEINE GESCHÄFTSBEDINGUNGEN DER LIZENZVEREINBARUNG FÜR DIE NUTZUNG DER TABELLENKALKULATION "SHARP_METAL_CALCULATOR" | F11: CONDITIONS GÉNÉRALES DU CONTRAT DE LICENCE POUR L'UTILISATION DE LA FEUILLE DE CALCUL "SHARP_METAL_CALCULATOR" | G11: CONDICIONES GENERALES DEL CONTRATO DE LICENCIA PARA EL USO DE LA HOJA DE CÁLCULO "SHARP_METAL_CALCULATOR"
B12: 4 | C12: 1. OGGETTO | D12: 1. SUBJECT | E12: 1. GEGENSTAND | F12: 1. OBJET | G12: 1. OBJETO
B13: 5 | C13: Con le presenti Condizioni Generali (o "Accordo"), ROTHO BLAAS SRL, con sede legale in I-39040 Cortaccia (BZ), Via dell'Adige 2/1 (di seguito "RB"), concede all'utente il diritto non esclusivo e revocabile di utilizzare gratuitamente il foglio di calcolo (di seguito "XLS") alle seguenti condizioni e per la durata del presente Accordo. In ogni caso, RB non garantisce la conformità legale e progettuale dei calcoli, poiché RB intende fornire esclusivamente uno strumento di calcolo indicativo da considerarsi un servizio tecnico-commerciale nell'ambito dell'attività di vendita. XLS consente all'utente di eseguire calcoli statici soltanto per i prodotti e i materiali indicati in ciascuna delle sue sezioni. Il presente Accordo vieta espressamente l'utilizzo di XLS per fabbricare prodotti non indicati. Il presente Accordo disciplina pertanto il rapporto tra l'Utente e RB in relazione all'utilizzo di questo foglio di calcolo. Scaricando e utilizzando XLS, l'utente accetta il presente Accordo e le condizioni qui stabilite. | D13: With these General Terms and Conditions (or "Agreement"), ROTHO BLAAS SRL, with registered office at I-39040 Cortaccia (BZ), Via dell'Adige 2/1 (hereinafter "RB") grants the user the non-exclusive and revocable right to use the spreadsheet (hereinafter "XLS") free of charge under the following conditions and during the term of this Agreement. In any case, RB does not guarantee the legal and design conformity of the calculations, as RB intends to provide only an indicative calculation tool to be considered as a technical-commercial service within the sales activity. XLS allows the user to perform static calculations only for the products and materials indicated in each of its sections. This Agreement expressly prohibits to use XLS to manufacture products that are not indicated. This Agreement therefore governs the relationship between the User and RB with respect to the use of this spreadsheet. By downloading and using XLS, the user accepts this Agreement and the conditions set out herein. | E13: Mit diesen Allgemeinen Geschäftsbedingungen (oder "Vereinbarung") räumt ROTHO BLAAS SRL, mit Sitz in I-39040 Kurtatsch (BZ), Via dell'Adige 2/1 (nachfolgend "RB"), dem Nutzer das nicht ausschließliche und widerrufliche Recht ein, die Tabellenkalkulation (nachfolgend "XLS") unter den folgenden Bedingungen und während der Laufzeit dieser Vereinbarung kostenlos zu nutzen. In jedem Fall garantiert RB nicht die rechtliche und planerische Konformität der Berechnungen, da RB lediglich ein indikatives Berechnungstool bereitstellen möchte, das als technisch-kommerzieller Service im Rahmen der Verkaufstätigkeit zu betrachten ist. XLS ermöglicht dem Nutzer, statische Berechnungen ausschließlich für die in den jeweiligen Abschnitten angegebenen Produkte und Materialien durchzuführen. Diese Vereinbarung untersagt ausdrücklich die Verwendung von XLS zur Herstellung nicht angegebener Produkte. Diese Vereinbarung regelt daher das Verhältnis zwischen dem Nutzer und RB in Bezug auf die Nutzung dieser Tabellenkalkulation. Durch das Herunterladen und die Nutzung von XLS akzeptiert der Nutzer diese Vereinbarung und die hierin festgelegten Bedingungen. | F13: Par les présentes Conditions Générales (ou "Accord"), ROTHO BLAAS SRL, dont le siège social est situé à I-39040 Cortaccia (BZ), Via dell'Adige 2/1 (ci-après "RB"), accorde à l'utilisateur le droit non exclusif et révocable d'utiliser gratuitement la feuille de calcul (ci-après "XLS") selon les conditions suivantes et pendant la durée du présent Accord. En tout état de cause, RB ne garantit pas la conformité juridique et de conception des calculs, car RB entend uniquement fournir un outil de calcul indicatif à considérer comme un service technico-commercial dans le cadre de l'activité de vente. XLS permet à l'utilisateur d'effectuer des calculs statiques uniquement pour les produits et matériaux indiqués dans chacune de ses sections. Le présent Accord interdit expressément l'utilisation de XLS pour fabriquer des produits non indiqués. Le présent Accord régit donc la relation entre l'Utilisateur et RB concernant l'utilisation de cette feuille de calcul. En téléchargeant et en utilisant XLS, l'utilisateur accepte le présent Accord et les conditions qui y sont énoncées. | G13: Mediante las presentes Condiciones Generales (o "Acuerdo"), ROTHO BLAAS SRL, con domicilio social en I-39040 Cortaccia (BZ), Via dell'Adige 2/1 (en adelante, "RB"), concede al usuario el derecho no exclusivo y revocable de utilizar gratuitamente la hoja de cálculo (en adelante, "XLS") bajo las siguientes condiciones y durante la vigencia del presente Acuerdo. En cualquier caso, RB no garantiza la conformidad legal ni de diseño de los cálculos, ya que RB pretende proporcionar únicamente una herramienta de cálculo indicativa que debe considerarse un servicio técnico-comercial dentro de la actividad de venta. XLS permite al usuario realizar cálculos estáticos únicamente para los productos y materiales indicados en cada una de sus secciones. El presente Acuerdo prohíbe expresamente utilizar XLS para fabricar productos no indicados. Por tanto, el presente Acuerdo regula la relación entre el Usuario y RB con respecto al uso de esta hoja de cálculo. Al descargar y utilizar XLS, el usuario acepta el presente Acuerdo y las condiciones aquí establecidas.
B14: 6 | C14: 2. RIFERIMENTI TECNICO-NORMATIVI | D14: 2. TECHNICAL-STANDARDS REFERENCES | E14: 2. TECHNISCH-NORMATIVE VERWEISE | F14: 2. RÉFÉRENCES TECHNIQUES ET NORMATIVES | G14: 2. REFERENCIAS TÉCNICO-NORMATIVAS
B15: 7 | C15: RB ha effettuato le verifiche secondo il metodo degli Stati Limite in conformità alla EN 1995-1-1 Eurocodice 5 - Progettazione delle strutture in legno e alla EN 1999-1-1 Eurocodice 9 - Progettazione delle strutture in alluminio. Per i valori di resistenza meccanica e la geometria dei connettori si è fatto riferimento all'ETA-23/0824. | D15: RB carried out the checks according to the Limit State method in accordance with EN 1995-1-1 Eurocode 5 - Design of timber structures and EN 1999-1-1 Eurocode 9 - Design of aluminium structures. For the mechanical resistance values and the geometry of the connectors, reference was made to ETA-23/0824. | E15: RB hat die Nachweise nach dem Grenzzustandsverfahren gemäß EN 1995-1-1 Eurocode 5 - Bemessung und Konstruktion von Holzbauten und EN 1999-1-1 Eurocode 9 - Bemessung und Konstruktion von Aluminiumtragwerken durchgeführt. Für die mechanischen Widerstandswerte und die Geometrie der Verbinder wurde auf ETA-23/0824 Bezug genommen. | F15: RB a effectué les vérifications selon la méthode des États Limites conformément à la norme EN 1995-1-1 Eurocode 5 - Conception et calcul des structures en bois et à la norme EN 1999-1-1 Eurocode 9 - Conception et calcul des structures en aluminium. Pour les valeurs de résistance mécanique et la géométrie des connecteurs, il a été fait référence à l'ETA-23/0824. | G15: RB realizó las comprobaciones según el método de los Estados Límite de conformidad con la norma EN 1995-1-1 Eurocódigo 5 - Proyecto de estructuras de madera y la norma EN 1999-1-1 Eurocódigo 9 - Proyecto de estructuras de aluminio. Para los valores de resistencia mecánica y la geometría de los conectores, se tomó como referencia la ETA-23/0824.
B16: 8 | C16: 3. DIRITTI E OBBLIGHI DI RB | D16: 3. RB RIGHTS AND OBLIGATIONS | E16: 3. RECHTE UND PFLICHTEN VON RB | F16: 3. DROITS ET OBLIGATIONS DE RB | G16: 3. DERECHOS Y OBLIGACIONES DE RB
B17: 9 | C17: RB: a) mette a disposizione XLS all'Utente gratuitamente, così com'è; b) non fornisce all'utente alcun supporto tecnico per l'utilizzo di XLS; c) non garantisce che XLS sia conforme alle normative vigenti o al progetto dei calcoli effettuati mediante esso. In particolare, a seguito di modifiche alle disposizioni rilevanti, quali norme, approvazioni, ecc., il foglio di calcolo può diventare invalido in parte o integralmente. d) pur riservandosi il diritto di aggiornare, revisionare e sviluppare XLS, RB non assume alcun obbligo nei confronti dell'utente di verificare, correggere, completare o aggiornare il foglio di calcolo e/o rendere disponibili gli aggiornamenti all'utente. | D17: RB: a) makes available XLS to the User free of charge, as it is; b) does not provide the user with any technical support for using XLS; c) does not guarantee that XLS complies with the regulations in force or with the calculations design made using it. In particular, as a result of changes to the relevant provisions, such as standards, approvals, etc., the spreadsheet may become invalid in part or in full. d) while reserving the right to update, revise and develop XLS, RB does not assume any obligation towards the user to verify, correct, complete or update the spreadsheet and/or make the updates available to the user. | E17: RB: a) stellt XLS dem Nutzer kostenlos in der vorliegenden Form zur Verfügung; b) leistet dem Nutzer keinerlei technische Unterstützung bei der Verwendung von XLS; c) garantiert nicht, dass XLS den geltenden Vorschriften oder der mit ihm erstellten Berechnungsplanung entspricht. Insbesondere kann die Tabellenkalkulation infolge von Änderungen der einschlägigen Bestimmungen, wie Normen, Zulassungen usw., teilweise oder vollständig ungültig werden. d) RB behält sich zwar das Recht vor, XLS zu aktualisieren, zu überarbeiten und weiterzuentwickeln, übernimmt jedoch gegenüber dem Nutzer keine Verpflichtung, die Tabellenkalkulation zu prüfen, zu korrigieren, zu vervollständigen oder zu aktualisieren und/oder dem Nutzer Aktualisierungen bereitzustellen. | F17: RB : a) met XLS à la disposition de l'Utilisateur gratuitement, en l'état ; b) ne fournit à l'utilisateur aucun support technique pour l'utilisation de XLS ; c) ne garantit pas que XLS est conforme aux réglementations en vigueur ni à la conception des calculs réalisés à l'aide de celui-ci. En particulier, à la suite de modifications des dispositions pertinentes, telles que normes, agréments, etc., la feuille de calcul peut devenir invalide en partie ou en totalité. d) tout en se réservant le droit de mettre à jour, réviser et développer XLS, RB n'assume aucune obligation envers l'utilisateur de vérifier, corriger, compléter ou mettre à jour la feuille de calcul et/ou de mettre les mises à jour à la disposition de l'utilisateur. | G17: RB: a) pone XLS a disposición del Usuario gratuitamente, tal como está; b) no proporciona al usuario ningún soporte técnico para el uso de XLS; c) no garantiza que XLS cumpla con la normativa vigente ni con el diseño de los cálculos realizados mediante el mismo. En particular, como consecuencia de cambios en las disposiciones pertinentes, tales como normas, aprobaciones, etc., la hoja de cálculo puede quedar inválida parcial o totalmente. d) aunque se reserva el derecho de actualizar, revisar y desarrollar XLS, RB no asume ninguna obligación frente al usuario de verificar, corregir, completar o actualizar la hoja de cálculo y/o poner las actualizaciones a disposición del usuario.
B18: 10 | C18: 4. DIRITTI E OBBLIGHI DELL'UTENTE | D18: 4. USER RIGHTS AND OBLIGATIONS | E18: 4. RECHTE UND PFLICHTEN DES NUTZERS | F18: 4. DROITS ET OBLIGATIONS DE L'UTILISATEUR | G18: 4. DERECHOS Y OBLIGACIONES DEL USUARIO
B19: 11 | C19: L'Utente dichiara di utilizzare il foglio di calcolo in qualità di professionista, escludendo qualsiasi utilizzo come consumatore, e di rispettare sempre i seguenti obblighi e divieti: a) obbligo e responsabilità di verificare che XLS soddisfi le esigenze specifiche e sia compatibile con i sistemi hardware-software; b) obbligo di verificare, per ogni utilizzo, la conformità dei calcoli effettuati tramite XLS alle normative vigenti e al progetto; c) obbligo di verificare la conformità legale dei calcoli effettuati tramite il Software; d) obbligo di utilizzare l'ultima versione di XLS messa a disposizione dal referente RB, verificando a ogni utilizzo eventuali aggiornamenti intervenuti; e) divieto di utilizzare XLS per prodotti non indicati in ciascuna sezione di calcolo; f) obbligo di utilizzare un software antivirus aggiornato e conforme allo standard di settore vigente; g) obbligo di non cedere a terzi la licenza d'uso di XLS e/o di non trasferire, costituire in pegno, concedere in leasing, noleggiare, condividere con altri o sublicenziare in qualsiasi altro modo i diritti di utilizzo del foglio di calcolo; h) divieto di modificare o alterare XLS in qualsiasi modo, anche tramite terzi. L'utente si impegna a richiedere al referente RB l'ultima versione di XLS. | D19: The User declares to use the spreadsheet as a professional excluding any use as a consumer, and to always comply with the following obligations and prohibitions: a) obligation and responsibility to verify that XLS meets the specific needs and that it is compatible with the hardware-software-systems; b) obligation to verify, for each use, the compliance of the calculations made through XLS to the regulations in force and to the project; c) obligation to verify the legal compliance of the calculations made through the Software; d) obligation to use the latest version of XLS made available by the RB contact person, checking at each use for any updates that have occurred; e) prohibition to use XLS for products not indicated in each calculation section; f) obligation to use updated antivirus software that complies with the industry standard in force; g) obligation not to assign the licence to use XLS to third parties and/or in any other way transfer, pledge or lease, rent or share with others or sublicense the rights to use the spreadsheet; h) prohibition to modify or vary XLS in any way, including through third parties. The user commits himself to ask the RB contact person for the last version of the XLS. | E19: Der Nutzer erklärt, die Tabellenkalkulation als Fachperson zu verwenden und jegliche Nutzung als Verbraucher auszuschließen, sowie stets die folgenden Pflichten und Verbote einzuhalten: a) Pflicht und Verantwortung zu prüfen, ob XLS den spezifischen Anforderungen entspricht und mit den Hardware-Software-Systemen kompatibel ist; b) Pflicht, bei jeder Verwendung die Übereinstimmung der durch XLS erstellten Berechnungen mit den geltenden Vorschriften und dem Projekt zu überprüfen; c) Pflicht, die rechtliche Konformität der durch die Software erstellten Berechnungen zu überprüfen; d) Pflicht, die neueste vom RB-Ansprechpartner bereitgestellte Version von XLS zu verwenden und bei jeder Nutzung zu prüfen, ob Aktualisierungen erfolgt sind; e) Verbot, XLS für Produkte zu verwenden, die nicht in jedem Berechnungsabschnitt angegeben sind; f) Pflicht, eine aktualisierte Antivirensoftware zu verwenden, die dem geltenden Branchenstandard entspricht; g) Pflicht, die Lizenz zur Nutzung von XLS nicht an Dritte abzutreten und/oder die Nutzungsrechte an der Tabellenkalkulation in keiner anderen Weise zu übertragen, zu verpfänden, zu verleasen, zu vermieten, mit anderen zu teilen oder unterzulizenzieren; h) Verbot, XLS in irgendeiner Weise zu ändern oder abzuändern, auch nicht durch Dritte. Der Nutzer verpflichtet sich, beim RB-Ansprechpartner die neueste Version von XLS anzufordern. | F19: L'Utilisateur déclare utiliser la feuille de calcul en tant que professionnel, à l'exclusion de toute utilisation en tant que consommateur, et s'engage à toujours respecter les obligations et interdictions suivantes : a) obligation et responsabilité de vérifier que XLS répond aux besoins spécifiques et qu'il est compatible avec les systèmes matériels et logiciels ; b) obligation de vérifier, pour chaque utilisation, la conformité des calculs effectués au moyen de XLS avec les réglementations en vigueur et avec le projet ; c) obligation de vérifier la conformité juridique des calculs effectués au moyen du Logiciel ; d) obligation d'utiliser la dernière version de XLS mise à disposition par le référent RB, en vérifiant à chaque utilisation les éventuelles mises à jour intervenues ; e) interdiction d'utiliser XLS pour des produits non indiqués dans chaque section de calcul ; f) obligation d'utiliser un logiciel antivirus à jour conforme à la norme industrielle en vigueur ; g) obligation de ne pas céder à des tiers la licence d'utilisation de XLS et/ou de ne pas transférer, nantir, donner en crédit-bail, louer, partager avec d'autres ou sous-licencier de quelque autre manière les droits d'utilisation de la feuille de calcul ; h) interdiction de modifier ou d'altérer XLS de quelque manière que ce soit, y compris par l'intermédiaire de tiers. L'utilisateur s'engage à demander au référent RB la dernière version de XLS. | G19: El Usuario declara utilizar la hoja de cálculo como profesional, excluyendo cualquier uso como consumidor, y cumplir siempre con las siguientes obligaciones y prohibiciones: a) obligación y responsabilidad de verificar que XLS satisface las necesidades específicas y que es compatible con los sistemas de hardware y software; b) obligación de verificar, en cada uso, la conformidad de los cálculos realizados mediante XLS con la normativa vigente y con el proyecto; c) obligación de verificar la conformidad legal de los cálculos realizados mediante el Software; d) obligación de utilizar la última versión de XLS puesta a disposición por la persona de contacto de RB, comprobando en cada uso si se han producido actualizaciones; e) prohibición de utilizar XLS para productos no indicados en cada sección de cálculo; f) obligación de utilizar un software antivirus actualizado que cumpla con la norma sectorial vigente; g) obligación de no ceder a terceros la licencia de uso de XLS y/o de no transferir, pignorar, arrendar, alquilar, compartir con otros o sublicenciar de cualquier otro modo los derechos de uso de la hoja de cálculo; h) prohibición de modificar o alterar XLS de cualquier forma, incluso a través de terceros. El usuario se compromete a solicitar a la persona de contacto de RB la última versión de XLS.
B20: 12 | C20: 5. COPYRIGHT | D20: 5. COPYRIGHTS | E20: 5. URHEBERRECHTE | F20: 5. DROITS D'AUTEUR | G20: 5. DERECHOS DE AUTOR
B21: 13 | C21: I diritti d'autore sulle formulazioni riportate nel foglio di calcolo e tutti i diritti di proprietà intellettuale e industriale ad esse sottostanti (quali, a titolo esemplificativo e non esaustivo: marchi, brevetti, segreti commerciali, know-how, informazioni riservate) sono e rimangono di esclusiva proprietà di RB. Il presente accordo non trasferisce all'utente alcuno dei diritti sopra indicati. | D21: The copyrights on the formulations referred to in the spreadsheet and all the intellectual and industrial property rights underlying them (such as, but not limited to: trademarks, patents, trade secrets, know-how, confidential information) are and remain the exclusive property of RB. This agreement does not transfer any of the above rights to the user. | E21: Die Urheberrechte an den in der Tabellenkalkulation enthaltenen Formulierungen sowie alle ihnen zugrunde liegenden geistigen und gewerblichen Eigentumsrechte (wie insbesondere, jedoch nicht ausschließlich: Marken, Patente, Geschäftsgeheimnisse, Know-how, vertrauliche Informationen) sind und bleiben ausschließliches Eigentum von RB. Diese Vereinbarung überträgt dem Nutzer keine der vorgenannten Rechte. | F21: Les droits d'auteur sur les formulations mentionnées dans la feuille de calcul ainsi que tous les droits de propriété intellectuelle et industrielle qui les sous-tendent (tels que, sans s'y limiter : marques, brevets, secrets commerciaux, savoir-faire, informations confidentielles) sont et restent la propriété exclusive de RB. Le présent accord ne transfère aucun des droits susmentionnés à l'utilisateur. | G21: Los derechos de autor sobre las formulaciones indicadas en la hoja de cálculo y todos los derechos de propiedad intelectual e industrial subyacentes a las mismas (tales como, entre otros: marcas, patentes, secretos comerciales, know-how, información confidencial) son y seguirán siendo propiedad exclusiva de RB. El presente acuerdo no transfiere al usuario ninguno de los derechos anteriores.
B22: 14 | C22: 6. DURATA, RECESSO E RISOLUZIONE | D22: 6. DURATION, WITHDRAWAL AND TERMINATION | E22: 6. DAUER, RÜCKTRITT UND BEENDIGUNG | F22: 6. DURÉE, RETRAIT ET RÉSILIATION | G22: 6. DURACIÓN, DESISTIMIENTO Y TERMINACIÓN
B23: 15 | C23: Le presenti condizioni generali e, di conseguenza, la licenza d'uso del foglio di calcolo sono valide dal momento del download fino alla cessazione del suo utilizzo. L'utente può recedere dal presente Accordo in qualsiasi momento eliminando XLS e tutte le copie dai propri sistemi. RB può recedere dal presente Accordo e disattivare il servizio in caso di violazione di una qualsiasi delle disposizioni che regolano la licenza d'uso. Nel caso in cui RB comunichi la risoluzione, l'utente dovrà rimuovere il foglio di calcolo e ogni sua copia dai propri sistemi. | D23: These general conditions and, consequently, the licence to use the spreadsheet, are valid from the moment of downloading it until the termination of its use. The user may withdraw from this Agreement at any time by deleting the XLS and all copies from its systems. RB may withdraw from this Agreement and deactivate the service in the event of a breach of any of the provisions governing the license of use. In the event that RB notifies its termination, the user shall remove the spreadsheet and any copies thereof from its systems. | E23: Diese allgemeinen Bedingungen und folglich die Lizenz zur Nutzung der Tabellenkalkulation gelten ab dem Zeitpunkt des Herunterladens bis zur Beendigung ihrer Nutzung. Der Nutzer kann jederzeit von dieser Vereinbarung zurücktreten, indem er XLS und alle Kopien von seinen Systemen löscht. RB kann von dieser Vereinbarung zurücktreten und den Dienst deaktivieren, wenn eine der Bestimmungen zur Nutzungslizenz verletzt wird. Falls RB die Beendigung mitteilt, muss der Nutzer die Tabellenkalkulation und alle Kopien davon von seinen Systemen entfernen. | F23: Les présentes conditions générales et, par conséquent, la licence d'utilisation de la feuille de calcul, sont valables à compter du téléchargement jusqu'à la cessation de son utilisation. L'utilisateur peut se retirer du présent Accord à tout moment en supprimant XLS et toutes ses copies de ses systèmes. RB peut se retirer du présent Accord et désactiver le service en cas de violation de l'une quelconque des dispositions régissant la licence d'utilisation. Si RB notifie sa résiliation, l'utilisateur devra supprimer la feuille de calcul et toutes ses copies de ses systèmes. | G23: Estas condiciones generales y, en consecuencia, la licencia de uso de la hoja de cálculo, son válidas desde el momento de su descarga hasta la finalización de su uso. El usuario podrá desistir del presente Acuerdo en cualquier momento eliminando XLS y todas sus copias de sus sistemas. RB podrá desistir del presente Acuerdo y desactivar el servicio en caso de incumplimiento de cualquiera de las disposiciones que regulan la licencia de uso. En caso de que RB notifique su terminación, el usuario deberá eliminar la hoja de cálculo y cualquier copia de la misma de sus sistemas.
B24: 16 | C24: 7. RESPONSABILITÀ | D24: 7. RESPONSIBILITY | E24: 7. VERANTWORTUNG | F24: 7. RESPONSABILITÉ | G24: 7. RESPONSABILIDAD
B25: 17 | C25: L'utente è l'unico responsabile dell'utilizzo di XLS, inclusi, a titolo esemplificativo e non esaustivo, tutti i calcoli, le stampe, i dati esportati realizzati con esso e/o gli errori di inserimento, la protezione dei file di dati e la manutenzione e, in generale, qualsiasi utilizzo del foglio di calcolo. RB non garantisce e in nessun caso può essere ritenuta responsabile per danni, perdite e costi o altre conseguenze, per qualsiasi motivo (garanzia per vizi, garanzia per malfunzionamento, responsabilità da prodotto o legale, ecc.) derivanti da: • utilizzo di XLS, calcoli effettuati, conformità alla normativa vigente, al progetto o ad altre esigenze dell'Utente; • compatibilità hardware e software, virus, malfunzionamenti, difetti, errori o lacune; • mancato aggiornamento del foglio di calcolo e/o interruzione della disponibilità del foglio di calcolo e/o risoluzione dell'accordo per qualsiasi motivo; • violazione di diritti di proprietà intellettuale di terzi. L'utente conferma di aver compreso e accettato le esclusioni e limitazioni di responsabilità e di rivendicazione del presente Accordo. L'utente conferma inoltre che il foglio di calcolo è disponibile gratuitamente, che le esclusioni e limitazioni costituiscono elementi fondamentali del presente Accordo e che RB non mette a disposizione dell'utente il proprio foglio di calcolo qualora le esclusioni o limitazioni vengano eliminate o modificate a favore dell'utente. | D25: The user is solely responsible for the use of XLS, including, but not limited to, all calculations, printouts, export data made with it and/or for entry errors, protection of data files and maintenance and in general for any use of the spreadsheet. RB does not guarantee and in no case can be held responsible for damages, losses and costs or other consequences, for any reason (warranty for defects, warranty for malfunction, product or legal responsibility, etc.) deriving from: • use of XLS, calculations made, compliance with current legislation, with the design or other User needs; • hardware and software compatibility, viruses, malfunctions, defects, errors or gaps; • failure to update the spreadsheet and/or interruption of the availability of the spreadsheet and/or termination of the agreement for any reason; • infringement of intellectual property rights of third parties. The user confirms to have understood and accepted the disclaimers and limitations of liability and claim of this Agreement. The user also confirms that the spreadsheet is available for free, that the exclusions and limitations are fundamental elements of this Agreement and that RB does not make its spreadsheet available to the user if the exclusions or limitations are deleted or modified in favour of the user. | E25: Der Nutzer ist allein für die Nutzung von XLS verantwortlich, einschließlich, jedoch nicht beschränkt auf alle damit erstellten Berechnungen, Ausdrucke, Exportdaten und/oder Eingabefehler, den Schutz von Datendateien und die Wartung sowie allgemein für jede Nutzung der Tabellenkalkulation. RB übernimmt keine Garantie und kann unter keinen Umständen für Schäden, Verluste und Kosten oder sonstige Folgen haftbar gemacht werden, gleich aus welchem Grund (Mängelgewährleistung, Gewährleistung bei Funktionsstörungen, Produkt- oder rechtliche Verantwortung usw.), die sich ergeben aus: • Nutzung von XLS, durchgeführten Berechnungen, Einhaltung der geltenden Gesetzgebung, des Projekts oder sonstiger Bedürfnisse des Nutzers; • Hardware- und Softwarekompatibilität, Viren, Funktionsstörungen, Mängeln, Fehlern oder Lücken; • unterlassener Aktualisierung der Tabellenkalkulation und/oder Unterbrechung der Verfügbarkeit der Tabellenkalkulation und/oder Beendigung der Vereinbarung aus irgendeinem Grund; • Verletzung von Rechten des geistigen Eigentums Dritter. Der Nutzer bestätigt, die Haftungsausschlüsse sowie die Haftungs- und Anspruchsbeschränkungen dieser Vereinbarung verstanden und akzeptiert zu haben. Der Nutzer bestätigt außerdem, dass die Tabellenkalkulation kostenlos verfügbar ist, dass die Ausschlüsse und Beschränkungen wesentliche Bestandteile dieser Vereinbarung sind und dass RB dem Nutzer die Tabellenkalkulation nicht zur Verfügung stellt, wenn die Ausschlüsse oder Beschränkungen zugunsten des Nutzers gestrichen oder geändert werden. | F25: L'utilisateur est seul responsable de l'utilisation de XLS, y compris, sans s'y limiter, tous les calculs, impressions, données d'exportation réalisés avec celui-ci et/ou les erreurs de saisie, la protection des fichiers de données et la maintenance, et plus généralement toute utilisation de la feuille de calcul. RB ne garantit pas et ne peut en aucun cas être tenue responsable des dommages, pertes et coûts ou autres conséquences, pour quelque raison que ce soit (garantie des défauts, garantie de dysfonctionnement, responsabilité produit ou légale, etc.) découlant de : • l'utilisation de XLS, des calculs effectués, de la conformité à la législation en vigueur, au projet ou à d'autres besoins de l'Utilisateur ; • la compatibilité matérielle et logicielle, les virus, dysfonctionnements, défauts, erreurs ou lacunes ; • le défaut de mise à jour de la feuille de calcul et/ou l'interruption de la disponibilité de la feuille de calcul et/ou la résiliation de l'accord pour quelque raison que ce soit ; • la violation de droits de propriété intellectuelle de tiers. L'utilisateur confirme avoir compris et accepté les clauses de non-responsabilité ainsi que les limitations de responsabilité et de réclamation du présent Accord. L'utilisateur confirme également que la feuille de calcul est disponible gratuitement, que les exclusions et limitations constituent des éléments fondamentaux du présent Accord et que RB ne met pas sa feuille de calcul à la disposition de l'utilisateur si les exclusions ou limitations sont supprimées ou modifiées en faveur de l'utilisateur. | G25: El usuario es el único responsable del uso de XLS, incluidos, entre otros, todos los cálculos, impresiones, datos de exportación realizados con él y/o los errores de introducción, la protección de los archivos de datos y el mantenimiento y, en general, cualquier uso de la hoja de cálculo. RB no garantiza y en ningún caso podrá ser considerada responsable de daños, pérdidas y costes u otras consecuencias, por cualquier motivo (garantía por defectos, garantía por mal funcionamiento, responsabilidad de producto o legal, etc.) derivados de: • uso de XLS, cálculos realizados, cumplimiento de la legislación vigente, del proyecto u otras necesidades del Usuario; • compatibilidad de hardware y software, virus, mal funcionamientos, defectos, errores o lagunas; • falta de actualización de la hoja de cálculo y/o interrupción de la disponibilidad de la hoja de cálculo y/o terminación del acuerdo por cualquier motivo; • infracción de derechos de propiedad intelectual de terceros. El usuario confirma haber comprendido y aceptado las exenciones y limitaciones de responsabilidad y reclamación del presente Acuerdo. El usuario confirma además que la hoja de cálculo está disponible de forma gratuita, que las exclusiones y limitaciones son elementos fundamentales del presente Acuerdo y que RB no pone su hoja de cálculo a disposición del usuario si las exclusiones o limitaciones se eliminan o modifican a favor del usuario.
B26: 18 | C26: 8. INDENNIZZO | D26: 8. REFUND | E26: 8. FREISTELLUNG | F26: 8. INDEMNISATION | G26: 8. INDEMNIZACIÓN
B27: 19 | C27: L'utente accetta di indennizzare e manlevare RB, le sue controllate e i suoi o i rispettivi funzionari, amministratori, dipendenti, successori e incaricati (ciascuno individualmente, "Beneficiario", collettivamente, i "Beneficiari") dai costi sostenuti in relazione a richieste avanzate da terzi per danni o perdite derivanti dall'utilizzo del foglio di calcolo da parte dell'utente (inclusi, a titolo esemplificativo e non esaustivo, onorari e costi di gestione sostenuti da RB). | D27: The user agrees to indemnify and hold harmless RB, its subsidiaries and its or its officers, directors, employees, successors and appointees (each individually, ""Beneficiary"", collectively, the ""Beneficiaries"") for the costs incurred in relation to claims made by third parties for damages or losses deriving from the use of the spreadsheet by the user (including, but not limited to, fees and management costs incurred by RB). | E27: Der Nutzer verpflichtet sich, RB, seine Tochtergesellschaften sowie seine bzw. deren leitenden Angestellten, Geschäftsführer, Mitarbeiter, Rechtsnachfolger und Beauftragten (jeweils einzeln "Begünstigter", zusammen die "Begünstigten") von Kosten freizustellen und schadlos zu halten, die im Zusammenhang mit Ansprüchen Dritter wegen Schäden oder Verlusten entstehen, die aus der Nutzung der Tabellenkalkulation durch den Nutzer herrühren (einschließlich, jedoch nicht beschränkt auf von RB getragene Gebühren und Verwaltungskosten). | F27: L'utilisateur accepte d'indemniser et de dégager de toute responsabilité RB, ses filiales ainsi que ses ou leurs dirigeants, administrateurs, employés, successeurs et mandataires (chacun individuellement, "Bénéficiaire", collectivement, les "Bénéficiaires") pour les coûts encourus en relation avec des réclamations formulées par des tiers pour des dommages ou pertes découlant de l'utilisation de la feuille de calcul par l'utilisateur (y compris, sans s'y limiter, les honoraires et frais de gestion supportés par RB). | G27: El usuario acepta indemnizar y mantener indemne a RB, sus filiales y sus respectivos directivos, administradores, empleados, sucesores y designados (cada uno individualmente, "Beneficiario", colectivamente, los "Beneficiarios") por los costes incurridos en relación con reclamaciones formuladas por terceros por daños o pérdidas derivados del uso de la hoja de cálculo por parte del usuario (incluidos, entre otros, honorarios y costes de gestión incurridos por RB).
B28: 20 | C28: 9. VARIE | D28: 9. MISCELLANEOUS | E28: 9. SONSTIGES | F28: 9. DIVERS | G28: 9. VARIOS
B29: 21 | C29: Come indicato nella versione tedesca della scheda tecnica SHARP METAL, VGU non è disponibile sul mercato tedesco, dove SHARP METAL può essere venduto solo in combinazione con VGU DE. Le presenti condizioni generali costituiscono l'intero accordo tra RB e l'utente in merito all'oggetto e sostituiscono tutti i precedenti accordi, orali o scritti, nonché qualsiasi accordo tra RB e l'utente. | D29: These general conditions constitute the entire agreement between RB and the user regarding the subject matter and replace all previous, oral or written agreements, as well as any agreements between RB and the user. | E29: Wie in der deutschen Version des technischen Datenblatts von SHARP METAL angegeben, ist VGU auf dem deutschen Markt nicht verfügbar; dort kann SHARP METAL nur in Kombination mit VGU DE verkauft werden. Diese allgemeinen Bedingungen stellen die gesamte Vereinbarung zwischen RB und dem Nutzer in Bezug auf den Vertragsgegenstand dar und ersetzen alle früheren mündlichen oder schriftlichen Vereinbarungen sowie sämtliche Absprachen zwischen RB und dem Nutzer. | F29: Comme indiqué dans la version allemande de la fiche technique SHARP METAL, VGU n'est pas disponible sur le marché allemand, où SHARP METAL ne peut être vendu qu'en combinaison avec VGU DE. Les présentes conditions générales constituent l'intégralité de l'accord entre RB et l'utilisateur concernant l'objet du présent document et remplacent tous les accords antérieurs, oraux ou écrits, ainsi que tout accord entre RB et l'utilisateur. | G29: Tal como se indica en la versión alemana de la ficha técnica de SHARP METAL, VGU no está disponible en el mercado alemán, donde SHARP METAL solo puede venderse en combinación con VGU DE. Estas condiciones generales constituyen el acuerdo íntegro entre RB y el usuario en relación con el objeto del mismo y sustituyen todos los acuerdos anteriores, orales o escritos, así como cualquier acuerdo entre RB y el usuario.
B30: 22 | C30: 10. LINGUA | D30: 10. LANGUAGE | E30: 10. SPRACHE | F30: 10. LANGUE | G30: 10. IDIOMA
B31: 23 | C31: In caso di differenze tra le versioni delle presenti condizioni nelle diverse lingue, il testo inglese è vincolante e prevale sulle traduzioni. | D31: In the event of differences between versions of these conditions in the various languages, the English text is binding and takes precedence with respect to the translations. | E31: Bei Abweichungen zwischen den Fassungen dieser Bedingungen in den verschiedenen Sprachen ist der englische Text verbindlich und hat Vorrang gegenüber den Übersetzungen. | F31: En cas de divergences entre les versions des présentes conditions dans les différentes langues, le texte anglais fait foi et prévaut sur les traductions. | G31: En caso de diferencias entre las versiones de estas condiciones en los distintos idiomas, el texto en inglés será vinculante y prevalecerá sobre las traducciones.
B32: 24 | C32: 11. LEGGE APPLICABILE E FORO COMPETENTE | D32: 11. APPLICABLE LAW AND COURT OF JURISDICTION | E32: 11. ANWENDBARES RECHT UND GERICHTSSTAND | F32: 11. DROIT APPLICABLE ET TRIBUNAL COMPÉTENT | G32: 11. LEY APLICABLE Y JURISDICCIÓN COMPETENTE
B33: 25 | C33: Il presente accordo e qualsiasi rapporto tra le parti sono regolati esclusivamente dalla legge italiana. Qualsiasi controversia che dovesse insorgere tra le parti in relazione al presente accordo e che non possa essere risolta amichevolmente sarà deferita al tribunale di Bolzano. | D33: This agreement and any relationship between the parties is governed exclusively by the Italian law. Any dispute that may arise between the parties in relation to this agreement, that cannot be resolved amicably, shall be brought before the court of Bolzano. | E33: Diese Vereinbarung und jede Beziehung zwischen den Parteien unterliegen ausschließlich italienischem Recht. Jede Streitigkeit, die zwischen den Parteien im Zusammenhang mit dieser Vereinbarung entstehen kann und nicht gütlich beigelegt werden kann, ist vor das Gericht Bozen zu bringen. | F33: Le présent accord et toute relation entre les parties sont régis exclusivement par le droit italien. Tout litige susceptible de survenir entre les parties en relation avec le présent accord et ne pouvant être résolu à l'amiable sera porté devant le tribunal de Bolzano. | G33: El presente acuerdo y cualquier relación entre las partes se regirán exclusivamente por la ley italiana. Cualquier controversia que pueda surgir entre las partes en relación con el presente acuerdo y que no pueda resolverse amistosamente será sometida al tribunal de Bolzano.
B34: 26 | C34: 12. PRIVACY | D34: 12. PRIVACY | E34: 12. DATENSCHUTZ | F34: 12. CONFIDENTIALITÉ | G34: 12. PRIVACIDAD
B35: 27 | C35: Fare riferimento all'informativa privacy disponibile al link: | D35: Refer to the privacy policy available at the link: | E35: Bitte beachten Sie die unter folgendem Link verfügbare Datenschutzerklärung: | F35: Veuillez vous référer à la politique de confidentialité disponible au lien suivant : | G35: Consulte la política de privacidad disponible en el enlace:
B36: 28 | C36: ACCETTA | D36: ACCEPT | E36: AKZEPTIEREN | F36: ACCEPTER | G36: ACEPTAR
C38: INPUT
B40: Column1 | C40: IT | D40: EN | E40: DE | F40: FR | G40: ES | H40: Column2
B41: 1 | C41: Informazioni progetto | D41: Project informations | E41: Projektinformationen | F41: Informations du projet | G41: Información del proyecto
B42: 2 | C42: Data | D42: Data | E42: Datum | F42: Date | G42: Fecha
B43: 3 | C43: Comune | D43: Municipality | E43: Gemeinde | F43: Commune | G43: Municipio
B44: 4 | C44: Provincia | D44: Province | E44: Provinz | F44: Province | G44: Provincia
B45: 5 | C45: Progetto | D45: Project | E45: Projekt | F45: Projet | G45: Proyecto
B46: 6 | C46: Progettista | D46: Designer | E46: Planer | F46: Concepteur | G46: Diseñador
B47: 7 | C47: Committente | D47: Client | E47: Auftraggeber | F47: Client | G47: Cliente
B48: 8 | C48: Normativa | D48: Standard | E48: Norm | F48: Norme | G48: Norma
B49: 9 | C49: Note | D49: Notes | E49: Anmerkungen | F49: Notes | G49: Notas
B50: 10 | C50: Carichi di progetto | D50: Design Loads | E50: Bemessungslasten | F50: Charges de calcul | G50: Cargas de diseño
B51: 11 | C51: Carichi permanenti | D51: Permanent loads | E51: Ständige Lasten | F51: Charges permanentes | G51: Cargas permanentes
B52: 12 | C52: Carichi accidentali | D52: Accidental loads | E52: Veränderliche Lasten | F52: Charges variables | G52: Cargas variables
B53: 13 | C53: Coefficiente parziale | D53: Partial factor | E53: Teilsicherheitsbeiwert | F53: Coefficient partiel | G53: Coeficiente parcial
B54: 14 | C54: Durata del carico | D54: Load duration | E54: Lasteinwirkungsdauer | F54: Durée de chargement | G54: Duración de la carga
B55: 15 | C55: Permanente | D55: Permanent | E55: Ständig | F55: Permanent | G55: Permanente
B56: 16 | C56: Lungo termine | D56: Long term | E56: Langfristig | F56: Long terme | G56: Largo plazo
B57: 17 | C57: Medio termine | D57: Medium term | E57: Mittelfristig | F57: Moyen terme | G57: Medio plazo
B58: 18 | C58: Breve termine | D58: Short term | E58: Kurzfristig | F58: Court terme | G58: Corto plazo
B59: 19 | C59: Istantaneo | D59: Istantaneous | E59: Sehr kurz | F59: Instantané | G59: Instantáneo
B60: 20 | C60: Classe di servizio | D60: Service Class | E60: Nutzungsklasse | F60: Classe de service | G60: Clase de servicio
B61: 21 | C61: Caratteristiche del legno | D61: Timber properties | E61: Holzeigenschaften | F61: Propriétés du bois | G61: Propiedades de la madera
B62: 22 | C62: (1) Pannello | D62: (1) Slab | E62: Element 1 | F62: Élément 1 | G62: Elemento 1
B63: 23 | C63: Tipo di legno | D63: Wood type | E63: Holzart | F63: Type de bois | G63: Tipo de madera
B64: 24 | C64: (2) Nervatura | D64: (2) Rib beam | E64: Element 2 | F64: Élément 2 | G64: Elemento 2
B65: 25 | C65: Tipo di legno | D65: Wood type | E65: Holzart | F65: Type de bois | G65: Tipo de madera
B66: 26 | C66: Geometria | D66: Geometry | E66: Geometrie | F66: Géométrie | G66: Geometría
B67: 27 | C67: (1) Pannello | D67: (1) Slab | E67: (1) Platte | F67: (1) Panneau | G67: (1) Panel
B68: 28 | C68: Tipo CLT | D68: CLT type | E68: BSP-Typ | F68: Type CLT | G68: Tipo CLT
B69: 29 | C69: Altezza | D69: Height | E69: Höhe | F69: Hauteur | G69: Altura
B70: 30 | C70: Base | D70: Base | E70: Breite | F70: Base | G70: Base
B71: 31 | C71: Resistenza a taglio per rotolamento | D71: Rolling shear resistance | E71: Rollschubfestigkeit | F71: Résistance au cisaillement roulant | G71: Resistencia al cortante por rodadura
B72: 32 | C72: (2) Nervatura | D72: (2) Rib beam | E72: (2) Rippenbalken | F72: (2) Nervure | G72: (2) Nervio
B73: 33 | C73: Larghezza minima | D73: Minimum width | E73: Mindestbreite | F73: Largeur minimale | G73: Anchura mínima
B74: 34 | C74: Altezza | D74: Height | E74: Höhe | F74: Hauteur | G74: Altura
B75: 35 | C75: Base | D75: Base | E75: Breite | F75: Base | G75: Base
B76: 36 | C76: Luce della trave | D76: Beam span | E76: Spannweite des Balkens | F76: Portée de la poutre | G76: Luz de la viga
B77: 37 | C77: Configurazione sistema di connessione | D77: Connection system configuration | E77: Konfiguration des Verbindungssystems | F77: Configuration du système de connexion | G77: Configuración del sistema de conexión
B78: 38 | C78: All’appoggio | D78: At Support | E78: Am Auflager | F78: À l’appui | G78: En el apoyo
B79: 39 | C79: Tipo SHARP METAL | D79: SHARP METAL type | E79: SHARP METAL-Typ | F79: Type SHARP METAL | G79: Tipo SHARP METAL
B80: 40 | C80: Lunghezza di influenza | D80: Influence lenght | E80: Einflusslänge | F80: Longueur d’influence | G80: Longitud de influencia
B81: 41 | C81: Numero di SHARP METAL | D81: Number of SHARP METAL | E81: Anzahl SHARP METAL | F81: Nombre de SHARP METAL | G81: Número de SHARP METAL
B82: 42 | C82: Diametro TBS MAX | D82: TBS MAX diameter | E82: TBS MAX-Durchmesser | F82: Diamètre TBS MAX | G82: Diámetro TBS MAX
B83: 43 | C83: In mezzeria | D83: At mid span | E83: In Feldmitte | F83: À mi-portée | G83: En el centro del vano
B84: 44 | C84: Tipo SHARP METAL | D84: SHARP METAL type | E84: SHARP METAL-Typ | F84: Type SHARP METAL | G84: Tipo SHARP METAL
B85: 45 | C85: Lunghezza di influenza | D85: Influence lenght | E85: Einflusslänge | F85: Longueur d’influence | G85: Longitud de influencia
B86: 46 | C86: Numero di SHARP METAL | D86: Number of SHARP METAL | E86: Anzahl SHARP METAL | F86: Nombre de SHARP METAL | G86: Número de SHARP METAL
B87: 47 | C87: Diametro TBS MAX | D87: TBS MAX diameter | E87: TBS MAX-Durchmesser | F87: Diamètre TBS MAX | G87: Diámetro TBS MAX
C89: OUTPUT
B91: Column1 | C91: IT | D91: EN | E91: DE | F91: FR | G91: ES | H91: Column2
B92: 1 | C92: Verifiche di resistenza - SLU (t = 0) | D92: Resistance verification - ULS (t = 0) | E92: Tragfähigkeitsnachweis - GZT (t = 0) | F92: Vérification de résistance - ELU (t = 0) | G92: Verificación de resistencia - ELU (t = 0)
B93: 2 | C93: (1) Pannello | D93: (1) Slab | E93: (1) Platte | F93: (1) Panneau | G93: (1) Panel
B94: 3 | C94: Presso-flessione | D94: Press-bending | E94: Druck-Biegung | F94: Flexion-compression | G94: Compresión-flexión
B95: 4 | C95: Taglio | D95: Shear | E95: Schub | F95: Cisaillement | G95: Cortante
B96: 5 | C96: (2) Nervatura | D96: (2) Rib beam | E96: (2) Rippenbalken | F96: (2) Nervure | G96: (2) Nervio
B97: 6 | C97: Tenso-flessione | D97: Tens-bending | E97: Zug-Biegung | F97: Traction-flexion | G97: Tracción-flexión
B98: 7 | C98: Taglio | D98: Shear | E98: Schub | F98: Cisaillement | G98: Cortante
B99: 8 | C99: Connessione | D99: Connection | E99: Verbindung | F99: Connexion | G99: Conexión
B100: 9 | C100: Verifica della connessione | D100: Connection verification | E100: Verbindungsnachweis | F100: Vérification de la connexion | G100: Verificación de la conexión
B101: 10 | C101: Verifiche di resistenza - SLU (t = ∞) | D101: Resistance verification - ULS (t = ∞) | E101: Tragfähigkeitsnachweis - GZT (t = ∞) | F101: Vérification de résistance - ELU (t = ∞) | G101: Verificación de resistencia - ELU (t = ∞)
B102: 11 | C102: (1) Pannello | D102: (1) Slab | E102: (1) Platte | F102: (1) Panneau | G102: (1) Panel
B103: 12 | C103: Presso-flessione | D103: Press-bending | E103: Druck-Biegung | F103: Flexion-compression | G103: Compresión-flexión
B104: 13 | C104: Taglio | D104: Shear | E104: Schub | F104: Cisaillement | G104: Cortante
B105: 14 | C105: (2) Nervatura | D105: (2) Rib beam | E105: (2) Rippenbalken | F105: (2) Nervure | G105: (2) Nervio
B106: 15 | C106: Tenso-flessione | D106: Tens-bending | E106: Zug-Biegung | F106: Traction-flexion | G106: Tracción-flexión
B107: 16 | C107: Taglio | D107: Shear | E107: Schub | F107: Cisaillement | G107: Cortante
B108: 17 | C108: Connessione | D108: Connection | E108: Verbindung | F108: Connexion | G108: Conexión
B109: 18 | C109: Verifica della connessione | D109: Connection verification | E109: Verbindungsnachweis | F109: Vérification de la connexion | G109: Verificación de la conexión
B110: 19 | C110: Verifica di freccia | D110: Deflection verification - ELS (t = 0) | E110: Durchbiegungsnachweis - GZG (t = 0) | F110: Vérification de la flèche - ELS (t = 0) | G110: Verificación de flecha - ELS (t = 0)
B111: 20 | C111: Freccia massima | D111: Maximum deflection | E111: Maximale Durchbiegung | F111: Flèche maximale | G111: Flecha máxima
B112: 21 | C112: Freccia istantanea | D112: Istantaneous deflection | E112: Sofortige Durchbiegung | F112: Flèche instantanée | G112: Flecha instantánea
B113: 22 | C113: Verifica di freccia - SLE (t = ∞) | D113: Deflection verification - ELS (t = ∞) | E113: Durchbiegungsnachweis - GZG (t = ∞) | F113: Vérification de la flèche - ELS (t = ∞) | G113: Verificación de flecha - ELS (t = ∞)
B114: 23 | C114: Freccia massima | D114: Maximum deflection | E114: Maximale Durchbiegung | F114: Flèche maximale | G114: Flecha máxima
B115: 24 | C115: Freccia finale | D115: Final deflection | E115: Enddurchbiegung | F115: Flèche finale | G115: Flecha final
B116: 25 | C116: Verifica delle vibrazioni | D116: Vibration verification | E116: Schwingungsnachweis | F116: Vérification des vibrations | G116: Verificación de vibraciones
B117: 26 | C117: Rigidezza laterale | D117: Lateral stiffness | E117: Seitliche Steifigkeit | F117: Rigidité latérale | G117: Rigidez lateral
B118: 27 | C118: Smorzamento | D118: Damping | E118: Dämpfung | F118: Amortissement | G118: Amortiguamiento
B119: 28 | C119: Larghezza collaborante | D119: Collaborating width | E119: Mitwirkende Breite | F119: Largeur collaborante | G119: Anchura colaborante
B120: 29 | C120: Frequenza fondamentale | D120: Fundamental Frequency | E120: Grundfrequenz | F120: Fréquence fondamentale | G120: Frecuencia fundamental
B121: 30 | C121: Limite di freccia | D121: Deflection limit | E121: Durchbiegungsgrenze | F121: Limite de flèche | G121: Límite de flecha
B122: 31 | C122: Freccia istantanea | D122: Istantaneous deflection | E122: Sofortige Durchbiegung | F122: Flèche instantanée | G122: Flecha instantánea
B123: 32 | C123: Velocità istantanea | D123: Istantaneous velocity | E123: Sofortige Geschwindigkeit | F123: Vitesse instantanée | G123: Velocidad instantánea
B124: 33 | C124: Velocità massima | D124: Maximum velocity | E124: Maximale Geschwindigkeit | F124: Vitesse maximale | G124: Velocidad máxima
B125: 34 | C125: Accelerazione massima | D125: Maximum acceleration | E125: Maximale Beschleunigung | F125: Accélération maximale | G125: Aceleración máxima
B126: 35 | C126: Vibrazioni non percepibili | D126: Vibrations not perceptible | E126: Nicht wahrnehmbare Schwingungen | F126: Vibrations non perceptibles | G126: Vibraciones no perceptibles
B127: 36 | C127: Vibrazioni percepibili non fastidiose | D127: Perceptible vibrations not annoying | E127: Wahrnehmbare, nicht störende Schwingungen | F127: Vibrations perceptibles non gênantes | G127: Vibraciones perceptibles no molestas
B128: 37 | C128: Vibrazioni non accettabili | D128: Unacceptable vibrations | E128: Nicht akzeptable Schwingungen | F128: Vibrations non acceptables | G128: Vibraciones no aceptables
C130: REPORT
B132: Column1 | C132: IT | D132: EN | E132: DE | F132: FR | G132: ES | H132: Column2
B133: 1 | C133: Relazione tecnica di calcolo | D133: Technical calculation report
B134: 2 | D134: Sharp metal calculation
B135: 3 | C135: Informazioni progetto | D135: Project informations | E135: Projektinformationen | F135: Informations du projet | G135: Información del proyecto
B136: 4 | C136: Progetto | D136: Project | E136: Projekt | F136: Projet | G136: Proyecto
B137: 5 | C137: Progettista | D137: Designer | E137: Planer | F137: Concepteur | G137: Diseñador
B138: 6 | C138: Committente | D138: Client | E138: Auftraggeber | F138: Client | G138: Cliente
B139: 7 | C139: Comune | D139: Municipality | E139: Gemeinde | F139: Commune | G139: Municipio
B140: 8 | C140: Provincia | D140: Province | E140: Provinz | F140: Province | G140: Provincia
B141: 9 | C141: Geometria | D141: Geometry
B142: 10 | D142: At support
B143: 11 | D143: At mid span
B144: 12 | D144: Panel type
B145: 13 | D145: Panel height
B146: 14 | D146: Panel width
B147: 15 | D147: Number of layers
B148: 16 | D148: Effective inertia
B149: 17 | D149: Effective area
B150: 18 | D150: Design loads on slab surface
B151: 19 | D151: Permanent loads
B152: 20 | D152: Accidental loads
B153: 21 | D153: Partial factor
B154: 22 | D154: Load duration
B155: 23 | D155: Service class
B156: 24 | D156: Design loads on the beam
B157: 25 | D157: Load on the coupled beam
B158: 26 | D158: Influence span
B159: 27 | D159: (1) Slab
B160: 28 | D160: Wood type
B161: 29 | D161: Characteristics
B162: 30 | D162: (2) Rib beam
B163: 31 | D163: Geometry
B164: 32 | D164: CLT type
B165: 33 | D165: Height
B166: 34 | D166: Base
B167: 35 | D167: Beam span
B168: 36 | D168: Height
B169: 37 | D169: Base
B170: 38 | D170: Connection stiffness
B171: 39 | D171: Sharp metal type:
B172: 40 | D172: Influence lenght
B173: 41 | D173: Number of SHARP METAL
B174: 42 | D174: TBS MAX diameter
B175: 43 | D175: ELS Stiffness
B176: 44 | D176: ULS Stiffness
B177: 45 | D177: SHARP METAL lenght
B178: 46 | D178: Connection design resistance
B179: 47 | D179: Coefficients
B180: 48 | D180: Loads and internal actions
B181: 49 | D181: Permanent loads
B182: 50 | D182: Accidental loads
B183: 51 | D183: Design load (permanent)
B184: 52 | D184: Design load
B185: 53 | D185: ULS combinations
B186: 54 | D186: Bending moment
B187: 55 | D187: Shear force
B188: 56 | D188: Elements stiffness at support (t = 0)
B189: 57 | D189: Bending stiffness
B190: 58 | D190: Axial stiffness
B191: 59 | D191: Elements stiffness at support at ULS [g] (t = ∞)
B192: 60 | C192: Rigidezza sistema composto | D192: Composite system stiffness
B193: 61 | D193: Composite bending stiffness
B194: 62 | D194: Composite axial stiffness
B195: 63 | C195: Distanza fra baricentro elemento1 ed elemento 2 | D195: Distance between centres of mass of (1) and (2)
B196: 64 | D196: Composite system effective stiffness
B197: 65 | D197: Composite system efficency
B198: 66 | D198: Connection stiffness
B199: 67 | D199: Elements stiffness at support at ULS [g+q] (t = ∞)
B200: 68
B201: 69
B202: 70
B203: 71
B204: 72
B205: 73
B206: 74
B207: 75
B208: 76
B209: 77
B210: 78
... 47 more rows

Sheet Input (hidden)
D1: SHARP_METAL_CALCULATOR_v1.1 | K1: SHARP METAL
B3: =INDEX(LEN_IN[],1,MATCH(CONDITIONS!$E$3,Len_DB!$C$8:$H$8,0)+1) -> Project informations
B5: =INDEX(LEN_IN[],2,MATCH(CONDITIONS!$E$3,Len_DB!$C$8:$H$8,0)+1) -> Data | C5: =TODAY() -> 2026-07-20 | H5: =INDEX(LEN_IN[],8,MATCH(CONDITIONS!$E$3,Len_DB!$C$8:$H$8,0)+1) -> Standard | I5: UNI EN 1995:2014
B6: =INDEX(LEN_IN[],3,MATCH(CONDITIONS!$E$3,Len_DB!$C$8:$H$8,0)+1) -> Municipality | H6: =INDEX(LEN_IN[],9,MATCH(CONDITIONS!$E$3,Len_DB!$C$8:$H$8,0)+1) -> Notes
B7: =INDEX(LEN_IN[],4,MATCH(CONDITIONS!$E$3,Len_DB!$C$8:$H$8,0)+1) -> Province
B8: =INDEX(LEN_IN[],5,MATCH(CONDITIONS!$E$3,Len_DB!$C$8:$H$8,0)+1) -> Project
B9: =INDEX(LEN_IN[],6,MATCH(CONDITIONS!$E$3,Len_DB!$C$8:$H$8,0)+1) -> Designer
B10: =INDEX(LEN_IN[],7,MATCH(CONDITIONS!$E$3,Len_DB!$C$8:$H$8,0)+1) -> Client
B12: =INDEX(LEN_IN[],10,MATCH(CONDITIONS!$E$3,Len_DB!$C$8:$H$8,0)+1) -> Design Loads
B14: =INDEX(LEN_IN[],11,MATCH(CONDITIONS!$E$3,Len_DB!$C$8:$H$8,0)+1) -> Permanent loads | C14: g1,k + g2,k | E14: 2.5 | F14: kN/m2 | H14: =INDEX(LEN_IN[],14,MATCH(CONDITIONS!$E$3,Len_DB!$C$8:$H$8,0)+1) -> Load duration | I14: Medium term
B15: =INDEX(LEN_IN[],12,MATCH(CONDITIONS!$E$3,Len_DB!$C$8:$H$8,0)+1) -> Accidental loads | C15: qk | E15: 2 | F15: kN/m2 | H15: =INDEX(LEN_IN[],20,MATCH(CONDITIONS!$E$3,Len_DB!$C$8:$H$8,0)+1) -> Service Class | I15: 1
B16: =INDEX(LEN_IN[],13,MATCH(CONDITIONS!$E$3,Len_DB!$C$8:$H$8,0)+1) -> Partial factor | C16: ψ2,1 | E16: 0.3
B18: =INDEX(LEN_IN[],21,MATCH(CONDITIONS!$E$3,Len_DB!$C$8:$H$8,0)+1) -> Timber properties
B20: =INDEX(LEN_IN[],22,MATCH(CONDITIONS!$E$3,Len_DB!$C$8:$H$8,0)+1) -> (1) Slab | H20: =INDEX(LEN_IN[],24,MATCH(CONDITIONS!$E$3,Len_DB!$C$8:$H$8,0)+1) -> (2) Rib beam
B22: =INDEX(LEN_IN[],23,MATCH(CONDITIONS!$E$3,Len_DB!$C$8:$H$8,0)+1) -> Wood type | C22: C24 - EN338:2016 | H22: =INDEX(LEN_IN[],25,MATCH(CONDITIONS!$E$3,Len_DB!$C$8:$H$8,0)+1) -> Wood type | I22: GL24h - UNI EN14080:2013
B24: =INDEX(LEN_IN[],26,MATCH(CONDITIONS!$E$3,Len_DB!$C$8:$H$8,0)+1) -> Geometry
B26: =INDEX(LEN_IN[],27,MATCH(CONDITIONS!$E$3,Len_DB!$C$8:$H$8,0)+1) -> (1) Slab | H26: =INDEX(LEN_IN[],32,MATCH(CONDITIONS!$E$3,Len_DB!$C$8:$H$8,0)+1) -> (2) Rib beam
B28: =INDEX(LEN_IN[],28,MATCH(CONDITIONS!$E$3,Len_DB!$C$8:$H$8,0)+1) -> CLT type | C28: 80mm-3- 30 20 30 | H28: =INDEX(LEN_IN[],33,MATCH(CONDITIONS!$E$3,Len_DB!$C$8:$H$8,0)+1) -> Minimum width | I28: b2,min | K28: =MAX(IF($K$30<50+MAX(E46-25,E45)*2,"trave troppo stretta",_xlfn.CEILING.MATH(E43*50+2*MAX(E46-25,E45))),IF($K$30<50+MAX(K46-25,K45)*2,"trave troppo stretta",_xlfn.CEILING.MATH(K43*50+2*MAX(K46-25,K45)))) -> 150 | L28: mm
B29: =INDEX(LEN_IN[],29,MATCH(CONDITIONS!$E$3,Len_DB!$C$8:$H$8,0)+1) -> Height | C29: h1 | E29: =INDEX(CLT[],MATCH(Input!$C$28,CLT[Code],0),2) -> 80 | F29: mm | H29: =INDEX(LEN_IN[],34,MATCH(CONDITIONS!$E$3,Len_DB!$C$8:$H$8,0)+1) -> Height | I29: h2 | K29: 260 | L29: mm
B30: =INDEX(LEN_IN[],30,MATCH(CONDITIONS!$E$3,Len_DB!$C$8:$H$8,0)+1) -> Base | C30: b1 | E30: 800 | F30: mm | H30: =INDEX(LEN_IN[],35,MATCH(CONDITIONS!$E$3,Len_DB!$C$8:$H$8,0)+1) -> Base | I30: b2 | K30: 150 | L30: mm
B31: =INDEX(LEN_IN[],31,MATCH(CONDITIONS!$E$3,Len_DB!$C$8:$H$8,0)+1) -> Rolling shear resistance | C31: fv,rs,k | E31: 1.2 | F31: N/mm2
B33: =INDEX(LEN_IN[],36,MATCH(CONDITIONS!$E$3,Len_DB!$C$8:$H$8,0)+1) -> Beam span | C33: ℓ | E33: 6000 | F33: mm
B37: =INDEX(LEN_IN[],37,MATCH(CONDITIONS!$E$3,Len_DB!$C$8:$H$8,0)+1) -> Connection system configuration
B39: =INDEX(LEN_IN[],38,MATCH(CONDITIONS!$E$3,Len_DB!$C$8:$H$8,0)+1) -> At Support | H39: =INDEX(LEN_IN[],43,MATCH(CONDITIONS!$E$3,Len_DB!$C$8:$H$8,0)+1) -> At mid span
B41: =INDEX(LEN_IN[],39,MATCH(CONDITIONS!$E$3,Len_DB!$C$8:$H$8,0)+1) -> SHARP METAL type | C41: SHARP METAL + TBS MAX@a ≤ 100mm | H41: =INDEX(LEN_IN[],44,MATCH(CONDITIONS!$E$3,Len_DB!$C$8:$H$8,0)+1) -> SHARP METAL type | I41: SHARP METAL + TBS MAX@a ≤ 100mm
B42: =INDEX(LEN_IN[],40,MATCH(CONDITIONS!$E$3,Len_DB!$C$8:$H$8,0)+1) -> Influence lenght | C42: ℓ/4 | E42: =$E$33/4 -> 1500 | F42: mm | H42: =INDEX(LEN_IN[],45,MATCH(CONDITIONS!$E$3,Len_DB!$C$8:$H$8,0)+1) -> Influence lenght | I42: ℓ/2 | K42: =$E$33/2 -> 3000 | L42: mm
B43: =INDEX(LEN_IN[],41,MATCH(CONDITIONS!$E$3,Len_DB!$C$8:$H$8,0)+1) -> Number of SHARP METAL | E43: 2 | H43: =INDEX(LEN_IN[],46,MATCH(CONDITIONS!$E$3,Len_DB!$C$8:$H$8,0)+1) -> Number of SHARP METAL | K43: 1
B44: =INDEX(LEN_IN[],42,MATCH(CONDITIONS!$E$3,Len_DB!$C$8:$H$8,0)+1) -> TBS MAX diameter | C44: d | E44: 8 | F44: mm | H44: =INDEX(LEN_IN[],47,MATCH(CONDITIONS!$E$3,Len_DB!$C$8:$H$8,0)+1) -> TBS MAX diameter | I44: d | K44: 8 | L44: mm
B45: emin | E45: =_xlfn.CEILING.MATH(IF($K$30<=150,25,$K$30/6),1) -> 25 | F45: mm | H45: emin | K45: =_xlfn.CEILING.MATH(IF($K$30<=150,25,$K$30/6),1) -> 25 | L45: mm
B46: a4,c,min | C46: 5 ⋅ d | E46: =5*E44 -> 40 | F46: mm | H46: a4,c,min | I46: 5 ⋅ d | K46: =5*K44 -> 40 | L46: mm

Sheet RefText_DB (hidden)
B4: UNI EN 1995:2014
B5: NTC2018
B9: SHARP METAL (alone) + TBS MAX@a = 250mm
B10: SHARP METAL + TBS MAX@a ≤ 100mm
B11: SHARP METAL + TBS MAX@100mm < a ≤ 175mm
B15: =IF(K60<8,INDEX(LEN_OUT[],35,MATCH(CONDITIONS!$E$3,LEN_OUT[#Headers],0)),"") -> Vibrations not perceptible
B16: =IF(K61<8,INDEX(LEN_OUT[],36,MATCH(CONDITIONS!$E$3,LEN_OUT[#Headers],0)),"") -> Perceptible vibrations not annoying
B17: =IF(K62<8,INDEX(LEN_OUT[],37,MATCH(CONDITIONS!$E$3,LEN_OUT[#Headers],0)),"") -> Unacceptable vibrations

Sheet Output (hidden)
D1: SHARP_METAL_CALCULATOR_v1.1 | K1: SHARP METAL
B3: =Input!B3 -> Project informations
B5: =Input!B5 -> Data | C5: =Input!C5 -> 2026-07-20 | H5: =INDEX(LEN_IN[],8,MATCH(CONDITIONS!$E$3,Len_DB!$C$8:$H$8,0)+1) -> Standard | I5: =IF(ISBLANK(Input!I5),"",Input!I5) -> UNI EN 1995:2014
B6: =Input!B6 -> Municipality | C6: =IF(ISBLANK(Input!C6),"",Input!C6) ->  | H6: =INDEX(LEN_IN[],9,MATCH(CONDITIONS!$E$3,Len_DB!$C$8:$H$8,0)+1) -> Notes | I6: =IF(ISBLANK(Input!I6),"",Input!I6) -> 
B7: =Input!B7 -> Province | C7: =IF(ISBLANK(Input!C7),"",Input!C7) -> 
B8: =Input!B8 -> Project | C8: =IF(ISBLANK(Input!C8),"",Input!C8) -> 
B9: =Input!B9 -> Designer | C9: =IF(ISBLANK(Input!C9),"",Input!C9) -> 
B10: =Input!B10 -> Client | C10: =IF(ISBLANK(Input!C10),"",Input!C10) -> 
B12: =INDEX(LEN_OUT[],1,MATCH(CONDITIONS!$E$3,Len_DB!$C$8:$H$8,0)+1) -> Resistance verification - ULS (t = 0)
B16: =INDEX(LEN_OUT[],2,MATCH(CONDITIONS!$E$3,Len_DB!$C$8:$H$8,0)+1) -> (1) Slab | H16: =INDEX(LEN_OUT[],5,MATCH(CONDITIONS!$E$3,Len_DB!$C$8:$H$8,0)+1) -> (2) Rib beam
D18: g + q | J18: g + q
B19: =INDEX(LEN_OUT[],3,MATCH(CONDITIONS!$E$3,Len_DB!$C$8:$H$8,0)+1) -> Press-bending | D19: ='Calculation Report'!$E$363 -> 25.8% | F19: =IF(D19<=1,"OK","NO") -> OK | H19: =INDEX(LEN_OUT[],6,MATCH(CONDITIONS!$E$3,Len_DB!$C$8:$H$8,0)+1) -> Tens-bending | J19: ='Calculation Report'!$E$420 -> 47.9% | L19: =IF(J19<=1,"OK","NO") -> OK
B20: =INDEX(LEN_OUT[],4,MATCH(CONDITIONS!$E$3,Len_DB!$C$8:$H$8,0)+1) -> Shear | D20: ='Calculation Report'!$G$371/'Calculation Report'!$E$377 -> 18.2% | F20: =IF(D20<=1,"OK","NO") -> OK | H20: =INDEX(LEN_OUT[],7,MATCH(CONDITIONS!$E$3,Len_DB!$C$8:$H$8,0)+1) -> Shear | J20: ='Calculation Report'!$G$428/'Calculation Report'!$G$435 -> 30.2% | L20: =IF(J20<=1,"OK","NO") -> OK
B22: =INDEX(LEN_OUT[],8,MATCH(CONDITIONS!$E$3,Len_DB!$C$8:$H$8,0)+1) -> Connection
D24: g + q
B25: =INDEX(LEN_OUT[],9,MATCH(CONDITIONS!$E$3,Len_DB!$C$8:$H$8,0)+1) -> Connection verification | D25: =MAX('Calculation Report'!$E$459/'Calculation Report'!$G$459,'Calculation Report'!$E$482/'Calculation Report'!$G$482) -> 61.0% | F25: =IF(D25<=1,"OK","NO") -> OK
B27: =INDEX(LEN_OUT[],10,MATCH(CONDITIONS!$E$3,Len_DB!$C$8:$H$8,0)+1) -> Resistance verification - ULS (t = ∞)
B31: =INDEX(LEN_OUT[],11,MATCH(CONDITIONS!$E$3,Len_DB!$C$8:$H$8,0)+1) -> (1) Slab | H31: =INDEX(LEN_OUT[],14,MATCH(CONDITIONS!$E$3,Len_DB!$C$8:$H$8,0)+1) -> (2) Rib beam
D33: g + q | J33: g + q
B34: =INDEX(LEN_OUT[],12,MATCH(CONDITIONS!$E$3,Len_DB!$C$8:$H$8,0)+1) -> Press-bending | D34: ='Calculation Report'!$E$662 -> 25.8% | F34: =IF(D34<=1,"OK","NO") -> OK | H34: =INDEX(LEN_OUT[],15,MATCH(CONDITIONS!$E$3,Len_DB!$C$8:$H$8,0)+1) -> Tens-bending | J34: ='Calculation Report'!$E$720 -> 47.9% | L34: =IF(J34<=1,"OK","NO") -> OK
B35: =INDEX(LEN_OUT[],13,MATCH(CONDITIONS!$E$3,Len_DB!$C$8:$H$8,0)+1) -> Shear | D35: ='Calculation Report'!$G$670/'Calculation Report'!$E$678 -> 10.9% | F35: =IF(D35<=1,"OK","NO") -> OK | H35: =INDEX(LEN_OUT[],16,MATCH(CONDITIONS!$E$3,Len_DB!$C$8:$H$8,0)+1) -> Shear | J35: ='Calculation Report'!$G$728/'Calculation Report'!$E$735 -> 30.2% | L35: =IF(J35<=1,"OK","NO") -> OK
D37: g | J37: g
B38: =INDEX(LEN_OUT[],12,MATCH(CONDITIONS!$E$3,Len_DB!$C$8:$H$8,0)+1) -> Press-bending | D38: ='Calculation Report'!$E$513 -> 18.2% | F38: =IF(D38<=1,"OK","NO") -> OK | H38: =INDEX(LEN_OUT[],15,MATCH(CONDITIONS!$E$3,Len_DB!$C$8:$H$8,0)+1) -> Tens-bending | J38: ='Calculation Report'!$E$568 -> 33.8% | L38: =IF(J38<=1,"OK","NO") -> OK
B39: =INDEX(LEN_OUT[],13,MATCH(CONDITIONS!$E$3,Len_DB!$C$8:$H$8,0)+1) -> Shear | D39: ='Calculation Report'!$G$521 -> 9.9% | F39: =IF(D39<=1,"OK","NO") -> OK | H39: =INDEX(LEN_OUT[],16,MATCH(CONDITIONS!$E$3,Len_DB!$C$8:$H$8,0)+1) -> Shear | J39: ='Calculation Report'!$G$577 -> 24.0% | L39: =IF(J39<=1,"OK","NO") -> OK
B41: =INDEX(LEN_OUT[],17,MATCH(CONDITIONS!$E$3,Len_DB!$C$8:$H$8,0)+1) -> Connection
D43: g + q
B44: =INDEX(LEN_OUT[],18,MATCH(CONDITIONS!$E$3,Len_DB!$C$8:$H$8,0)+1) -> Connection verification | D44: =MAX('Calculation Report'!$E$754/'Calculation Report'!$G$754,'Calculation Report'!$E$776/'Calculation Report'!$G$776) -> 61.0% | F44: =IF(D44<=1,"OK","NO") -> OK
D46: g
B47: =INDEX(LEN_OUT[],18,MATCH(CONDITIONS!$E$3,Len_DB!$C$8:$H$8,0)+1) -> Connection verification | D47: =MAX('Calculation Report'!E610/'Calculation Report'!G610,'Calculation Report'!E628/'Calculation Report'!G628) -> 43.1% | F47: =IF(D47<=1,"OK","NO") -> OK
B49: =INDEX(LEN_OUT[],19,MATCH(CONDITIONS!$E$3,Len_DB!$C$8:$H$8,0)+1) -> Deflection verification - ELS (t = 0)
B53: =INDEX(LEN_OUT[],20,MATCH(CONDITIONS!$E$3,Len_DB!$C$8:$H$8,0)+1) -> Maximum deflection | D53: ℓ / | E53: 300
B55: =INDEX(LEN_OUT[],21,MATCH(CONDITIONS!$E$3,Len_DB!$C$8:$H$8,0)+1) -> Istantaneous deflection | D55: uq,inst | E55: ='Calculation Report'!$B$927 -> 8.62 | F55: mm | I55: ulim | J55: =Input!$E$33/$E$53 -> 20.00 | K55: mm | L55: =IF(E55<=J55,"OK","NO") -> OK
B57: =INDEX(LEN_OUT[],22,MATCH(CONDITIONS!$E$3,Len_DB!$C$8:$H$8,0)+1) -> Deflection verification - ELS (t = ∞)
B61: =INDEX(LEN_OUT[],23,MATCH(CONDITIONS!$E$3,Len_DB!$C$8:$H$8,0)+1) -> Maximum deflection | D61: ℓ / | E61: 200
B63: =INDEX(LEN_OUT[],24,MATCH(CONDITIONS!$E$3,Len_DB!$C$8:$H$8,0)+1) -> Final deflection | D63: uq,inst | E63: ='Calculation Report'!$G$942 -> 10.03 | F63: mm | I63: ulim | J63: =Input!$E$33/$E$61 -> 30.00 | K63: mm | L63: =IF(E63<=J63,"OK","NO") -> OK
D65: SHARP_METAL_CALCULATOR_v1.1 | K65: SHARP METAL
B67: =INDEX(LEN_OUT[],25,MATCH(CONDITIONS!$E$3,Len_DB!$C$8:$H$8,0)+1) -> Vibration verification
B71: =INDEX(LEN_OUT[],26,MATCH(CONDITIONS!$E$3,Len_DB!$C$8:$H$8,0)+1) -> Lateral stiffness | C71: EJb | D71: =MIN(EJeff!J21:K21)*EJeff!$D$3/EJeff!$B$3 -> 7.333E+06 | F71: Nmm2/m | H71: =INDEX(LEN_OUT[],29,MATCH(CONDITIONS!$E$3,Len_DB!$C$8:$H$8,0)+1) -> Fundamental Frequency | J71: f1 | K71: ='Calculation Report'!$G$975 -> 7.61 | L71: Hz
B72: =INDEX(LEN_OUT[],27,MATCH(CONDITIONS!$E$3,Len_DB!$C$8:$H$8,0)+1) -> Damping | C72: ξ | E72: 4%
B73: =INDEX(LEN_OUT[],28,MATCH(CONDITIONS!$E$3,Len_DB!$C$8:$H$8,0)+1) -> Collaborating width | C73: b | E73: =Input!$E$30/1000 -> 0.80 | F73: m
B75: =INDEX(LEN_OUT[],31,MATCH(CONDITIONS!$E$3,Len_DB!$C$8:$H$8,0)+1) -> Istantaneous deflection | D75: w | E75: ='Calculation Report'!G982 -> 0.58 | F75: mm | H75: =INDEX(LEN_OUT[],30,MATCH(CONDITIONS!$E$3,Len_DB!$C$8:$H$8,0)+1) -> Deflection limit | I75: wlim | J75: 1.0 | K75: mm | L75: =IF(E75<=J75,"OK","NO") -> OK
B79: =INDEX(LEN_OUT[],32,MATCH(CONDITIONS!$E$3,LEN_OUT[#Headers],0)) -> Istantaneous velocity | D79: v | E79: ='Calculation Report'!$G$992*1000 -> 2.42 | F79: mm/s | H79: =INDEX(LEN_OUT[],33,MATCH(CONDITIONS!$E$3,Len_DB!$C$8:$H$8,0)+1) -> Maximum velocity | I79: vlim | J79: ='Calculation Report'!$G$996*1000 -> 8.46 | K79: mm/s | L79: =IF(E79<=J79,"OK","NO") -> OK
B81: =IF(K71<8,INDEX(LEN_OUT[],34,MATCH(CONDITIONS!$E$3,LEN_OUT[#Headers],0)),"") -> Maximum acceleration | D81: =IF(K71<8,"a","") -> a | E81: =IF(K71<8,'Calculation Report'!$G$992*1000,"") -> 2.42 | F81: =IF(K71<8,"mm/s2","") -> mm/s2 | H81: =IF(K71<8,IF(E81<=0.1,RefText_DB!$B$15,IF(E81<0.35,RefText_DB!$B$16,RefText_DB!$B$17)),"") -> Unacceptable vibrations

Sheet Calculation Report (hidden)
H1: =IF(AND(Output!F19="OK",Output!F20="OK",Output!L19="OK",Output!L20="OK",Output!F25="OK",Output!F34="OK",Output!F35="OK",Output!F38="OK",Output!F39="OK",Output!L34="OK",Output!L35="OK",Output!L38="OK",Output!L39="OK",Output!F44="OK",Output!F47="OK",Output!L55="OK",Output!L63="OK",Output!L75="OK",Output!L79="OK"),"OK","NO") -> OK
C7: =INDEX(LEN_REPORT[],1,MATCH(CONDITIONS!$E$3,Len_DB!$C$8:$H$8,0)+1) -> Technical calculation report
K11: =Input!$C$5 -> 2026-07-20
C13: Sharp metal calculation | G13: V1.1 | J13: =IF(ISBLANK(Input!I5),"",Input!I5) -> UNI EN 1995:2014
D15: =IF(ISBLANK(Input!C8),"",Input!C8) -> 
D17: =IF(ISBLANK(Input!I6),"",Input!I6) -> 
D22: =INDEX(LEN_REPORT[],5,MATCH(CONDITIONS!$E$3,Len_DB!$C$8:$H$8,0)+1) -> Designer | I22: =INDEX(LEN_REPORT[],8,MATCH(CONDITIONS!$E$3,Len_DB!$C$8:$H$8,0)+1) -> Province
D24: =IF(ISBLANK(Input!C9),"",Input!C9) ->  | I24: =IF(ISBLANK(Input!C7),"",Input!C7) -> 
D26: =INDEX(LEN_REPORT[],6,MATCH(CONDITIONS!$E$3,Len_DB!$C$8:$H$8,0)+1) -> Client | I26: =INDEX(LEN_REPORT[],7,MATCH(CONDITIONS!$E$3,Len_DB!$C$8:$H$8,0)+1) -> Municipality
D28: =IF(ISBLANK(Input!C10),"",Input!C10) ->  | I28: =IF(ISBLANK(Input!C6),"",Input!C6) -> 
B35: =INDEX(LEN_REPORT[],9,MATCH(CONDITIONS!$E$3,Len_DB!$C$8:$H$8,0)+1) -> Geometry
B39: =INDEX(LEN_REPORT[],10,MATCH(CONDITIONS!$E$3,Len_DB!$C$8:$H$8,0)+1) -> At support | H39: =INDEX(LEN_REPORT[],11,MATCH(CONDITIONS!$E$3,Len_DB!$C$8:$H$8,0)+1) -> At mid span
B41: =INDEX(LEN_REPORT[],12,MATCH(CONDITIONS!$E$3,Len_DB!$C$8:$H$8,0)+1) -> Panel type | C41: =Input!C28 -> 80mm-3- 30 20 30 | H41: =INDEX(LEN_REPORT[],12,MATCH(CONDITIONS!$E$3,Len_DB!$C$8:$H$8,0)+1) -> Panel type | I41: =Input!C28 -> 80mm-3- 30 20 30
B43: =INDEX(LEN_REPORT[],15,MATCH(CONDITIONS!$E$3,Len_DB!$C$8:$H$8,0)+1) -> Number of layers | E43: =SUM(INDEX(CLT[],MATCH($C$41,CLT[Code],0),4)) -> 3 | H43: =INDEX(LEN_REPORT[],15,MATCH(CONDITIONS!$E$3,Len_DB!$C$8:$H$8,0)+1) -> Number of layers | K43: =SUM(INDEX(CLT[],MATCH($C$41,CLT[Code],0),4)) -> 3
B45: =INDEX(LEN_REPORT[],16,MATCH(CONDITIONS!$E$3,Len_DB!$C$8:$H$8,0)+1) -> Effective inertia | C45: Jeff,s | E45: =MAX(J_MidSpan[#Totals]) -> 2.6E+07 | F45: mm4 | H45: =INDEX(LEN_REPORT[],16,MATCH(CONDITIONS!$E$3,Len_DB!$C$8:$H$8,0)+1) -> Effective inertia | I45: Jeff,ms | K45: =MAX(J_Support[#Totals]) -> 8.8E+06 | L45: mm4
B46: =INDEX(LEN_REPORT[],17,MATCH(CONDITIONS!$E$3,Len_DB!$C$8:$H$8,0)+1) -> Effective area | C46: Aeff,s | E46: =MAX(A_MidSpan[#Totals]) -> 36718 | F46: mm2 | H46: =INDEX(LEN_REPORT[],17,MATCH(CONDITIONS!$E$3,Len_DB!$C$8:$H$8,0)+1) -> Effective area | I46: Aeff,ms | K46: =MAX(A_Support[#Totals]) -> 12600 | L46: mm2
B48: =INDEX(LEN_REPORT[],18,MATCH(CONDITIONS!$E$3,Len_DB!$C$8:$H$8,0)+1) -> Design loads on slab surface
B50: =INDEX(LEN_REPORT[],19,MATCH(CONDITIONS!$E$3,Len_DB!$C$8:$H$8,0)+1) -> Permanent loads | C50: g1,k + g2,k | E50: =Input!$E$14 -> 2.50 | F50: kN/m2 | H50: =INDEX(LEN_REPORT[],22,MATCH(CONDITIONS!$E$3,Len_DB!$C$8:$H$8,0)+1) -> Load duration | I50: =Input!$I$14 -> Medium term
B51: =INDEX(LEN_REPORT[],20,MATCH(CONDITIONS!$E$3,Len_DB!$C$8:$H$8,0)+1) -> Accidental loads | C51: qk | E51: =Input!$E$15 -> 2.00 | F51: kN/m2
B52: =INDEX(LEN_REPORT[],21,MATCH(CONDITIONS!$E$3,Len_DB!$C$8:$H$8,0)+1) -> Partial factor | C52: ψ2,1 | E52: =Input!$E$16 -> 0.3 | F52: kN/m2 | H52: =INDEX(LEN_REPORT[],23,MATCH(CONDITIONS!$E$3,Len_DB!$C$8:$H$8,0)+1) -> Service class | I52: =Input!$I$15 -> 1
B56: =INDEX(LEN_REPORT[],24,MATCH(CONDITIONS!$E$3,Len_DB!$C$8:$H$8,0)+1) -> Design loads on the beam
B58: =INDEX(LEN_REPORT[],26,MATCH(CONDITIONS!$E$3,Len_DB!$C$8:$H$8,0)+1) -> Influence span | C58: i | E58: =Input!$E$30/1000 -> 0.80 | F58: m
B59: =INDEX(LEN_REPORT[],19,MATCH(CONDITIONS!$E$3,Len_DB!$C$8:$H$8,0)+1) -> Permanent loads | C59: gk = g1,k + g2,k | E59: =E50*E58 -> 2.00 | F59: kN/m2
B60: =INDEX(LEN_REPORT[],20,MATCH(CONDITIONS!$E$3,Len_DB!$C$8:$H$8,0)+1) -> Accidental loads | C60: qk | E60: =E51*E58 -> 1.60 | F60: kN/m2
B65: =INDEX(LEN_REPORT[],27,MATCH(CONDITIONS!$E$3,Len_DB!$C$8:$H$8,0)+1) -> (1) Slab
B67: =INDEX(LEN_REPORT[],28,MATCH(CONDITIONS!$E$3,Len_DB!$C$8:$H$8,0)+1) -> Wood type | C67: =Input!$C$22 -> C24 - EN338:2016 | H67: kmod,g+q | I67: =INDEX(kmod[],MATCH($I$52,kmod[CS],0),MATCH($I$50,kmod[#Headers],0)) -> 0.8
H68: kmod,g | I68: =INDEX(kmod[],MATCH($I$52,kmod[CS],0),2) -> 0.6
H69: kcrack | I69: 0.7
B71: =INDEX(LEN_REPORT[],29,MATCH(CONDITIONS!$E$3,Len_DB!$C$8:$H$8,0)+1) -> Characteristics | I71: g + q | J71: g
B72: fm,k | C72: =INDEX(TimberType[],MATCH(Input!$C$22,TimberType[Classe],0),MATCH(B72,TimberType[#Headers],0)) -> 24.00 | D72: MPa | H72: fm,d | I72: =C72*(I67)/$K$151 -> 15.36 | J72: =C72*I68/$K$151 -> 11.52 | K72: MPa
B73: ft,0,k | C73: =INDEX(TimberType[],MATCH(Input!$C$22,TimberType[Classe],0),MATCH(B73,TimberType[#Headers],0)) -> 14.50 | D73: MPa | H73: ft,0,d | I73: =C73*I67/$K$151 -> 9.28 | J73: =C73*I68/$K$151 -> 6.96 | K73: MPa
B74: ft,90,k | C74: =INDEX(TimberType[],MATCH(Input!$C$22,TimberType[Classe],0),MATCH(B74,TimberType[#Headers],0)) -> 0.40 | D74: MPa | H74: ft,90,d | I74: =C74*I67/$K$151 -> 0.26 | J74: =C74*I68/$K$151 -> 0.19 | K74: MPa
B75: fc,0,k | C75: =INDEX(TimberType[],MATCH(Input!$C$22,TimberType[Classe],0),MATCH(B75,TimberType[#Headers],0)) -> 21.00 | D75: MPa | H75: fc,0,d | I75: =C75*I67/$K$151 -> 13.44 | J75: =C75*I68/$K$151 -> 10.08 | K75: MPa
B76: fc,90,k | C76: =INDEX(TimberType[],MATCH(Input!$C$22,TimberType[Classe],0),MATCH(B76,TimberType[#Headers],0)) -> 2.50 | D76: MPa | H76: fc,90,d | I76: =C76*I67/$K$151 -> 1.60 | J76: =C76*I68/$K$151 -> 1.20 | K76: MPa
B77: fv,k | C77: =INDEX(TimberType[],MATCH(Input!$C$22,TimberType[Classe],0),MATCH(B77,TimberType[#Headers],0)) -> 4.00 | D77: MPa | H77: fv,d | I77: =C77*I67/$K$151*I69 -> 1.72 | J77: =C77*I68/$K$151*I69 -> 1.29 | K77: MPa
B78: frs,k | C78: =Input!$E$31 -> 1.20 | D78: MPa | H78: frs,d | I78: =C78*I67/$K$152 -> 0.77 | J78: =C78*I68/$K$152 -> 0.58 | K78: MPa
B80: E0,mean | C80: =INDEX(TimberType[],MATCH(Input!$C$22,TimberType[Classe],0),MATCH(B80,TimberType[#Headers],0)) -> 11000 | D80: MPa
B81: E0,05 | C81: =INDEX(TimberType[],MATCH(Input!$C$22,TimberType[Classe],0),MATCH(B81,TimberType[#Headers],0)) -> 7400 | D81: MPa
B82: Gmean | C82: =INDEX(TimberType[],MATCH(Input!$C$22,TimberType[Classe],0),MATCH(B82,TimberType[#Headers],0)) -> 690 | D82: MPa
B83: G05 | C83: =INDEX(TimberType[],MATCH(Input!$C$22,TimberType[Classe],0),MATCH(B83,TimberType[#Headers],0)) -> 0 | D83: MPa
B85: ρk | C85: =INDEX(TimberType[],MATCH(Input!$C$22,TimberType[Classe],0),MATCH(B85,TimberType[#Headers],0)) -> 350 | D85: kg/m3
B87: =INDEX(LEN_REPORT[],30,MATCH(CONDITIONS!$E$3,Len_DB!$C$8:$H$8,0)+1) -> (2) Rib beam
B89: =INDEX(LEN_REPORT[],28,MATCH(CONDITIONS!$E$3,Len_DB!$C$8:$H$8,0)+1) -> Wood type | C89: =Input!$I$22 -> GL24h - UNI EN14080:2013 | H89: kmod,g+q | I89: =INDEX(kmod[],MATCH($I$52,kmod[CS],0),MATCH($I$50,kmod[#Headers],0)) -> 0.8
H90: kmod,g | I90: =INDEX(kmod[],MATCH($I$52,kmod[CS],0),2) -> 0.6
H91: kcrack | I91: 0.7
B93: =INDEX(LEN_REPORT[],29,MATCH(CONDITIONS!$E$3,Len_DB!$C$8:$H$8,0)+1) -> Characteristics | I93: g + q | J93: g
B94: fm,k | C94: =INDEX(TimberType[],MATCH(Input!$I$22,TimberType[Classe],0),MATCH(B94,TimberType[#Headers],0)) -> 24.00 | D94: MPa | H94: fm,d | I94: =C94*I89/$K$152 -> 15.36 | J94: =C94*I90/$K$151 -> 11.52 | K94: MPa
B95: ft,0,k | C95: =INDEX(TimberType[],MATCH(Input!$I$22,TimberType[Classe],0),MATCH(B95,TimberType[#Headers],0)) -> 19.20 | D95: MPa | H95: ft,0,d | I95: =C95*I89/$K$152 -> 12.29 | J95: =C95*I90/$K$151 -> 9.22 | K95: MPa
B96: ft,90,k | C96: =INDEX(TimberType[],MATCH(Input!$I$22,TimberType[Classe],0),MATCH(B96,TimberType[#Headers],0)) -> 0.50 | D96: MPa | H96: ft,90,d | I96: =C96*I89/$K$152 -> 0.32 | J96: =C96*I90/$K$151 -> 0.24 | K96: MPa
B97: fc,0,k | C97: =INDEX(TimberType[],MATCH(Input!$I$22,TimberType[Classe],0),MATCH(B97,TimberType[#Headers],0)) -> 24.00 | D97: MPa | H97: fc,0,d | I97: =C97*I89/$K$152 -> 15.36 | J97: =C97*I90/$K$151 -> 11.52 | K97: MPa
B98: fc,90,k | C98: =INDEX(TimberType[],MATCH(Input!$I$22,TimberType[Classe],0),MATCH(B98,TimberType[#Headers],0)) -> 2.50 | D98: MPa | H98: fc,90,d | I98: =C98*I89/$K$152 -> 1.60 | J98: =C98*I90/$K$151 -> 1.20 | K98: MPa
B99: fv,k | C99: =INDEX(TimberType[],MATCH(Input!$I$22,TimberType[Classe],0),MATCH(B99,TimberType[#Headers],0)) -> 3.50 | D99: MPa | H99: fv,d | I99: =C99*I89/$K$152*I91 -> 1.50 | J99: =C99*I90/$K$151*I91 -> 1.13 | K99: MPa
B100: frs,k | C100: =Input!$E$31 -> 1.20 | D100: MPa | H100: frs,d | I100: =C100*I89/$K$152 -> 0.77 | J100: =C100*I90/$K$152 -> 0.58 | K100: MPa
B102: E0,mean | C102: =INDEX(TimberType[],MATCH(Input!$I$22,TimberType[Classe],0),MATCH(B102,TimberType[#Headers],0)) -> 11500 | D102: MPa
B103: E0,05 | C103: =INDEX(TimberType[],MATCH(Input!$I$22,TimberType[Classe],0),MATCH(B103,TimberType[#Headers],0)) -> 9600 | D103: MPa
B104: Gmean | C104: =INDEX(TimberType[],MATCH(Input!$I$22,TimberType[Classe],0),MATCH(B104,TimberType[#Headers],0)) -> 650 | D104: MPa
B105: G05 | C105: =INDEX(TimberType[],MATCH(Input!$I$22,TimberType[Classe],0),MATCH(B105,TimberType[#Headers],0)) -> 540 | D105: MPa
B107: ρk | C107: =INDEX(TimberType[],MATCH(Input!$I$22,TimberType[Classe],0),MATCH(B107,TimberType[#Headers],0)) -> 385 | D107: kg/m3
B112: =INDEX(LEN_REPORT[],31,MATCH(CONDITIONS!$E$3,Len_DB!$C$8:$H$8,0)+1) -> Geometry
B114: =INDEX(LEN_REPORT[],27,MATCH(CONDITIONS!$E$3,Len_DB!$C$8:$H$8,0)+1) -> (1) Slab | H114: =INDEX(LEN_REPORT[],30,MATCH(CONDITIONS!$E$3,Len_DB!$C$8:$H$8,0)+1) -> (2) Rib beam
B116: =INDEX(LEN_REPORT[],33,MATCH(CONDITIONS!$E$3,Len_DB!$C$8:$H$8,0)+1) -> Height | C116: h1 | E116: =Input!$E$29 -> 80 | F116: mm | H116: =INDEX(LEN_REPORT[],36,MATCH(CONDITIONS!$E$3,Len_DB!$C$8:$H$8,0)+1) -> Height | I116: h2 | K116: =Input!$K$29 -> 260 | L116: mm
B117: =INDEX(LEN_REPORT[],34,MATCH(CONDITIONS!$E$3,Len_DB!$C$8:$H$8,0)+1) -> Base | C117: b1 | E117: =Input!E30 -> 800 | F117: mm | H117: =INDEX(LEN_REPORT[],37,MATCH(CONDITIONS!$E$3,Len_DB!$C$8:$H$8,0)+1) -> Base | I117: b2 | K117: =Input!$K$30 -> 150 | L117: mm
I118: b2,min | K118: =Input!K28 -> 150 | L118: mm
B119: =INDEX(LEN_REPORT[],35,MATCH(CONDITIONS!$E$3,Len_DB!$C$8:$H$8,0)+1) -> Beam span | C119: ℓ | E119: =Input!$E$33 -> 6000 | F119: mm
B123: =INDEX(LEN_REPORT[],38,MATCH(CONDITIONS!$E$3,Len_DB!$C$8:$H$8,0)+1) -> Connection stiffness
B125: =INDEX(LEN_REPORT[],10,MATCH(CONDITIONS!$E$3,Len_DB!$C$8:$H$8,0)+1) -> At support | H125: =INDEX(LEN_REPORT[],11,MATCH(CONDITIONS!$E$3,Len_DB!$C$8:$H$8,0)+1) -> At mid span
B127: =INDEX(LEN_REPORT[],39,MATCH(CONDITIONS!$E$3,Len_DB!$C$8:$H$8,0)+1) -> Sharp metal type: | H127: =INDEX(LEN_REPORT[],39,MATCH(CONDITIONS!$E$3,Len_DB!$C$8:$H$8,0)+1) -> Sharp metal type:
B129: =Input!$C$41 -> SHARP METAL + TBS MAX@a ≤ 100mm | H129: =Input!$I$41 -> SHARP METAL + TBS MAX@a ≤ 100mm
B131: =INDEX(LEN_REPORT[],40,MATCH(CONDITIONS!$E$3,Len_DB!$C$8:$H$8,0)+1) -> Influence lenght | C131: ℓ/4 | E131: =Input!E42 -> 1500 | F131: mm | H131: =INDEX(LEN_REPORT[],40,MATCH(CONDITIONS!$E$3,Len_DB!$C$8:$H$8,0)+1) -> Influence lenght | I131: ℓ/2 | K131: =Input!K42 -> 3000 | L131: mm
B133: =INDEX(LEN_REPORT[],41,MATCH(CONDITIONS!$E$3,Len_DB!$C$8:$H$8,0)+1) -> Number of SHARP METAL | E133: =Input!E43 -> 2 | H133: =INDEX(LEN_REPORT[],41,MATCH(CONDITIONS!$E$3,Len_DB!$C$8:$H$8,0)+1) -> Number of SHARP METAL | K133: =Input!K43 -> 1
B135: =INDEX(LEN_REPORT[],42,MATCH(CONDITIONS!$E$3,Len_DB!$C$8:$H$8,0)+1) -> TBS MAX diameter | C135: d | E135: =Input!E44 -> 8 | F135: mm | H135: =INDEX(LEN_REPORT[],42,MATCH(CONDITIONS!$E$3,Len_DB!$C$8:$H$8,0)+1) -> TBS MAX diameter | I135: d | K135: =Input!K44 -> 8 | L135: mm
B136: emin | E136: =Input!E45 -> 25 | F136: mm | H136: emin | K136: =Input!K45 -> 25 | L136: mm
B137: a4,c,min | C137: 5 ⋅ d | E137: =Input!E46 -> 40 | F137: mm | H137: a4,c,min | I137: 5 ⋅ d | K137: =Input!K46 -> 40 | L137: mm
B141: =INDEX(LEN_REPORT[],43,MATCH(CONDITIONS!$E$3,Len_DB!$C$8:$H$8,0)+1) -> ELS Stiffness | C141: Kser | E141: ='sharp metal'!C9*0.75+'sharp metal'!G9*0.25 -> 2.4E+05 | F141: N/mm | H141: =INDEX(LEN_REPORT[],43,MATCH(CONDITIONS!$E$3,Len_DB!$C$8:$H$8,0)+1) -> ELS Stiffness | I141: Kser | K141: =E141 -> 2.4E+05 | L141: N/mm
B142: =INDEX(LEN_REPORT[],44,MATCH(CONDITIONS!$E$3,Len_DB!$C$8:$H$8,0)+1) -> ULS Stiffness | C142: Kser | E142: =2/3*E141 -> 1.6E+05 | F142: N/mm | H142: =INDEX(LEN_REPORT[],44,MATCH(CONDITIONS!$E$3,Len_DB!$C$8:$H$8,0)+1) -> ULS Stiffness | I142: Kser | K142: =E142 -> 1.6E+05 | L142: N/mm
B143: =INDEX(LEN_REPORT[],45,MATCH(CONDITIONS!$E$3,Len_DB!$C$8:$H$8,0)+1) -> SHARP METAL lenght | C143: seq | D143: = | E143: 1000 | F143: mm | H143: =INDEX(LEN_REPORT[],45,MATCH(CONDITIONS!$E$3,Len_DB!$C$8:$H$8,0)+1) -> SHARP METAL lenght | I143: seq | J143: = | K143: 1000 | L143: mm
B145: =INDEX(LEN_REPORT[],46,MATCH(CONDITIONS!$E$3,Len_DB!$C$8:$H$8,0)+1) -> Connection design resistance | C145: Rd,g | E145: ='sharp metal'!C14*I90/MAX($K$150) -> 68121 | F145: N | H145: =INDEX(LEN_REPORT[],46,MATCH(CONDITIONS!$E$3,Len_DB!$C$8:$H$8,0)+1) -> Connection design resistance | I145: Rd,g | K145: ='sharp metal'!G14*I90/K150 -> 34061 | L145: N
C146: Rd,g+q | E146: ='sharp metal'!C14*I89/MAX($K$150) -> 90828 | F146: N | I146: Rd,g+q | K146: ='sharp metal'!G14*I89/K150 -> 45414 | L146: N
B148: =INDEX(LEN_REPORT[],47,MATCH(CONDITIONS!$E$3,Len_DB!$C$8:$H$8,0)+1) -> Coefficients
C150: kdef | E150: =INDEX(kdef[],MATCH($I$52,kdef[CS],0),2) -> 0.69 | H150: Connections | I150: γm SLU,con | K150: =INDEX(γ[],MATCH(LEFT(I150,2),γ[γ],0),MATCH(Input!$I$5,γ[#Headers],0)) -> 1.30
C151: kh, el 1 | E151: =IF(F151="C",IF(E116<=150,MIN((150/E116)^0.2,1.3),1),IF(E116<600,MIN((600/E116)^0.1,1.1),1)) -> 1.13 | F151: =IF(LEFT(Input!$C$22,1)="C","C",IF(LEFT(Input!$C$22,2)="GL","GL","err")) -> C | H151: (1) Slab | I151: γm,SLU,1 | K151: =INDEX(γ[],MATCH(I151,γ[γ],0),MATCH(Input!$I$5,γ[#Headers],0)) -> 1.25
C152: kh, el 2 | E152: =IF(F152="C",IF(K116<=150,MIN((150/K116)^0.2,1.3),1),IF(K116<600,MIN((600/K116)^0.1,1.1),1)) -> 1.09 | F152: =IF(LEFT(Input!$I$22,1)="C","C",IF(LEFT(Input!$I$22,2)="GL","GL","err")) -> GL | H152: (2) Rib beam | I152: γm,SLU,2 | K152: =INDEX(γ[],MATCH(I152,γ[γ],0),MATCH(Input!$I$5,γ[#Headers],0)) -> 1.25
B155: =INDEX(LEN_REPORT[],48,MATCH(CONDITIONS!$E$3,Len_DB!$C$8:$H$8,0)+1) -> Loads and internal actions
B157: =INDEX(LEN_REPORT[],49,MATCH(CONDITIONS!$E$3,Len_DB!$C$8:$H$8,0)+1) -> Permanent loads | C157: g1,k + g2,k | E157: =$E$59 -> 2 | F157: kN/m2
B158: =INDEX(LEN_REPORT[],50,MATCH(CONDITIONS!$E$3,Len_DB!$C$8:$H$8,0)+1) -> Accidental loads | C158: qk | E158: =$E$60 -> 1.6 | F158: kN/m2
B160: =INDEX(LEN_REPORT[],51,MATCH(CONDITIONS!$E$3,Len_DB!$C$8:$H$8,0)+1) -> Design load (permanent) | G160: =(Dati!$K$78*E157) -> 2.7 | H160: kN/m
B161: =INDEX(LEN_REPORT[],52,MATCH(CONDITIONS!$E$3,Len_DB!$C$8:$H$8,0)+1) -> Design load | G161: =(Dati!$K$78*E157+Dati!$K$79*E158) -> 5.1 | H161: kN/m
B165: =INDEX(LEN_REPORT[],53,MATCH(CONDITIONS!$E$3,Len_DB!$C$8:$H$8,0)+1) -> ULS combinations
B167: =INDEX(LEN_REPORT[],54,MATCH(CONDITIONS!$E$3,Len_DB!$C$8:$H$8,0)+1) -> Bending moment | E167: =$G$160*$E$119^2/8/10^6 -> 12.15 | F167: kNm | H167: =INDEX(LEN_REPORT[],54,MATCH(CONDITIONS!$E$3,Len_DB!$C$8:$H$8,0)+1) -> Bending moment | K167: =$G$161*$E$119^2/8/10^6 -> 22.95 | L167: kNm
B168: =INDEX(LEN_REPORT[],55,MATCH(CONDITIONS!$E$3,Len_DB!$C$8:$H$8,0)+1) -> Shear force | E168: =$G$160*$E$119/2/10^3 -> 8.10 | F168: kN | H168: =INDEX(LEN_REPORT[],55,MATCH(CONDITIONS!$E$3,Len_DB!$C$8:$H$8,0)+1) -> Shear force | K168: =$G$161*$E$119/2/10^3 -> 15.30 | L168: kN
B170: =INDEX(LEN_REPORT[],56,MATCH(CONDITIONS!$E$3,Len_DB!$C$8:$H$8,0)+1) -> Elements stiffness at support (t = 0)
B172: =INDEX(LEN_REPORT[],27,MATCH(CONDITIONS!$E$3,Len_DB!$C$8:$H$8,0)+1) -> (1) Slab | H172: =INDEX(LEN_REPORT[],30,MATCH(CONDITIONS!$E$3,Len_DB!$C$8:$H$8,0)+1) -> (2) Rib beam
B174: =INDEX(LEN_REPORT[],57,MATCH(CONDITIONS!$E$3,Len_DB!$C$8:$H$8,0)+1) -> Bending stiffness | C174: E0,meanJeff,s = E1J1 | E174: =C80*E45 -> 2.8E+11 | F174: Nmm2 | H174: =INDEX(LEN_REPORT[],57,MATCH(CONDITIONS!$E$3,Len_DB!$C$8:$H$8,0)+1) -> Bending stiffness | I174: E0,meanJeff,s = E2J2 | K174: =C102*K117*K116^3/12 -> 2.5E+12 | L174: Nmm2
B175: =INDEX(LEN_REPORT[],58,MATCH(CONDITIONS!$E$3,Len_DB!$C$8:$H$8,0)+1) -> Axial stiffness | C175: E0,meanAeff,s = E1A1 | E175: =C80*E46 -> 4.0E+08 | F175: N | H175: =INDEX(LEN_REPORT[],58,MATCH(CONDITIONS!$E$3,Len_DB!$C$8:$H$8,0)+1) -> Axial stiffness | I175: E0,meanAeff,s = E2A2 | K175: =C102*K116*K117 -> 4.5E+08 | L175: N
B177: =INDEX(LEN_REPORT[],60,MATCH(CONDITIONS!$E$3,Len_DB!$C$8:$H$8,0)+1) -> Composite system stiffness
B179: =INDEX(LEN_REPORT[],61,MATCH(CONDITIONS!$E$3,Len_DB!$C$8:$H$8,0)+1) -> Composite bending stiffness | E179: =K174+E174 -> 2.8E+12 | F179: Nmm2
B180: =INDEX(LEN_REPORT[],62,MATCH(CONDITIONS!$E$3,Len_DB!$C$8:$H$8,0)+1) -> Composite axial stiffness | E180: =(K175*E175)/(K175+E175) -> 2.1E+08 | F180: N
B182: =INDEX(LEN_REPORT[],63,MATCH(CONDITIONS!$E$3,Len_DB!$C$8:$H$8,0)+1) -> Distance between centres of mass of (1) and (2) | E182: =E116/2+K116/2 -> 170 | F182: mm
B184: =INDEX(LEN_REPORT[],57,MATCH(CONDITIONS!$E$3,Len_DB!$C$8:$H$8,0)+1) -> Bending stiffness
E185: =E179+E180*E182^2 -> 9.0E+12 | F185: Nmm2
B187: =INDEX(LEN_REPORT[],64,MATCH(CONDITIONS!$E$3,Len_DB!$C$8:$H$8,0)+1) -> Composite system effective stiffness
E189: =(1+3.14^2*E175*E143/E142/E119^2)^-1 -> 0.59
E191: =(E189*E175*E182)/(E189*E175+K175) -> 59.08 | F191: mm
C193: a1 = a - a2 | E193: =E182-E191 -> 110.92 | F193: mm
E195: =E174+K174+K175*E191^2+E175*E193^2*E189 -> 7.3E+12 | F195: Nmm2
B197: =INDEX(LEN_REPORT[],65,MATCH(CONDITIONS!$E$3,Len_DB!$C$8:$H$8,0)+1) -> Composite system efficency | H197: =INDEX(LEN_REPORT[],66,MATCH(CONDITIONS!$E$3,Len_DB!$C$8:$H$8,0)+1) -> Connection stiffness
E199: =(E195-E179)/(E185-E179) -> 73.3% | I199: Ku | K199: =$E$142 -> 1.6E+05 | L199: N/mm
B203: =INDEX(LEN_REPORT[],59,MATCH(CONDITIONS!$E$3,Len_DB!$C$8:$H$8,0)+1) -> Elements stiffness at support at ULS [g] (t = ∞)
B205: =INDEX(LEN_REPORT[],27,MATCH(CONDITIONS!$E$3,Len_DB!$C$8:$H$8,0)+1) -> (1) Slab | H205: =INDEX(LEN_REPORT[],30,MATCH(CONDITIONS!$E$3,Len_DB!$C$8:$H$8,0)+1) -> (2) Rib beam
C207: ψ2,t=∞ | E207: 1 | I207: ψ2,t=∞ | K207: 1
E208: =$C$80/(1+E207*$E$150) -> 6508.87574 | F208: MPa | K208: =$C$102/(1+$E$150*E207) -> 6804.733728 | L208: MPa
B210: =INDEX(LEN_REPORT[],57,MATCH(CONDITIONS!$E$3,Len_DB!$C$8:$H$8,0)+1) -> Bending stiffness | C210: E0,meanJeff,s = E1J1 | E210: =E208*E45 -> 1.7E+11 | F210: Nmm2 | H210: =INDEX(LEN_REPORT[],57,MATCH(CONDITIONS!$E$3,Len_DB!$C$8:$H$8,0)+1) -> Bending stiffness | I210: E0,meanJeff,s = E2J2 | K210: =K208*$K$116^3*$K$117/12 -> 1.5E+12 | L210: Nmm2
B211: =INDEX(LEN_REPORT[],58,MATCH(CONDITIONS!$E$3,Len_DB!$C$8:$H$8,0)+1) -> Axial stiffness | C211: E0,meanAeff,s = E1A1 | E211: =E208*E46 -> 2.4E+08 | F211: N | H211: =INDEX(LEN_REPORT[],58,MATCH(CONDITIONS!$E$3,Len_DB!$C$8:$H$8,0)+1) -> Axial stiffness | I211: E0,meanAeff,s = E2A2 | K211: =K208*$K$116*$K$117 -> 2.7E+08 | L211: N
B213: =INDEX(LEN_REPORT[],64,MATCH(CONDITIONS!$E$3,Len_DB!$C$8:$H$8,0)+1) -> Composite system effective stiffness
B215: =INDEX(LEN_REPORT[],61,MATCH(CONDITIONS!$E$3,Len_DB!$C$8:$H$8,0)+1) -> Composite bending stiffness | E215: =K210+E210 -> 1.7E+12 | F215: Nmm2
B216: =INDEX(LEN_REPORT[],62,MATCH(CONDITIONS!$E$3,Len_DB!$C$8:$H$8,0)+1) -> Composite axial stiffness | E216: =(K211*E211)/(K211+E211) -> 1.3E+08 | F216: N
B218: =INDEX(LEN_REPORT[],63,MATCH(CONDITIONS!$E$3,Len_DB!$C$8:$H$8,0)+1) -> Distance between centres of mass of (1) and (2) | E218: =E182 -> 170.0 | F218: mm
B220: =INDEX(LEN_REPORT[],57,MATCH(CONDITIONS!$E$3,Len_DB!$C$8:$H$8,0)+1) -> Bending stiffness
E221: =E215+E216*E218^2 -> 5.3E+12 | F221: Nmm2
E222: =(1+3.14^2*E211*$E$143/E236/$E$119^2)^-1 -> 0.59
E224: =(E222*E211*E218)/(E222*E211+K211) -> 59.1 | F224: mm
C226: a1 = a - a2 | E226: =E218-E224 -> 110.9 | F226: mm
E228: =E210+K210+K211*E224^2+E211*E226^2*E222 -> 4.3E+12 | F228: Nmm2
B230: =INDEX(LEN_REPORT[],65,MATCH(CONDITIONS!$E$3,Len_DB!$C$8:$H$8,0)+1) -> Composite system efficency
E232: =(E228-E215)/(E221-E215) -> 73.3%
B234: =INDEX(LEN_REPORT[],66,MATCH(CONDITIONS!$E$3,Len_DB!$C$8:$H$8,0)+1) -> Connection stiffness
E236: =$E$142/(1+$E$150*E207) -> 9.5E+04 | F236: N/mm
B239: =INDEX(LEN_REPORT[],67,MATCH(CONDITIONS!$E$3,Len_DB!$C$8:$H$8,0)+1) -> Elements stiffness at support at ULS [g+q] (t = ∞)
B241: =INDEX(LEN_REPORT[],27,MATCH(CONDITIONS!$E$3,Len_DB!$C$8:$H$8,0)+1) -> (1) Slab | H241: =INDEX(LEN_REPORT[],30,MATCH(CONDITIONS!$E$3,Len_DB!$C$8:$H$8,0)+1) -> (2) Rib beam
C243: ψ2,t=∞ | E243: =E52 -> 0.3 | I243: ψ2,t=∞ | K243: =E243 -> 0.3
E244: =$C$80/(1+E243*$E$150) -> 9113.504557 | F244: MPa | K244: =$C$102/(1+$E$150*K243) -> 9527.754764 | L244: MPa
B246: =INDEX(LEN_REPORT[],57,MATCH(CONDITIONS!$E$3,Len_DB!$C$8:$H$8,0)+1) -> Bending stiffness | C246: E0,meanJeff,s = E1J1 | E246: =E244*E45 -> 2.342433088e+11 | F246: Nmm2 | H246: =INDEX(LEN_REPORT[],57,MATCH(CONDITIONS!$E$3,Len_DB!$C$8:$H$8,0)+1) -> Bending stiffness | I246: E0,meanJeff,s = E2J2 | K246: =K244*$K$116^3*$K$117/12 -> 2.093247722e+12 | L246: Nmm2
B247: =INDEX(LEN_REPORT[],58,MATCH(CONDITIONS!$E$3,Len_DB!$C$8:$H$8,0)+1) -> Axial stiffness | C247: E0,meanAeff,s = E1A1 | E247: =E244*E46 -> 334633298.3 | F247: N | H247: =INDEX(LEN_REPORT[],58,MATCH(CONDITIONS!$E$3,Len_DB!$C$8:$H$8,0)+1) -> Axial stiffness | I247: E0,meanAeff,s = E2A2 | K247: =K244*$K$116*$K$117 -> 371582435.8 | L247: N
B249: =INDEX(LEN_REPORT[],64,MATCH(CONDITIONS!$E$3,Len_DB!$C$8:$H$8,0)+1) -> Composite system effective stiffness
B251: =INDEX(LEN_REPORT[],61,MATCH(CONDITIONS!$E$3,Len_DB!$C$8:$H$8,0)+1) -> Composite bending stiffness | E251: =K246+E246 -> 2.32749103e+12 | F251: Nmm2
B252: =INDEX(LEN_REPORT[],62,MATCH(CONDITIONS!$E$3,Len_DB!$C$8:$H$8,0)+1) -> Composite axial stiffness | E252: =(K247*E247)/(K247+E247) -> 176070639.7 | F252: N
B254: =INDEX(LEN_REPORT[],63,MATCH(CONDITIONS!$E$3,Len_DB!$C$8:$H$8,0)+1) -> Distance between centres of mass of (1) and (2) | E254: =E182 -> 170 | F254: mm
B256: =INDEX(LEN_REPORT[],57,MATCH(CONDITIONS!$E$3,Len_DB!$C$8:$H$8,0)+1) -> Bending stiffness
E257: =#REF!+#REF!*#REF!^2 ->  | F257: Nmm2
E258: =(1+3.14^2*#REF!*$E$143/#REF!/$E$119^2)^-1 -> 
E260: =(E258*#REF!*#REF!)/(E258*#REF!+#REF!) ->  | F260: mm
C262: a1 = a - a2 | E262: =#REF!-E260 ->  | F262: mm
E264: =#REF!+#REF!+#REF!*E260^2+#REF!*E262^2*E258 ->  | F264: Nmm2
B266: =INDEX(LEN_REPORT[],65,MATCH(CONDITIONS!$E$3,Len_DB!$C$8:$H$8,0)+1) -> Composite system efficency
E268: =(E264-#REF!)/(E257-#REF!) -> 
B270: =INDEX(LEN_REPORT[],66,MATCH(CONDITIONS!$E$3,Len_DB!$C$8:$H$8,0)+1) -> Connection stiffness
E272: =$E$142/(1+$E$150*E243) -> 1.3E+05 | F272: N/mm
B277: CALCOLO RIGIDEZZE SISTEMA
B279: Rigidezza elemento 1:
C281: flessionale | E281: E1J1 | F281: = | H281: Nmm2
C283: assiale | E283: E1A1 | F283: = | H283: N
B285: Rigidezza elemento 2:
C287: flessionale | E287: E2J2 | F287: = | H287: Nmm2
C289: assiale | E289: E2A2 | F289: = | H289: N
B292: Rigidezze sistema composto a t = ∞
C294: flessionale | E294: (EJ0)t=∞ | F294: = | H294: Nmm2
C297: assiale | E297: (EA0)t=∞ | F297: = | H297: N
B299: Distanza fra baricentro trave e baricentro soletta:
E301: a | F301: = | H301: mm
B303: Rigidezze sistema composto t = ∞
B306: flessionale | F306: = | G306: =E251+E252*E254^2 -> 7.415932518e+12 | H306: Nmm2
B309: Rigidezze efficace sistema composto
B311: Parametri
E312: γ1 | F312: = | G312: =(1+3.14^2*E247*$E$143/E272/$E$119^2)^-1 -> 0.5914239062
F315: = | G315: =(G312*E247*E254)/(G312*E247+K247) -> 59.07842242 | H315: mm
F318: = | G318: =E254-G315 -> 110.9215776 | H318: mm
E320: (EJeff)t=∞ | F320: = | G320: =E246+K246+K247*G315^2+E247*G318^2*G312 -> 6.059416728e+12 | H320: Nmm2
B324: Efficienza sistema composto
F326: = | G326: =(G320-E251)/(G306-E251) -> 0.7334123242
B331: VERIFICHE SLU t = 0 (G+Q)
B333: ELEMENTO 1
B335: Sforzo normale agente sull'elemento 1
F338: = | G338: =E189*E175*E193/E195*K167*10^3 -> 83.14496127 | H338: kN
B341: Momento agente sull'elemento 1
F344: = | G344: =E174/E195*K167 -> 0.8871949526 | H344: kNm
B349: Tensioni massime da sforzo normale e momento
F352: = | G352: =G338*10^3/E46 -> 2.264395048 | H352: MPa
F355: = | G355: =10^6*G344*E116/2/E45 -> 1.380693482 | H355: MPa
B359: VERIFICA TENSIONALE
B361: Verifica presso flessione
E363: =G352/I75+G355/I72 -> 0.258370673 | F363: =IF(E363<=G363,"≤",">") -> ≤ | G363: 1 | H363: =IF(E363<G363,"Verifica soddisfatta","Verifica non soddisfatta") -> Verifica soddisfatta
B367: Verifica sforzi di taglio
F371: = | G371: ='Relazione di Calcolo AT SUPPORT'!G512 -> 0.3118309354 | H371: MPa
K372: fvd
C377: =G371 -> 0.3118309354 | D377: =IF(C377<=E377,"≤",">") -> ≤ | E377: =I77 -> 1.7152 | F377: =IF(C377<E377,"Verifica soddisfatta","Verifica non soddisfatta") -> Verifica soddisfatta
B378: Verifica rolling shear
F382: = | G382: ='Relazione di Calcolo AT SUPPORT'!G524 -> 0.1559154677 | H382: MPa
K383: fvd
C389: =G382 -> 0.1559154677 | D389: =IF(C389<=E389,"≤",">") -> ≤ | E389: =I78 -> 0.768 | F389: =IF(C389<E389,"Verifica soddisfatta","Verifica non soddisfatta") -> Verifica soddisfatta
A394: ELEMENTO 2
A396: Sforzo normale agente sull'elemento 2
F398: = | G398: =1*K175*E191/E195*K167*10^3 -> 83.14496127 | H398: kN
B401: Momento agente sull'elemento 2
F404: = | G404: =K174/E195*K167 -> 7.928161631 | H404: kNm
B407: Tensioni massime da sforzo normale e momento
F410: = | G410: =G398*1000/K116/K117 -> 2.131922084 | H410: MPa
F413: = | G413: =G404*10^6*6/K117/K116^2 -> 4.6912199 | H413: MPa
B416: VERIFICA TENSIONALE
B418: Verifica tensoflessione
E420: =G410/I95+G413/I94 -> 0.4789142256 | F420: =IF(E420<=G420,"≤",">") -> ≤ | G420: 1 | H420: =IF(E420<G420,"Verifica soddisfatta","Verifica non soddisfatta") -> Verifica soddisfatta
... 213 more rows

Sheet Relazione di Calcolo AT SUPPORT (hidden)
H2: Rev27/18
C5: Comune di: | D5: =IF(Input!#REF!="","",Input!#REF!) -> 
C7: Provincia di: | D7: =IF(Input!#REF!="","",Input!#REF!) -> 
C9: Progettato da: | D9: =IF(Input!#REF!="","",Input!#REF!) -> 
B39: STRUTTURA COMPOSTA LEGNO-LEGNO
B47: Committente: | C47: =IF(Input!#REF!="","",Input!#REF!) -> 
B49: Data: | C49: =IF(Input!#REF!="","",Input!#REF!) -> 
B51: Progettista: | C51: =IF(Input!#REF!="","",Input!#REF!) -> 
B53: Normativa: | C53: =Input!#REF! -> 
B62: Le verifiche sono effettuate in accordo con il D.M. Infrastrutture 17/1/2008 e la C.M. 2/2/2009 n. 617 del C.S.LL.PP, integrate ove necessario con la UNI-EN 1995-1-1/2014. Le proprietà dei materiali fanno riferimento alle seguenti normative: UNI-EN 338:2016, UNI-EN 14080:2013.
B73: Per le caratteristiche dei connettori, si è fatto riferimento alle seguenti normative di prodotto: - European Technical Approval ETA-11/0030
B89: E' compito del progettista verificare la correttezza dei risultati forniti dal presente foglio di calcolo.
B104: DEFINIZIONE PANNELLO CLT VICINO AL SUPPORTO
B105: =Input!C28 -> 80mm-3- 30 20 30 | F105: =COUNTIF(EJeff!C10:C20,">0")&" strati" -> 3 strati
D106: Jeff(mm4) = | F106: =MAX(J_Support[#Totals]) -> 8820000
D107: Aeff(mm2) = | F107: =MAX(A_Support[#Totals]) -> 12600
D109: VALUTAZIONE CON EUROCODICE 5 en 1995 1-1/2025
B121: CARICHI AGENTI SULLA SUPERFICIE SOLAIO (kN/m2)
B123: CARICHI PERMANENTI | F123: G1k+G2k | G123: = | H123: =Input!$E$14 -> 2.50 | I123: kN/m2
B125: CARICHI ACCIDENTALI | F125: Qk | G125: = | H125: =Input!$E$15 -> 2.00 | I125: kN/m2
F126: Ψ2,i | G126: = | H126: =Input!$E$16 -> 0.3 | I126: kN/m2
B128: Durata del carico | D128: =LOOKUP(M139,Dati!$B$78:$B$82,Dati!$A$78:$A$82) -> Long term
B129: Classe di servizio | D129: =Input!$I$15 -> 1
B132: CARICHI AGENTI SU TRAVE COMPOSTA (kN/m)
B134: Interasse travetti/larghezza d'influenza | F134: i | G134: = | H134: =Input!E30/1000 -> 0.80 | I134: m
B136: CARICHI PERMANENTI | F136: g1k+g2k | G136: = | H136: =H123*H134 -> 2.00
L137: tipo legno | M137: 18
B138: CARICHI ACCIDENTALI | F138: qk | G138: = | H138: =H125*H134 -> 1.60 | L138: Classe | M138: 1 | O138: perm. durata
L139: Durata | M139: 3 | O139: 1
B141: MATERIALE LEGNO ELEMENTO 1
B143: Tipo Legno | D143: =Input!$C$22 -> C24 - EN338:2016
B145: Caratteristiche meccaniche
B147: Caratteristiche (MPa) | F147: Progetto (MPa)
B148: flessione | C148: fm,k | D148: =INDEX(TimberType[],MATCH(Input!$C$22,TimberType[Classe],0),MATCH(C148,TimberType[#Headers],0)) -> 24.0 | F148: [G+Q] | H148: [G]
B149: trazione parallela | C149: ft,0,k | D149: =INDEX(TimberType[],MATCH(Input!$C$22,TimberType[Classe],0),MATCH(C149,TimberType[#Headers],0)) -> 14.5 | F149: fm,d | G149: =D148*(I156)/$G$224 -> 13.4 | H149: fm,d | I149: =D148*I157/$G$224 -> 11.5
B150: trazione perpendic | C150: ft,90,k | D150: =INDEX(TimberType[],MATCH(Input!$C$22,TimberType[Classe],0),MATCH(C150,TimberType[#Headers],0)) -> 0.4 | F150: ft,0,,d | G150: =D149*I156/$G$224 -> 8.1 | H150: ft,0,,d | I150: =D149*I157/$G$224 -> 7.0
B151: compress parall | C151: fc,0,k | D151: =INDEX(TimberType[],MATCH(Input!$C$22,TimberType[Classe],0),MATCH(C151,TimberType[#Headers],0)) -> 21.0 | F151: ft,90,d | G151: =D150*I156/$G$224 -> 0.2 | H151: ft,90,d | I151: =D150*I157/$G$224 -> 0.2
B152: compres perpe | C152: fc,90,k | D152: =INDEX(TimberType[],MATCH(Input!$C$22,TimberType[Classe],0),MATCH(C152,TimberType[#Headers],0)) -> 2.5 | F152: fc,0,d | G152: =D151*I156/$G$224 -> 11.8 | H152: fc,0,d | I152: =D151*I157/$G$224 -> 10.1
B153: taglio | C153: fv,k | D153: =INDEX(TimberType[],MATCH(Input!$C$22,TimberType[Classe],0),MATCH(C153,TimberType[#Headers],0)) -> 4.0 | F153: fc,90,d | G153: =D152*I156/$G$224 -> 1.4 | H153: fc,90,d | I153: =D152*I157/$G$224 -> 1.2
B154: Modulo elastico (MPa) | F154: fv,d | G154: =D153*I156/$G$224*I158 -> 1.5 | H154: fv,d | I154: =D153*I157/$G$224*I158 -> 1.3
B155: medio parallelo | C155: E0,mean | D155: =INDEX(TimberType[],MATCH(Input!$C$22,TimberType[Classe],0),MATCH(C155,TimberType[#Headers],0)) -> 11000 | F155: frs,d | G155: =D161*I156/$G$224 -> 0.7 | H155: frs,d | I155: =D161*I157/$G$224 -> 0.6
B156: caratt parallelo | C156: E0,05 | D156: =INDEX(TimberType[],MATCH(Input!$C$22,TimberType[Classe],0),MATCH(C156,TimberType[#Headers],0)) -> 7400 | H156: kmod [G+Q] | I156: =INDEX(kmod[],MATCH(D129,kmod[CS],0),MATCH(D128,kmod[#Headers],0)) -> 0.70
B157: mod taglio medio | C157: Gmean | D157: =INDEX(TimberType[],MATCH(Input!$C$22,TimberType[Classe],0),MATCH(C157,TimberType[#Headers],0)) -> 690 | H157: kmod [G] | I157: =INDEX(kmod[],MATCH(D129,kmod[CS],0),2) -> 0.60
B158: mod taglio caratt | C158: G05 | D158: =INDEX(TimberType[],MATCH(Input!$C$22,TimberType[Classe],0),MATCH(C158,TimberType[#Headers],0)) -> 0 | H158: kcrack | I158: 0.67
B159: Massa volumica (kg/m3)
B160: caratteristica | C160: ρk | D160: =INDEX(TimberType[],MATCH(Input!$C$22,TimberType[Classe],0),MATCH(C160,TimberType[#Headers],0)) -> 350
B161: rolling shear | C161: frs,k | D161: =Input!$E$31 -> 1.2
B164: MATERIALE LEGNO ELEMENTO 2
B167: Tipo Legno | D167: =Input!$I$22 -> GL24h - UNI EN14080:2013
B169: Caratteristiche meccaniche
B171: Caratteristiche (MPa) | F171: Progetto (MPa)
B172: flessione | C172: fm,k | D172: =INDEX(TimberType[],MATCH(Input!$I$22,TimberType[Classe],0),MATCH(C172,TimberType[#Headers],0)) -> 24.0 | F172: [G+Q] | H172: [G]
B173: trazione parallela | C173: ft,0,k | D173: =INDEX(TimberType[],MATCH(Input!$I$22,TimberType[Classe],0),MATCH(C173,TimberType[#Headers],0)) -> 19.2 | F173: fm,d | G173: =D172*I180/$G$225 -> 13.4 | H173: fm,d | I173: =D172*I181/$G$224 -> 11.5
B174: trazione perpendic | C174: ft,90,k | D174: =INDEX(TimberType[],MATCH(Input!$I$22,TimberType[Classe],0),MATCH(C174,TimberType[#Headers],0)) -> 0.5 | F174: ft,0,,d | G174: =D173*I180/$G$225 -> 10.8 | H174: ft,0,,d | I174: =D173*I181/$G$224 -> 9.2
B175: compress parall | C175: fc,0,k | D175: =INDEX(TimberType[],MATCH(Input!$I$22,TimberType[Classe],0),MATCH(C175,TimberType[#Headers],0)) -> 24.0 | F175: ft,90,d | G175: =D174*I180/$G$225 -> 0.3 | H175: ft,90,d | I175: =D174*I181/$G$224 -> 0.2 | L175: tipo legno | M175: 3
B176: compres perpe | C176: fc,90,k | D176: =INDEX(TimberType[],MATCH(Input!$I$22,TimberType[Classe],0),MATCH(C176,TimberType[#Headers],0)) -> 2.5 | F176: fc,0,d | G176: =D175*I180/$G$225 -> 13.4 | H176: fc,0,d | I176: =D175*I181/$G$224 -> 11.5 | L176: Classe | M176: =M138 -> 1 | O176: perm. durata
B177: taglio | C177: fv,k | D177: =INDEX(TimberType[],MATCH(Input!$I$22,TimberType[Classe],0),MATCH(C177,TimberType[#Headers],0)) -> 3.5 | F177: fc,90,d | G177: =D176*I180/$G$225 -> 1.4 | H177: fc,90,d | I177: =D176*I181/$G$224 -> 1.2 | L177: Durata | M177: =M139 -> 3 | O177: 1
B178: Modulo elastico (MPa) | F178: fv,d | G178: =D177*I180/$G$225*I182 -> 1.3 | H178: fv,d | I178: =D177*I181/$G$224*I182 -> 1.1
B179: medio parallelo | C179: E0,mean | D179: =INDEX(TimberType[],MATCH(Input!$I$22,TimberType[Classe],0),MATCH(C179,TimberType[#Headers],0)) -> 11500
B180: caratt parallelo | C180: E0,05 | D180: =INDEX(TimberType[],MATCH(Input!$I$22,TimberType[Classe],0),MATCH(C180,TimberType[#Headers],0)) -> 9600 | H180: kmod [G+Q] | I180: =INDEX(kmod[],MATCH($D$129,kmod[CS],0),MATCH($D$128,kmod[#Headers],0)) -> 0.70
B181: mod taglio medio | C181: Gmean | D181: =INDEX(TimberType[],MATCH(Input!$I$22,TimberType[Classe],0),MATCH(C181,TimberType[#Headers],0)) -> 650 | H181: kmod [G] | I181: =INDEX(kmod[],MATCH($D$129,kmod[CS],0),2) -> 0.60
B182: mod taglio caratt | C182: G05 | D182: =INDEX(TimberType[],MATCH(Input!$I$22,TimberType[Classe],0),MATCH(C182,TimberType[#Headers],0)) -> 540 | H182: kcrack | I182: 0.67
B183: Massa volumica (kg/m3)
B184: caratteristica | C184: ρk | D184: =INDEX(TimberType[],MATCH(Input!$I$22,TimberType[Classe],0),MATCH(C184,TimberType[#Headers],0)) -> 385
B185: rolling shear | C185: frs,k | D185: =Input!$E$31 -> 1.2
B186: GEOMETRIA
B188: Altezza elemento 1 | D188: h1 | E188: = | G188: =Input!$E$29 -> 80 | H188: mm
B189: Base elemento 1 | D189: b1 | E189: = | G189: =Input!$E$30 -> 800 | H189: mm
B191: Altezza elemento 2 | D191: h2 | E191: = | G191: =Input!$K$29 -> 260 | H191: mm
B192: Base elemento 2 | D192: b2 | E192: = | G192: =Input!$K$30 -> 150 | H192: mm
B194: Altezza tavolato esistente | D194: t | E194: = | G194: 0 | H194: mm
B196: Luce solaio | D196: L | E196: = | G196: =Input!$E$33 -> 6000 | H196: mm
B199: SISTEMA DI CONNESSIONE
B200: TIPOLOGIA SHARP | D200: ='sharp metal'!C4 -> SHARP METAL + TBS MAX@a ≤ 100mm
B201: Lunghezza unitaria | D201: seq | E201: = | G201: 1000 | H201: mm
B202: numero sharp affiancati | G202: =Input!$E$43 -> 2
B204: Rigidezza connessione
B206: Per lo stato limite di esercizio
D207: Kser | E207: = | G207: ='sharp metal'!C9*0.75+'sharp metal'!G9*0.25 -> 240188 | H207: N/mm
B209: Per lo stato limite ultimo
D210: Ku | G210: =2/3*G207 -> 160125 | H210: N/mm
B211: Resistenza di progetto della connessione:
D212: Rd,G | E212: = | G212: ='sharp metal'!C14*I181/MAX($G$223) -> 68121 | H212: N
D214: Rd,G+Q | E214: = | G214: ='sharp metal'!C14*I180/MAX($G$223) -> 79475 | H214: N
B215: COEFFICIENTI
B217: kdef | E217: = | G217: =INDEX(kdef[],MATCH($D$129,kdef[CS],0),2) -> 0.69
B219: kh, el 1 | C219: =IF(LEFT(Input!$C$22,1)="C","C",IF(LEFT(Input!$C$22,2)="GL","GL","err")) -> C | E219: = | G219: =IF(C219="C",IF(G188<=150,MIN((150/G188)^0.2,1.3),1),IF(G188<600,MIN((600/G188)^0.1,1.1),1)) -> 1.13
B221: kh, el 2 | C221: =IF(LEFT(Input!$I$22,1)="C","C",IF(LEFT(Input!$I$22,2)="GL","GL","err")) -> GL | E221: = | G221: =IF(C221="C",IF(G191<=150,MIN((150/G191)^0.2,1.3),1),IF(G191<600,MIN((600/G191)^0.1,1.1),1)) -> 1.09
B223: γm SLU,con | C223: unioni | E223: = | G223: =INDEX(γ[],MATCH(LEFT(B223,2),γ[γ],0),MATCH(Input!$I$5,γ[#Headers],0)) -> 1.3
B224: γm,SLU,1 | C224: elemento 1 | E224: = | G224: =INDEX(γ[],MATCH(B224,γ[γ],0),MATCH(Input!$I$5,γ[#Headers],0)) -> 1.25 | H224: EN 1995-1-1-2025
B225: γm,SLU,2 | C225: elemento 2 | E225: = | G225: =INDEX(γ[],MATCH(B225,γ[γ],0),MATCH(Input!$I$5,γ[#Headers],0)) -> 1.25
B228: SOLLECITAZIONI
B230: Carico permanente | D230: Gk | E230: = | G230: ='Relazione di Calcolo AT SUPPORT'!H136 -> 2.00 | H230: kN/m2
B231: Sovraccarico | D231: Qk1 | E231: = | G231: ='Relazione di Calcolo AT SUPPORT'!H138 -> 1.60 | H231: kN/m2
B233: Carichi permanenti e accidentali [G+Q]
C234: = | E234: = | G234: =(1.35*G230+1.5*G231) -> 5.1 | H234: kN/m
B235: Carichi permanenti [G]
E236: = | G236: =(1.35*G230) -> 2.7 | H236: kN/m
B238: Sollecitazioni SLU [G+Q]
E239: = | G239: =$G$234*$G$196^2/8/10^6 -> 22.95 | H239: kNm
E240: = | G240: =$G$234*$G$196/2/10^3 -> 15.30 | H240: kN
B242: Sollecitazioni SLU [G]
E243: = | G243: =$G$236*$G$196^2/8/10^6 -> 12.15 | H243: kNm
E244: = | G244: =$G$236*$G$196/2/10^3 -> 8.10 | H244: kN
B247: CALCOLO RIGIDEZZE t = 0
B249: Rigidezza el. 1
C252: flessionale | E252: E1J1 | F252: = | G252: =D155*F106 -> 9.70E+10 | H252: Nmm2
C255: assiale | E255: E1A1 | F255: = | G255: =D155*F107 -> 1.39E+08 | H255: N
B257: Rigidezza el. 2
C260: flessionale | E260: E2J2 | F260: = | G260: =D179*G192*G191^3/12 -> 2.53E+12 | H260: Nmm2
C263: assiale | E263: E2A2 | F263: = | G263: =D179*G191*G192 -> 448500000 | H263: N
B266: Rigidezze sistema composto a t=0
C269: flessionale | E269: (EJ0)t=0 | F269: = | G269: =G260+G252 -> 2.62E+12 | H269: Nmm2
C272: assiale | E272: (EA0)t=0 | F272: = | G272: =(G263*G255)/(G263+G255) -> 1.06E+08 | H272: N
B275: Distanza fra baricentro elemento1 ed elemento 2
F278: = | G278: =G188/2+G191/2+G194 -> 170 | H278: mm
B280: Rigidezze sistema composto t = ∞
B282: flessionale | F282: = | G282: =G269+G272*G278^2 -> 5.68E+12 | H282: Nmm2
B285: Rigidezze efficace sistema composto
B287: Parametri
F290: = | G290: =(1+3.14^2*G255*G201/G210/G196^2)^-1 -> 0.80836730
F294: = | G294: =(G290*G255*G278)/(G290*G255+G263) -> 33.979306 | H294: mm
F300: = | G300: =G278-G294 -> 136.02 | H300: mm
F303: = | G303: =G252+G260+G263*G294^2+G255*G300^2*G290 -> 5.21432E+12 | H303: Nmm2
B306: Efficienza sistema composto
F309: = | G309: =(G303-G269)/(G282-G269) -> 0.85
B313: CALCOLO RIGIDEZZE t = ∞ [G]
B315: Rigidezza a t = ∞ elemento 1
F318: = | G318: =$D$155/(1+G321*$G$217) -> 6509 | H318: GPa
B321: Ψ2,i (per la valutazione della rigidezza a t = ∞) | F321: = | G321: 1
B324: Rigidezza a t = ∞ dell'elemento 2
F327: = | G327: =$D$179/(1+$G$217*G321) -> 6805 | H327: MPa
B333: Rigidezza a t = ∞ della connessione
F336: = | G336: =$G$210/(1+$G$217*G321) -> 94749 | H336: N/mm
B340: CALCOLO RIGIDEZZE SISTEMA
B342: Rigidezza elemento 1:
C344: flessionale | E344: E1J1 | F344: = | G344: =G318*F106 -> 5.74E+10 | H344: Nmm2
C346: assiale | E346: E1A1 | F346: = | G346: =G318*F107 -> 8.20E+07 | H346: N
B348: Rigidezza elemento 2:
C350: flessionale | E350: E2J2 | F350: = | G350: =G327*$G$191^3*$G$192/12 -> 1.50E+12 | H350: Nmm2
C352: assiale | E352: E2A2 | F352: = | G352: =G327*$G$191*$G$192 -> 2.65E+08 | H352: N
B356: Rigidezze sistema composto a t = ∞
C358: flessionale | E358: (EJ0)t=∞ | F358: = | G358: =G350+G344 -> 1.55E+12 | H358: Nmm2
C361: assiale | E361: (EA0)t=∞ | F361: = | G361: =(G352*G346)/(G352+G346) -> 6.27E+07 | H361: N
B363: Distanza fra baricentro trave e baricentro soletta:
E365: a | F365: = | G365: =G278 -> 170 | H365: mm
B367: Rigidezze sistema composto t = ∞
B370: flessionale | F370: = | G370: =G358+G361*G365^2 -> 3.36E+12 | H370: Nmm2
B373: Rigidezze efficace sistema composto
B375: Parametri
E376: γ1 | F376: = | G376: =(1+3.14^2*G346*$G$201/G336/$G$196^2)^-1 -> 0.80837
F379: = | G379: =(G376*G346*G365)/(G376*G346+G352) -> 33.98 | H379: mm
F382: = | G382: =G365-G379 -> 136.02 | H382: mm
E384: (EJeff)t=∞ | F384: = | G384: =G344+G350+G352*G379^2+G346*G382^2*G376 -> 3.0854E+12 | H384: Nmm2
B386: Efficienza sistema composto
F389: = | G389: =(G384-G358)/(G370-G358) -> 0.85
B392: CALCOLO RIGIDEZZE t = ∞ [G + Q]
B394: Rigidezza a t = ∞ elemento 1
F397: = | G397: =$D$155/(1+G400*$G$217) -> 9113.505 | H397: GPa
B400: Ψ2,i (per la valutazione della rigidezza a t = ∞) | F400: = | G400: =H126 -> 0.3
B403: Rigidezza a t = ∞ dell'elemento 2
F406: = | G406: =$D$179/(1+$G$217*G400) -> 9527.755 | H406: MPa
B411: Rigidezza a t = ∞ della connessione
F414: = | G414: =$G$210/(1+$G$217*G400) -> 132664 | H414: N/mm
B418: CALCOLO RIGIDEZZE SISTEMA
B420: Rigidezza elemento 1:
C422: flessionale | E422: E1J1 | F422: = | G422: =G397*F106 -> 8.03811E+10 | H422: Nmm2
C424: assiale | E424: E1A1 | F424: = | G424: =G397*F107 -> 1.1483E+08 | H424: N
B426: Rigidezza elemento 2:
C428: flessionale | E428: E2J2 | F428: = | G428: =G406*$G$191^3*$G$192/12 -> 2.09E+12 | H428: Nmm2
C430: assiale | E430: E2A2 | F430: = | G430: =G406*$G$191*$G$192 -> 3.72E+08 | H430: N
B433: Rigidezze sistema composto a t = ∞
C435: flessionale | E435: (EJ0)t=∞ | F435: = | G435: =G428+G422 -> 2.17E+12 | H435: Nmm2
C438: assiale | E438: (EA0)t=∞ | F438: = | G438: =(G430*G424)/(G430+G424) -> 8.77E+07 | H438: N
B440: Distanza fra baricentro trave e baricentro soletta:
E442: a | F442: = | G442: =G278 -> 170 | H442: mm
B444: Rigidezze sistema composto t = ∞
B447: flessionale | F447: = | G447: =G435+G438*G442^2 -> 4.71E+12 | H447: Nmm2
B450: Rigidezze efficace sistema composto
B452: Parametri
E453: γ1 | F453: = | G453: =(1+3.14^2*G424*$G$201/G414/$G$196^2)^-1 -> 0.80837
F456: = | G456: =(G453*G424*G442)/(G453*G424+G430) -> 33.979 | H456: mm
F459: = | G459: =G442-G456 -> 136 | H459: mm
E461: (EJeff)t=∞ | F461: = | G461: =G422+G428+G430*G456^2+G424*G459^2*G453 -> 4.32E+12 | H461: Nmm2
B464: Efficienza sistema composto
F467: = | G467: =(G461-G435)/(G447-G435) -> 0.85
B472: VERIFICHE SLU t = 0 (G+Q)
B474: ELEMENTO 1
B476: Sforzo normale agente sull'elemento 1
F479: = | G479: =G290*G255*G300/G303*G239*10^3 -> 67.075 | H479: kN
B482: Momento agente sull'elemento 1
F485: = | G485: =G252/G303*G239 -> 0.427 | H485: kNm
B490: Tensioni massime da sforzo normale e momento
F493: = | G493: =G479*10^3/F107 -> 5.323 | H493: MPa
F496: = | G496: =10^6*G485*G188/2/F106 -> 1.9366 | H496: MPa
B500: VERIFICA TENSIONALE
B502: Verifica presso flessione
E504: =G493/G152+G496/G149 -> 0.5968 | F504: =IF(E504<=G504,"≤",">") -> ≤ | G504: 1 | H504: =IF(E504<G504,"Verifica soddisfatta","Verifica non soddisfatta") -> Verifica soddisfatta
B508: Verifica sforzi di taglio
F512: = | G512: =IF(F105="3 strati",D155/G303*(EJeff!C14*(G300+G188/2-EJeff!C14/2)+EJeff!C16*(G300+G188/2-EJeff!C16/2))*G240*1000,IF(F105="5 strati",D155/G303*(EJeff!C13*(G300+G188/2-EJeff!C13/2)+EJeff!C15*(G300+G188/2-EJeff!C15/2)+EJeff!C17*(G300+G188/2-EJeff!C17/2))*G240*1000,IF(F105="7 strati",D155/G303*(EJeff!C12*(G300+G188/2-EJeff!C12/2)+EJeff!C14*(G300+G188/2-EJeff!C14/2)+EJeff!C15*(G300+G188/2-EJeff!C16/2)+EJeff!C18*(G300+G188/2-EJeff!C19/2))*G240*1000,"errore"))) -> 0.3118 | H512: MPa | J512: =D155/G303*(EJeff!C14*(G300+G188/2-EJeff!C14/2)+EJeff!C16*(G300+G188/2-EJeff!C16/2))*G240*1000 -> 0.31183
... 164 more rows

Sheet EJeff (hidden)
B1: DO NOT TOUCH THESE. Change in DATA or in CLT PANEL
B2: b(mm) | D2: E0,mean | E2: E90,mean | F2: Gmean | G2: Gr,mean | J2: bef,ij(mm) | K2: =(Input!$E$30-Input!$K$30)*(0.5-0.35*((Input!$E$30-Input!$K$30)/Input!$E$33)^0.9*($D$3*MAX($X$21:$Y$21)/($F$3*SUM($X$21:$Y$21)))^0.45) -> 230.99 | AF2: bef,ij(mm) | AG2: =MAX(C10:C20) -> 30.00 | AH2: [mm]
B3: =Input!$E$30 -> 800 | D3: =INDEX(TimberType[],MATCH(Input!$C$22,TimberType[Classe],0),MATCH(D2,TimberType[#Headers],0)) -> 11000 | E3: =INDEX(TimberType[],MATCH(Input!$C$22,TimberType[Classe],0),MATCH(E2,TimberType[#Headers],0)) -> 370 | F3: =INDEX(TimberType[],MATCH(Input!$C$22,TimberType[Classe],0),MATCH(F2,TimberType[#Headers],0)) -> 690 | G3: 69 | H3: =Input!$C$28 -> 80mm-3- 30 20 30 | J3: bef | K3: =K2*2+Input!$K$30 -> 611.97 | L3: scelto in INPUT | M3: =Input!C28 -> 80mm-3- 30 20 30 | X3: NUOVO EUROCODICE5 O STORANESO | AF3: bef | AG3: =AG2*2+Input!$K$30 -> 210.00 | AH3: [mm]
AA5: At mid span | AF5: At support
B6: Berechnung von Brettsperrholzelementen
B7: Se non c'è lamella, indicare d=0 | J7: INERZIA | L7: Biegesteifigkeiten | N7: Drillsteifigkeit1) | O7: Plattenschubsteifigkeit | R7: Plattenschubsteifigkeit | U7: Dehnsteifigkeiten | W7: Scheibenschubsteifigkeit | X7: area | AA7: INERZIA CON BASE EFFICACE | AC7: area CON BASE EFFICACE | AF7: INERZIA CON BASE EFFICACE | AH7: area CON BASE EFFICACE
B8: Lagen | C8: di | D8: Exx,i | E8: Eyy,i | F8: Gxz,i | G8: Gyz,i | H8: Gxy,i=Gyx,i | I8: zi | J8: mm^4 | L8: [MNm²/m] ∙10-3 | N8: [MN/m] ∙10-3 | O8: [MN/m] ∙10-3 | R8: [MN/m] ∙10-3 | U8: [MN/m] | W8: [MN/m] | X8: mm^2 | AA8: [mm4] | AC8: [mm2] | AF8: [mm4] | AH8: [mm2]
C9: [mm] | D9: [MN/m²] | E9: [MN/m²] | F9: [MN/m²] | G9: [MN/m²] | H9: [MN/m²] | I9: [mm] | J9: jxx,i | K9: Jy,i | L9: Bx,i | M9: By,i | N9: Bxy,i | O9: EIx,B,i | P9: cxz,i | Q9: 1/Sxz,i | R9: EIy,B,i | S9: cxz,i | T9: 1/Sxz,i | U9: Dx,i | V9: Dx,i | W9: Dxj,i | X9: AX | Y9: AY | AA9: jxx,i | AB9: Jy,i | AC9: AX | AD9: AY | AF9: jxx,i | AG9: Jy,i | AH9: AX | AI9: AY
B10: 11 | C10: 0 | D10: =D3 -> 11000 | E10: =E3 -> 370 | F10: =F3 -> 690 | G10: =G3 -> 69 | H10: 690 | I10: =I11-C11/2-C10/2 -> -40 | J10: =IF(D10>E10,(C10^3/12+C10*(I10^2))*$B$3,0) -> 0 | K10: =IF(D10<E10,(C10^3/12+C10*(I10^2))*$B$3,0) -> 0 | L10: =(D10*(C10/1000)^3/12+D10*C10/1000*(I10/1000)^2)*10^3 -> 0.00 | M10: =(E10*(C10/1000)^3/12+E10*C10/1000*(I10/1000)^2)*1000 -> 0.00 | N10: =(2*H10*C10/1000*(I10/1000)^2+H10*(C10/1000)^3/6)*1000 -> 0.00 | O10: =(D10*C10/1000*(I10/1000)^2)*1000 -> 0 | P10: =1/$O$21*D10*C10/1000*I10/1000*10^3 -> 0 | Q10: =IF(C10=0,"",(C10/1000)/(3*F10)*(P10+P10^2)*1000) ->  | R10: =(E10*C10/1000*(I10/1000)^2)*1000 -> 0 | S10: =1/$R$21*E10*C10/1000*I10/1000*10^3 -> 0 | T10: =IF(C10=0,"",(C10/1000)/(3*G10)*(S10+S10^2)*1000) ->  | U10: =C10/1000*D10 -> 0 | V10: =C10/1000*E10 -> 0 | W10: =C10/1000*H10 -> 0 | X10: =IF(D10>E10,$B$3*C10,0) -> 0 | Y10: =IF(D10<E10,$B$3*C10,0) -> 0 | AA10: =IF(D10>E10,(C10^3/12+C10*(I10^2))*$K$3,0) -> 0 | AB10: =IF(D10<E10,(C10^3/12+C10*(I10^2))*$K$3,0) -> 0 | AC10: =IF(D10>E10,$K$3*C10,0) -> 0 | AD10: =IF(D10<E10,$K$3*C10,0) -> 0 | AF10: =IF(D10>E10,(C10^3/12+C10*(I10^2))*$AG$3,0) -> 0 | AG10: =IF(D10<E10,(C10^3/12+C10*(I10^2))*$AG$3,0) -> 0 | AH10: =IF(D10>E10,$AG$3*C10,0) -> 0 | AI10: =IF(D10<E10,$AG$3*C10,0) -> 0
B11: 9 | C11: =_xlfn.XLOOKUP(Input!$C$28,'CLT panel'!G4:G48,'CLT panel'!P4:P48,0) -> 0 | D11: =E3 -> 370 | E11: =D3 -> 11000 | F11: =G3 -> 69 | G11: =F3 -> 690 | H11: 690 | I11: =I12-C12/2-C11/2 -> -40 | J11: =IF(D11>E11,(C11^3/12+C11*(I11^2))*$B$3,0) -> 0 | K11: =IF(D11<E11,(C11^3/12+C11*(I11^2))*$B$3,0) -> 0 | L11: =(D11*(C11/1000)^3/12+D11*C11/1000*(I11/1000)^2)*10^3 -> 0.00 | M11: =(E11*(C11/1000)^3/12+E11*C11/1000*(I11/1000)^2)*1000 -> 0.00 | N11: 0.00 | O11: 0 | P11: =(1/$O$21*D11*C11/1000*I11/1000)*10^3+P10 -> 0 | Q11: =IF(C11=0,"",(C11/1000)/(3*F11)*(P10^2+P10*P11+P11^2)*1000) ->  | R11: 0 | S11: =(1/$R$21*E11*C11/1000*I11/1000)*10^3+S10 -> 0 | T11: =IF(C11=0,"",(C11/1000)/(3*G11)*(S10^2+S10*S11+S11^2)*1000) ->  | U11: 0 | V11: 0 | W11: 0 | X11: =IF(D11>E11,$B$3*C11,0) -> 0 | Y11: =IF(D11<E11,$B$3*C11,0) -> 0 | AA11: =IF(D11>E11,(C11^3/12+C11*(I11^2))*$K$3,0) -> 0 | AB11: =IF(D11<E11,(C11^3/12+C11*(I11^2))*$K$3,0) -> 0 | AC11: =IF(D11>E11,$K$3*C11,0) -> 0 | AD11: =IF(D11<E11,$K$3*C11,0) -> 0 | AF11: =IF(D11>E11,(C11^3/12+C11*(I11^2))*$AG$3,0) -> 0 | AG11: =IF(D11<E11,(C11^3/12+C11*(I11^2))*$AG$3,0) -> 0 | AH11: =IF(D11>E11,$AG$3*C11,0) -> 0 | AI11: =IF(D11<E11,$AG$3*C11,0) -> 0
B12: 7 | C12: =_xlfn.XLOOKUP(Input!$C$28,'CLT panel'!G4:G48,'CLT panel'!O4:O48,0) -> 0 | D12: =D3 -> 11000 | E12: =E3 -> 370 | F12: =F3 -> 690 | G12: =G3 -> 69 | H12: 690 | I12: =I13-C13/2-C12/2 -> -40 | J12: 0 | K12: 0 | L12: =(D12*(C12/1000)^3/12+D12*C12/1000*(I12/1000)^2)*10^3 -> 0.00 | M12: =(E12*(C12/1000)^3/12+E12*C12/1000*(I12/1000)^2)*1000 -> 0.00 | N12: 0.00 | O12: 0 | P12: 0 | R12: 0 | S12: 0 | U12: 0 | V12: 0 | W12: 0 | X12: 0 | Y12: 0 | AA12: 0 | AB12: 0 | AC12: 0 | AD12: 0 | AF12: 0 | AG12: 0 | AH12: 0 | AI12: 0
B13: 5 | C13: =_xlfn.XLOOKUP(Input!$C$28,'CLT panel'!G4:G48,'CLT panel'!N4:N48,0) -> 0 | D13: =E3 -> 370 | E13: =D3 -> 11000 | F13: =G3 -> 69 | G13: =F3 -> 690 | H13: 690 | I13: =I14-C14/2-C13/2 -> -40 | J13: 0 | K13: 0 | L13: =(D13*(C13/1000)^3/12+D13*C13/1000*(I13/1000)^2)*1000 -> 0.00 | M13: =(E13*(C13/1000)^3/12+E13*C13/1000*(I13/1000)^2)*1000 -> 0.00 | N13: 0.00 | O13: 0 | P13: 0 | R13: 0 | S13: 0 | U13: 0 | V13: 0 | W13: 0 | X13: 0 | Y13: 0 | AA13: 0 | AB13: 0 | AC13: 0 | AD13: 0 | AF13: 0 | AG13: 0 | AH13: 0 | AI13: 0
B14: 3 | C14: =_xlfn.XLOOKUP(Input!$C$28,'CLT panel'!G4:G48,'CLT panel'!M4:M48,0) -> 30 | D14: =D3 -> 11000 | E14: =E3 -> 370 | F14: =F3 -> 690 | G14: =G3 -> 69 | H14: 690 | I14: =-C15/2-C14/2 -> -25 | J14: 16800000 | K14: 0 | L14: =(D14*(C14/1000)^3/12+D14*C14/1000*(I14/1000)^2)*1000 -> 231.00 | M14: =(E14*(C14/1000)^3/12+E14*C14/1000*(I14/1000)^2)*1000 -> 7.77 | N14: 28.98 | O14: 206.25 | P14: -20 | Q14: 5.797101449 | R14: 6.9375 | S14: -20 | T14: 57.97101449 | U14: 330 | V14: 11.1 | W14: 20.7 | X14: 24000 | Y14: 0 | AA14: 12851440 | AB14: 0 | AC14: 18359 | AD14: 0 | AF14: 4410000 | AG14: 0 | AH14: 6300 | AI14: 0
B15: 0 | C15: =_xlfn.XLOOKUP(Input!$C$28,'CLT panel'!G4:G48,'CLT panel'!L4:L48,0) -> 20 | D15: =E3 -> 370 | E15: =D3 -> 11000 | F15: =G3 -> 69 | G15: =F3 -> 690 | H15: 690 | I15: 0 | J15: 0 | K15: 533333.3333 | L15: =(D15*(C15/1000)^3/12)*1000 -> 0.25 | M15: =E15*(C15/1000)^3/12*1000 -> 7.33 | N15: 0.92 | O15: 0 | P15: -20 | Q15: 115.942029 | R15: 0 | S15: -20 | T15: 11.5942029 | U15: 7.4 | V15: 220 | W15: 13.8 | X15: 0 | Y15: 16000 | AA15: 0 | AB15: 407982 | AC15: 0 | AD15: 12239 | AF15: 0 | AG15: 140000 | AH15: 0 | AI15: 4200
B16: 3 | C16: =C14 -> 30 | D16: =D3 -> 11000 | E16: =E3 -> 370 | F16: =F3 -> 690 | G16: =G3 -> 69 | H16: 690 | I16: =C15/2+C16/2 -> 25 | J16: 16800000 | K16: 0 | L16: =(D16*(C16/1000)^3/12+D16*C16/1000*(I16/1000)^2)*1000 -> 231.00 | M16: =(E16*(C16/1000)^3/12+E16*C16/1000*(I16/1000)^2)*1000 -> 7.77 | N16: 28.98 | O16: 206.25 | P16: 0 | Q16: 5.797101449 | R16: 6.9375 | S16: 0 | T16: 57.97101449 | U16: 330 | V16: 11.1 | W16: 20.7 | X16: 24000 | Y16: 0 | AA16: 12851440 | AB16: 0 | AC16: 18359 | AD16: 0 | AF16: 4410000 | AG16: 0 | AH16: 6300 | AI16: 0
B17: 5 | C17: =C13 -> 0 | D17: =E3 -> 370 | E17: =D3 -> 11000 | F17: =G3 -> 69 | G17: =F3 -> 690 | H17: 690 | I17: =I16+C16/2+C17/2 -> 40 | J17: 0 | K17: 0 | L17: =(D17*(C17/1000)^3/12+D17*C17/1000*(I17/1000)^2)*1000 -> 0.00 | M17: =(E17*(C17/1000)^3/12+E17*C17/1000*(I17/1000)^2)*1000 -> 0.00 | N17: 0.00 | O17: 0 | P17: 0 | R17: 0 | S17: 0 | U17: 0 | V17: 0 | W17: 0 | X17: 0 | Y17: 0 | AA17: 0 | AB17: 0 | AC17: 0 | AD17: 0 | AF17: 0 | AG17: 0 | AH17: 0 | AI17: 0
B18: 7 | C18: =C12 -> 0 | D18: =D3 -> 11000 | E18: =E3 -> 370 | F18: =F3 -> 690 | G18: =G3 -> 69 | H18: 690 | I18: =I17+C17/2+C18/2 -> 40 | J18: 0 | K18: 0 | L18: =(D18*(C18/1000)^3/12+D18*C18/1000*(I18/1000)^2)*1000 -> 0.00 | M18: =(E18*(C18/1000)^3/12+E18*C18/1000*(I18/1000)^2)*1000 -> 0.00 | N18: 0.00 | O18: 0 | P18: 0 | R18: 0 | S18: 0 | U18: 0 | V18: 0 | W18: 0 | X18: 0 | Y18: 0 | AA18: 0 | AB18: 0 | AC18: 0 | AD18: 0 | AF18: 0 | AG18: 0 | AH18: 0 | AI18: 0
B19: 9 | C19: =C11 -> 0 | D19: =E3 -> 370 | E19: =D3 -> 11000 | F19: =G3 -> 69 | G19: =F3 -> 690 | H19: 690 | I19: =I18+C18/2+C19/2 -> 40 | J19: 0 | K19: 0 | L19: =(D19*(C19/1000)^3/12+D19*C19/1000*(I19/1000)^2)*1000 -> 0.00 | M19: =(E19*(C19/1000)^3/12+E19*C19/1000*(I19/1000)^2)*1000 -> 0.00 | N19: 0.00 | O19: 0 | P19: 0 | R19: 0 | S19: 0 | U19: 0 | V19: 0 | W19: 0 | X19: 0 | Y19: 0 | AA19: 0 | AB19: 0 | AC19: 0 | AD19: 0 | AF19: 0 | AG19: 0 | AH19: 0 | AI19: 0
B20: 11 | C20: =C10 -> 0 | D20: =D3 -> 11000 | E20: =E3 -> 370 | F20: =F3 -> 690 | G20: =G3 -> 69 | H20: 690 | I20: =I19+C19/2+C20/2 -> 40 | J20: 0 | K20: 0 | L20: =(D20*(C20/1000)^3/12+D20*C20/1000*(I20/1000)^2)*1000 -> 0.00 | M20: =(E20*(C20/1000)^3/12+E20*C20/1000*(I20/1000)^2)*1000 -> 0.00 | N20: 0.00 | O20: 0 | P20: 0 | R20: 0 | S20: 0 | U20: 0 | V20: 0 | W20: 0 | X20: 0 | Y20: 0 | AA20: 0 | AB20: 0 | AC20: 0 | AD20: 0 | AF20: 0 | AG20: 0 | AH20: 0 | AI20: 0
B21: d= | C21: =SUM(C10:C20) -> 80 | J21: =SUM(J10:J20) -> 33600000.0 | K21: 533333.33 | L21: 462.2 | M21: 22.87 | N21: 58.88 | O21: 412.50 | Q21: =SUM(Q10:Q20) -> 127.54 | R21: =SUM(R10:R20) -> 13.88 | T21: =SUM(T10:T20) -> 127.54 | U21: 667.40 | V21: 242.20 | W21: 55.20 | X21: 48000 | Y21: 16000 | AA21: =SUBTOTAL(109,J_MidSpan[jxx,i]) -> 25702879 | AB21: =SUBTOTAL(109,J_MidSpan[Jy,i]) -> 407982 | AC21: =SUBTOTAL(109,A_MidSpan[AX]) -> 36718 | AD21: =SUBTOTAL(109,A_MidSpan[AY]) -> 12239 | AF21: =SUBTOTAL(109,J_Support[jxx,i]) -> 8820000 | AG21: =SUBTOTAL(109,J_Support[Jy,i]) -> 140000 | AH21: =SUBTOTAL(109,A_Support[AX]) -> 12600 | AI21: =SUBTOTAL(109,A_Support[AY]) -> 4200
B22: 1) Wenn keine Seitenverklebung vorhanden ist dann ist für die Drillsteifigkeit Bxy,i=0 anzusetzen | L22: =L21/M21 -> 20.21 | M22: =M21/L21 -> 0.05
O23: =O21/R21 -> 29.72972973
B29: Verwendete Formeln
B30: siehe Wordfile | F30: JA
B31: Schmalseitenverklebung | D31: JA | F31: NEIN
C32: Platten- und Scheibenberechnung
C33: Plattenberechnung (Reissner-Mindlin)
B34: Bx | C34: =L21/1000 -> 0.4622 | D34: 0 | E34: 0 | F34: 0 | G34: 0 | H34: 0 | I34: 0 | J34: 0
B35: By | C35: 0 | D35: =M21/1000 -> 0.023 | E35: 0 | F35: 0 | G35: 0 | H35: 0 | I35: 0 | J35: 0
B36: Bxy | C36: 0 | D36: 0 | E36: =IF(D31="JA",N21/1000,0) -> 0.059 | F36: 0 | G36: 0 | H36: 0 | I36: 0 | J36: 0
B37: Sx | C37: 0 | D37: 0 | E37: 0 | F37: =1/Q21*1000 -> 7.841 | G37: 0 | H37: 0 | I37: 0 | J37: 0
B38: Sy | C38: 0 | D38: 0 | E38: 0 | F38: 0 | G38: =1/T21*1000 -> 7.841 | H38: 0 | I38: 0 | J38: 0
B39: Sxy | C39: 0 | D39: 0 | E39: 0 | F39: 0 | G39: 0 | H39: =U21 -> 667.400 | I39: 0 | J39: 0
B40: Dx | C40: 0 | D40: 0 | E40: 0 | F40: 0 | G40: 0 | H40: 0 | I40: =V21 -> 242.200 | J40: 0
B41: Dy | C41: 0 | D41: 0 | E41: 0 | F41: 0 | G41: 0 | H41: 0 | I41: 0 | J41: =IF(D31="JA",W21,0.25*W21) -> 55.200
B43: Querdehnzahlen werden mit 0 angesetzt

Sheet sharp metal (hidden)
B2: At support | F2: At mid span
B4: INPUT L/4 | C4: =Input!C41 -> SHARP METAL + TBS MAX@a ≤ 100mm | F4: INPUT L/2 | G4: =Input!I41 -> SHARP METAL + TBS MAX@a ≤ 100mm
B5: b | C5: 50 | D5: mm | F5: b | G5: 50 | H5: mm
B6: n° | C6: =Input!$E$43 -> 2 | F6: n° | G6: =Input!$K$43 -> 1
B7: lef | C7: =MIN(0.9*1000,1000-10) -> 900 | D7: mm | F7: lef | G7: =MIN(0.9*1000,1000-10) -> 900 | H7: mm
B8: kv,0,0 | C8: =IF(C4=RefText_DB!$B$9,1.76,IF(C4=RefText_DB!$B$10,3.05,IF(C4=RefText_DB!$B$11,2.47,"errore"))) -> 3.05 | D8: N/mm3 | F8: kv,0,0 | G8: =IF(G4=RefText_DB!$B$9,1.76,IF(G4=RefText_DB!$B$10,3.05,IF(G4=RefText_DB!$B$11,2.47,"errore"))) -> 3.05 | H8: N/mm3
B9: Kv,ser | C9: =C8*C7*C6*C5 -> 274500 | D9: N/mm | F9: Kv,ser | G9: =G8*G7*G6*G5 -> 137250 | H9: N/mm
B11: fv,ref,k | C11: =IF(C4=RefText_DB!$B$9,0.81,IF(C4=RefText_DB!$B$10,1.72,IF(C4=RefText_DB!$B$11,1.02,"ERRORE"))) -> 1.72 | D11: N/mm2 | F11: fv,ref,k | G11: =IF(G4=RefText_DB!$B$9,0.81,IF(G4=RefText_DB!$B$10,1.72,IF(G4=RefText_DB!$B$11,1.02,"ERRORE"))) -> 1.72 | H11: N/mm2
B12: ρref,k | C12: 385 | D12: kg/m3 | F12: ρref,k | G12: 385 | H12: kg/m3
B13: ρ,k | C13: =MIN('Calculation Report'!C85,'Calculation Report'!C107) -> 350 | D13: kg/m3 | F13: ρ,k | G13: =MIN('Calculation Report'!C85,'Calculation Report'!C107) -> 350 | H13: kg/m3
B14: Fv,Rk | C14: =C5*C6*C7*C11*(C13/C12)^0.5 -> 147596 | D14: N | F14: Fv,Rk | G14: =G5*G6*G7*G11*(G13/G12)^0.5 -> 73798 | H14: N

Sheet CLT panel (hidden)
B2: CLT
C3: Prod | D3: h | E3: Layers | F3: Layers (code) | G3: Code | H3: 9 | I3: 7 | J3: 5 | K3: 3 | L3: 0 | M3: 3' | N3: 5' | O3: 7' | P3: 9'
C4: HASSLACHER | D4: =SUM(CLT[[#This Row],[9]:[9'']]) -> 60 | E4: =LEFT(CLT[[#This Row],[Layers (code)]],1) -> 3 | F4: 3 | G4: =_xlfn.CONCAT(D4, "mm-",F4,"s", "-",H4," ",I4," ",J4," ",K4," ",L4," ",M4," ",N4," ",O4," ",P4) -> 60mm-3s- 20 20 20 | K4: 20 | L4: 20 | M4: 20
C5: HASSLACHER | D5: =SUM(CLT[[#This Row],[9]:[9'']]) -> 80 | E5: =LEFT(CLT[[#This Row],[Layers (code)]],1) -> 3 | F5: 3 | G5: =_xlfn.CONCAT(D5, "mm-",F5, "-",H5," ",I5," ",J5," ",K5," ",L5," ",M5," ",N5," ",O5," ",P5) -> 80mm-3- 20 40 20 | K5: 20 | L5: 40 | M5: 20
C6: STORA | D6: =SUM(CLT[[#This Row],[9]:[9'']]) -> 80 | E6: =LEFT(CLT[[#This Row],[Layers (code)]],1) -> 3 | F6: 3 | G6: 80mm-3- 30 20 30 | K6: 30 | L6: 20 | M6: 30
C7: HASSLACHER | D7: =SUM(CLT[[#This Row],[9]:[9'']]) -> 90 | E7: =LEFT(CLT[[#This Row],[Layers (code)]],1) -> 3 | F7: 3 | G7: 90mm-3- 30 30 30 | K7: 30 | L7: 30 | M7: 30
C8: HASSLACHER | D8: =SUM(CLT[[#This Row],[9]:[9'']]) -> 100 | E8: =LEFT(CLT[[#This Row],[Layers (code)]],1) -> 3 | F8: 3 | G8: 100mm-3- 30 40 30 | K8: 30 | L8: 40 | M8: 30 | R8: 80308030803080
C9: HASSLACHER | D9: =SUM(CLT[[#This Row],[9]:[9'']]) -> 120 | E9: =LEFT(CLT[[#This Row],[Layers (code)]],1) -> 3 | F9: 3 | G9: 120mm-3- 40 40 40 | K9: 40 | L9: 40 | M9: 40 | R9: 80308030803080
C10: HASSLACHER | D10: =SUM(CLT[[#This Row],[9]:[9'']]) -> 100 | E10: =LEFT(CLT[[#This Row],[Layers (code)]],1) -> 5 | F10: 5 | G10: 100mm-5- 20 20 20 20 20 | J10: 20 | K10: 20 | L10: 20 | M10: 20 | N10: 20
C11: HASSLACHER | D11: =SUM(CLT[[#This Row],[9]:[9'']]) -> 120 | E11: =LEFT(CLT[[#This Row],[Layers (code)]],1) -> 5 | F11: 5 | G11: 120mm-5- 30 20 20 20 30 | J11: 30 | K11: 20 | L11: 20 | M11: 20 | N11: 30
C12: HASSLACHER | D12: =SUM(CLT[[#This Row],[9]:[9'']]) -> 140 | E12: =LEFT(CLT[[#This Row],[Layers (code)]],1) -> 5 | F12: 5 | G12: 140mm-5- 40 20 20 20 40 | J12: 40 | K12: 20 | L12: 20 | M12: 20 | N12: 40
C13: BINDER | D13: =SUM(CLT[[#This Row],[9]:[9'']]) -> 160 | E13: =LEFT(CLT[[#This Row],[Layers (code)]],1) -> 5 | F13: 5 | G13: 160mm-5- 40 20 40 20 40 | J13: 40 | K13: 20 | L13: 40 | M13: 20 | N13: 40 | R13: =_xlfn.CONCAT(H13,,I13,J13,K13,L13,M13,N13,O13,P13,Q13) -> 4020402040
C14: RUBNER | D14: =SUM(CLT[[#This Row],[9]:[9'']]) -> 160 | E14: =LEFT(CLT[[#This Row],[Layers (code)]],1) -> 5 | F14: 5 | G14: 160mm-5- 30 30 40 30 30 | J14: 30 | K14: 30 | L14: 40 | M14: 30 | N14: 30 | R14: 3030403030
C15: KLH | D15: =SUM(CLT[[#This Row],[9]:[9'']]) -> 170 | E15: =LEFT(CLT[[#This Row],[Layers (code)]],1) -> 5 | F15: 5 | G15: 170mm-5- 40 30 30 30 40 | J15: 40 | K15: 30 | L15: 30 | M15: 30 | N15: 40 | R15: 4030303040
C16: RUBNER | D16: =SUM(CLT[[#This Row],[9]:[9'']]) -> 170 | E16: =LEFT(CLT[[#This Row],[Layers (code)]],1) -> 5 | F16: 5 | G16: 170mm-5- 30 40 30 40 30 | J16: 30 | K16: 40 | L16: 30 | M16: 40 | N16: 30 | R16: 3040304030
C17: HASSLACHER | D17: =SUM(CLT[[#This Row],[9]:[9'']]) -> 180 | E17: =LEFT(CLT[[#This Row],[Layers (code)]],1) -> 5 | F17: 5 | G17: 180mm-5- 40 30 40 30 40 | J17: 40 | K17: 30 | L17: 40 | M17: 30 | N17: 40 | R17: 4030403040
C18: KLH | D18: =SUM(CLT[[#This Row],[9]:[9'']]) -> 180 | E18: =LEFT(CLT[[#This Row],[Layers (code)]],1) -> 7 | F18: 7 | G18: 180mm-7- 20 40 20 20 20 40 20 | I18: 20 | J18: 40 | K18: 20 | L18: 20 | M18: 20 | N18: 40 | O18: 20 | R18: 20402020204020
C19: RUBNER | D19: =SUM(CLT[[#This Row],[9]:[9'']]) -> 180 | E19: =LEFT(CLT[[#This Row],[Layers (code)]],1) -> 7 | F19: 7 | G19: 180mm-7- 30 20 30 20 30 20 30 | I19: 30 | J19: 20 | K19: 30 | L19: 20 | M19: 30 | N19: 20 | O19: 30 | R19: 30203020302030
C20: KLH | D20: =SUM(CLT[[#This Row],[9]:[9'']]) -> 190 | E20: =LEFT(CLT[[#This Row],[Layers (code)]],1) -> 5 | F20: 5 | G20: 190mm-5- 40 40 30 40 40 | J20: 40 | K20: 40 | L20: 30 | M20: 40 | N20: 40 | R20: 4040304040
C21: BINDER | D21: =SUM(CLT[[#This Row],[9]:[9'']]) -> 200 | E21: =LEFT(CLT[[#This Row],[Layers (code)]],1) -> 5 | F21: 5 | G21: 200mm-5- 60 20 40 20 60 | J21: 60 | K21: 20 | L21: 40 | M21: 20 | N21: 60 | R21: 6020402060
C22: HASSLACHER | D22: =SUM(CLT[[#This Row],[9]:[9'']]) -> 200 | E22: =LEFT(CLT[[#This Row],[Layers (code)]],1) -> 5 | F22: 5 | G22: 200mm-5- 40 40 40 40 40 | J22: 40 | K22: 40 | L22: 40 | M22: 40 | N22: 40 | R22: 4040404040
C23: HASSLACHER | D23: =SUM(CLT[[#This Row],[9]:[9'']]) -> 200 | E23: =LEFT(CLT[[#This Row],[Layers (code)]],1) -> 7 | F23: 7 | G23: 200mm-7- 30 30 30 20 30 30 30 | I23: 30 | J23: 30 | K23: 30 | L23: 20 | M23: 30 | N23: 30 | O23: 30 | R23: 30303020303030
C24: STORA | D24: =SUM(CLT[[#This Row],[9]:[9'']]) -> 200 | E24: =LEFT(CLT[[#This Row],[Layers (code)]],1) -> 7 | F24: 7 | G24: 200mm-7- 20 40 20 40 20 40 20 | I24: 20 | J24: 40 | K24: 20 | L24: 40 | M24: 20 | N24: 40 | O24: 20 | R24: 20402040204020
C25: HASSLACHER | D25: =SUM(CLT[[#This Row],[9]:[9'']]) -> 210 | E25: =LEFT(CLT[[#This Row],[Layers (code)]],1) -> 7 | F25: 7 | G25: 210mm-7- 30 30 30 30 30 30 30 | I25: 30 | J25: 30 | K25: 30 | L25: 30 | M25: 30 | N25: 30 | O25: 30 | R25: 30303030303030
C26: HASSLACHER | D26: =SUM(CLT[[#This Row],[9]:[9'']]) -> 210 | E26: =LEFT(CLT[[#This Row],[Layers (code)]],1) -> 7 | F26: 7s | G26: 210mm-7s- 60 30 30 30 60 | J26: 60 | K26: 30 | L26: 30 | M26: 30 | N26: 60 | R26: 6030303060
C27: BINDER | D27: =SUM(CLT[[#This Row],[9]:[9'']]) -> 220 | E27: =LEFT(CLT[[#This Row],[Layers (code)]],1) -> 5 | F27: 5 | G27: 220mm-5- 60 30 40 30 60 | J27: 60 | K27: 30 | L27: 40 | M27: 30 | N27: 60 | R27: 6030403060
C28: HASSLACHER | D28: =SUM(CLT[[#This Row],[9]:[9'']]) -> 220 | E28: =LEFT(CLT[[#This Row],[Layers (code)]],1) -> 7 | F28: 7 | G28: 220mm-7- 40 40 20 20 20 40 40 | I28: 40 | J28: 40 | K28: 20 | L28: 20 | M28: 20 | N28: 40 | O28: 40 | R28: 40402020204040
C29: KLH | D29: =SUM(CLT[[#This Row],[9]:[9'']]) -> 220 | E29: =LEFT(CLT[[#This Row],[Layers (code)]],1) -> 7 | F29: 7 | G29: 220mm-7- 30 40 30 20 30 40 30 | I29: 30 | J29: 40 | K29: 30 | L29: 20 | M29: 30 | N29: 40 | O29: 30 | R29: 30403020304030
C30: KLH | D30: =SUM(CLT[[#This Row],[9]:[9'']]) -> 220 | E30: =LEFT(CLT[[#This Row],[Layers (code)]],1) -> 7 | F30: 7s | G30: 220mm-7s- 80 20 20 20 80 | J30: 80 | K30: 20 | L30: 20 | M30: 20 | N30: 80 | R30: 8020202080
C31: MM | D31: =SUM(CLT[[#This Row],[9]:[9'']]) -> 220 | E31: =LEFT(CLT[[#This Row],[Layers (code)]],1) -> 7 | F31: 7 | G31: 220mm-7- 40 20 40 20 40 20 40 | I31: 40 | J31: 20 | K31: 40 | L31: 20 | M31: 40 | N31: 20 | O31: 40 | R31: 40204020402040
C32: HASSLACHER | D32: =SUM(CLT[[#This Row],[9]:[9'']]) -> 240 | E32: =LEFT(CLT[[#This Row],[Layers (code)]],1) -> 7 | F32: 7 | G32: 240mm-7- 40 40 20 40 20 40 40 | I32: 40 | J32: 40 | K32: 20 | L32: 40 | M32: 20 | N32: 40 | O32: 40 | R32: 40402040204040
C33: KLH | D33: =SUM(CLT[[#This Row],[9]:[9'']]) -> 240 | E33: =LEFT(CLT[[#This Row],[Layers (code)]],1) -> 7 | F33: 7 | G33: 240mm-7- 30 40 30 40 30 40 30 | I33: 30 | J33: 40 | K33: 30 | L33: 40 | M33: 30 | N33: 40 | O33: 30 | R33: 30403040304030
C34: MM | D34: =SUM(CLT[[#This Row],[9]:[9'']]) -> 240 | E34: =LEFT(CLT[[#This Row],[Layers (code)]],1) -> 7 | F34: 7 | G34: 240mm-7- 40 20 40 40 40 20 40 | I34: 40 | J34: 20 | K34: 40 | L34: 40 | M34: 40 | N34: 20 | O34: 40 | R34: 40204040402040
C35: MM | D35: =SUM(CLT[[#This Row],[9]:[9'']]) -> 240 | E35: =LEFT(CLT[[#This Row],[Layers (code)]],1) -> 7 | F35: 7s | G35: 240mm-7s- 80 20 40 20 80 | J35: 80 | K35: 20 | L35: 40 | M35: 20 | N35: 80 | R35: 8020402080
C36: XLAM DOLOMITI | D36: =SUM(CLT[[#This Row],[9]:[9'']]) -> 252 | E36: =LEFT(CLT[[#This Row],[Layers (code)]],1) -> 7 | F36: 7 | G36: 252mm-7- 33 40 33 40 33 40 33 | I36: 33 | J36: 40 | K36: 33 | L36: 40 | M36: 33 | N36: 40 | O36: 33 | R36: 33403340334033
C37: BINDER | D37: =SUM(CLT[[#This Row],[9]:[9'']]) -> 260 | E37: =LEFT(CLT[[#This Row],[Layers (code)]],1) -> 5 | F37: 5 | G37: 260mm-5- 80 30 40 30 80 | J37: 80 | K37: 30 | L37: 40 | M37: 30 | N37: 80 | R37: 8030403080
C38: HASSLACHER | D38: =SUM(CLT[[#This Row],[9]:[9'']]) -> 260 | E38: =LEFT(CLT[[#This Row],[Layers (code)]],1) -> 7 | F38: 7 | G38: 260mm-7- 40 40 30 40 30 40 40 | I38: 40 | J38: 40 | K38: 30 | L38: 40 | M38: 30 | N38: 40 | O38: 40 | R38: 40403040304040
C39: HASSLACHER | D39: =SUM(CLT[[#This Row],[9]:[9'']]) -> 260 | E39: =LEFT(CLT[[#This Row],[Layers (code)]],1) -> 7 | F39: 7s | G39: 260mm-7s- 80 30 40 30 80 | J39: 80 | K39: 30 | L39: 40 | M39: 30 | N39: 80 | R39: 8030403080
C40: HASSLACHER | D40: =SUM(CLT[[#This Row],[9]:[9'']]) -> 280 | E40: =LEFT(CLT[[#This Row],[Layers (code)]],1) -> 7 | F40: 7 | G40: 280mm-7- 40 40 40 40 40 40 40 | I40: 40 | J40: 40 | K40: 40 | L40: 40 | M40: 40 | N40: 40 | O40: 40 | R40: 40404040404040
C41: MM | D41: =SUM(CLT[[#This Row],[9]:[9'']]) -> 280 | E41: =LEFT(CLT[[#This Row],[Layers (code)]],1) -> 7 | F41: 7s | G41: 280mm-7s- 80 40 40 40 80 | J41: 80 | K41: 40 | L41: 40 | M41: 40 | N41: 80 | R41: 8040404080
C42: XLAM DOLOMITI | D42: =SUM(CLT[[#This Row],[9]:[9'']]) -> 297 | E42: =LEFT(CLT[[#This Row],[Layers (code)]],1) -> 9 | F42: 9 | G42: 297mm-9-33 33 33 33 33 33 33 33 33 | H42: 33 | I42: 33 | J42: 33 | K42: 33 | L42: 33 | M42: 33 | N42: 33 | O42: 33 | P42: 33 | R42: 333333333333333333
C43: HASSLACHER | D43: =SUM(CLT[[#This Row],[9]:[9'']]) -> 410 | E43: =LEFT(CLT[[#This Row],[Layers (code)]],1) -> 8 | F43: 8s | G43: 410mm-8s-80 30 80 30 80 30 80 | H43: 80 | I43: 30 | J43: =N43 -> 80 | K43: =M43 -> 30 | L43: 80 | M43: 30 | N43: 80 | R43: 80308030803080
C44: MM | D44: =SUM(CLT[[#This Row],[9]:[9'']]) -> 300 | E44: =LEFT(CLT[[#This Row],[Layers (code)]],1) -> 9 | F44: 9s | G44: 300mm-9s- 80 20 40 20 40 20 80 | I44: 80 | J44: 20 | K44: 40 | L44: 20 | M44: 40 | N44: 20 | O44: 80 | R44: 80204020402080
C45: PIVETEAU | D45: =SUM(CLT[[#This Row],[9]:[9'']]) -> 320 | E45: =LEFT(CLT[[#This Row],[Layers (code)]],1) -> 9 | F45: 9 | G45: 320mm-9-40 30 40 30 40 30 40 30 40 | H45: 40 | I45: 30 | J45: 40 | K45: 30 | L45: 40 | M45: 30 | N45: 40 | O45: 30 | P45: 40 | R45: 403040304030403040
C46: PIVETEAU | D46: =SUM(CLT[[#This Row],[9]:[9'']]) -> 340 | E46: =LEFT(CLT[[#This Row],[Layers (code)]],1) -> 9 | F46: 9 | G46: 340mm-9-40 40 40 30 40 30 40 40 40 | H46: 40 | I46: 40 | J46: 40 | K46: 30 | L46: 40 | M46: 30 | N46: 40 | O46: 40 | P46: 40 | R46: 404040304030404040
C47: PIVETEAU | D47: =SUM(CLT[[#This Row],[9]:[9'']]) -> 360 | E47: =LEFT(CLT[[#This Row],[Layers (code)]],1) -> 9 | F47: 9 | G47: 360mm-9-40 40 40 40 40 40 40 40 40 | H47: 40 | I47: 40 | J47: 40 | K47: 40 | L47: 40 | M47: 40 | N47: 40 | O47: 40 | P47: 40 | R47: 404040404040404040
E48: =LEFT(CLT[[#This Row],[Layers (code)]],1) ->  | G48: USER DEFINED | K48: 30 | L48: 20 | M48: 30

Sheet Dati (hidden)
A2: Tipo legno secondo EN338:2016, UNIEN14080:2013
A3: Classe | B3: fm,k | C3: ft,0,k | D3: ft,90,k | E3: fc,0,k | F3: fc,90,k | G3: fv,k | H3: fr,k | I3: E0,mean | J3: E0,05 | K3: E90,mean | L3: E90,05 | M3: Gmean | N3: G05 | O3: Gr,mean | P3: Gr,05 | Q3: ρk | R3: ρmean | S3: γM
A4: GL20h - UNI EN14080:2013 | B4: 20 | C4: 16 | D4: 0.5 | E4: 20 | F4: 2.5 | G4: 3.5 | H4: 1.2 | I4: 8400 | J4: 7000 | K4: 300 | L4: 250 | M4: 650 | N4: 540 | O4: 65 | P4: 54 | Q4: 340 | R4: 370 | S4: =IF(LEFT(TimberType[[#This Row],[Classe]])="GL",IF(Input!$I$5=RefText_DB!$B$4,1.25,1.45),IF(Input!$I$5=RefText_DB!$B$4,1.3,1.5)) -> 1.3
A5: GL22h - UNI EN14080:2013 | B5: 22 | C5: 17.6 | D5: 0.5 | E5: 22 | F5: 2.5 | G5: 3.5 | H5: 1.2 | I5: 10500 | J5: 8800 | K5: 300 | L5: 250 | M5: 650 | N5: 540 | O5: 65 | P5: 54 | Q5: 370 | R5: 410 | S5: =IF(LEFT(TimberType[[#This Row],[Classe]])="GL",IF(Input!$I$5=RefText_DB!$B$4,1.25,1.45),IF(Input!$I$5=RefText_DB!$B$4,1.3,1.5)) -> 1.3
A6: GL24h - UNI EN14080:2013 | B6: 24 | C6: 19.2 | D6: 0.5 | E6: 24 | F6: 2.5 | G6: 3.5 | H6: 1.2 | I6: 11500 | J6: 9600 | K6: 300 | L6: 250 | M6: 650 | N6: 540 | O6: 65 | P6: 54 | Q6: 385 | R6: 420 | S6: =IF(LEFT(TimberType[[#This Row],[Classe]])="GL",IF(Input!$I$5=RefText_DB!$B$4,1.25,1.45),IF(Input!$I$5=RefText_DB!$B$4,1.3,1.5)) -> 1.3
A7: GL26h - UNI EN14080:2013 | B7: 26 | C7: 20.8 | D7: 0.5 | E7: 26 | F7: 2.5 | G7: 3.5 | H7: 1.2 | I7: 12100 | J7: 10100 | K7: 300 | L7: 250 | M7: 650 | N7: 540 | O7: 65 | P7: 54 | Q7: 405 | R7: 445 | S7: =IF(LEFT(TimberType[[#This Row],[Classe]])="GL",IF(Input!$I$5=RefText_DB!$B$4,1.25,1.45),IF(Input!$I$5=RefText_DB!$B$4,1.3,1.5)) -> 1.3
A8: GL28h - UNI EN14080:2013 | B8: 28 | C8: 22.3 | D8: 0.5 | E8: 28 | F8: 2.5 | G8: 3.5 | H8: 1.2 | I8: 12600 | J8: 10500 | K8: 300 | L8: 250 | M8: 650 | N8: 540 | O8: 65 | P8: 54 | Q8: 425 | R8: 460 | S8: =IF(LEFT(TimberType[[#This Row],[Classe]])="GL",IF(Input!$I$5=RefText_DB!$B$4,1.25,1.45),IF(Input!$I$5=RefText_DB!$B$4,1.3,1.5)) -> 1.3
A9: GL30h - UNI EN14080:2013 | B9: 30 | C9: 24 | D9: 0.5 | E9: 30 | F9: 2.5 | G9: 3.5 | H9: 1.2 | I9: 13600 | J9: 11300 | K9: 300 | L9: 250 | M9: 650 | N9: 540 | O9: 65 | P9: 54 | Q9: 430 | R9: 480 | S9: =IF(LEFT(TimberType[[#This Row],[Classe]])="GL",IF(Input!$I$5=RefText_DB!$B$4,1.25,1.45),IF(Input!$I$5=RefText_DB!$B$4,1.3,1.5)) -> 1.3
A10: GL32h - UNI EN14080:2013 | B10: 32 | C10: 25.6 | D10: 0.5 | E10: 32 | F10: 2.5 | G10: 3.5 | H10: 1.2 | I10: 14200 | J10: 11800 | K10: 300 | L10: 250 | M10: 650 | N10: 540 | O10: 65 | P10: 54 | Q10: 440 | R10: 490 | S10: =IF(LEFT(TimberType[[#This Row],[Classe]])="GL",IF(Input!$I$5=RefText_DB!$B$4,1.25,1.45),IF(Input!$I$5=RefText_DB!$B$4,1.3,1.5)) -> 1.3
A11: GL20c - UNI EN14080:2013 | B11: 20 | C11: 15 | D11: 0.5 | E11: 18.5 | F11: 2.5 | G11: 3.5 | H11: 1.2 | I11: 10400 | J11: 8600 | K11: 300 | L11: 250 | M11: 650 | N11: 540 | O11: 65 | P11: 54 | Q11: 355 | R11: 390 | S11: =IF(LEFT(TimberType[[#This Row],[Classe]])="GL",IF(Input!$I$5=RefText_DB!$B$4,1.25,1.45),IF(Input!$I$5=RefText_DB!$B$4,1.3,1.5)) -> 1.3
A12: GL22c - UNI EN14080:2013 | B12: 22 | C12: 16 | D12: 0.5 | E12: 20 | F12: 2.5 | G12: 3.5 | H12: 1.2 | I12: 10400 | J12: 8600 | K12: 300 | L12: 250 | M12: 650 | N12: 540 | O12: 65 | P12: 54 | Q12: 355 | R12: 390 | S12: =IF(LEFT(TimberType[[#This Row],[Classe]])="GL",IF(Input!$I$5=RefText_DB!$B$4,1.25,1.45),IF(Input!$I$5=RefText_DB!$B$4,1.3,1.5)) -> 1.3
A13: GL24c - UNI EN14080:2013 | B13: 24 | C13: 17 | D13: 0.5 | E13: 21.5 | F13: 2.5 | G13: 3.5 | H13: 1.2 | I13: 11000 | J13: 9100 | K13: 300 | L13: 250 | M13: 650 | N13: 540 | O13: 65 | P13: 54 | Q13: 365 | R13: 400 | S13: =IF(LEFT(TimberType[[#This Row],[Classe]])="GL",IF(Input!$I$5=RefText_DB!$B$4,1.25,1.45),IF(Input!$I$5=RefText_DB!$B$4,1.3,1.5)) -> 1.3
A14: GL26c - UNI EN14080:2013 | B14: 26 | C14: 19 | D14: 0.5 | E14: 23.5 | F14: 2.5 | G14: 3.5 | H14: 1.2 | I14: 12000 | J14: 10000 | K14: 300 | L14: 250 | M14: 650 | N14: 540 | O14: 65 | P14: 54 | Q14: 385 | R14: 420 | S14: =IF(LEFT(TimberType[[#This Row],[Classe]])="GL",IF(Input!$I$5=RefText_DB!$B$4,1.25,1.45),IF(Input!$I$5=RefText_DB!$B$4,1.3,1.5)) -> 1.3
A15: GL28c - UNI EN14080:2013 | B15: 28 | C15: 19.5 | D15: 0.5 | E15: 24 | F15: 2.5 | G15: 3.5 | H15: 1.2 | I15: 12500 | J15: 10400 | K15: 300 | L15: 250 | M15: 650 | N15: 540 | O15: 65 | P15: 54 | Q15: 390 | R15: 420 | S15: =IF(LEFT(TimberType[[#This Row],[Classe]])="GL",IF(Input!$I$5=RefText_DB!$B$4,1.25,1.45),IF(Input!$I$5=RefText_DB!$B$4,1.3,1.5)) -> 1.3
A16: GL30c - UNI EN14080:2013 | B16: 30 | C16: 19.5 | D16: 0.5 | E16: 24.5 | F16: 2.5 | G16: 3.5 | H16: 1.2 | I16: 13000 | J16: 10800 | K16: 300 | L16: 250 | M16: 650 | N16: 540 | O16: 65 | P16: 54 | Q16: 390 | R16: 430 | S16: =IF(LEFT(TimberType[[#This Row],[Classe]])="GL",IF(Input!$I$5=RefText_DB!$B$4,1.25,1.45),IF(Input!$I$5=RefText_DB!$B$4,1.3,1.5)) -> 1.3
A17: GL32c - UNI EN14080:2013 | B17: 32 | C17: 19.5 | D17: 0.5 | E17: 24.5 | F17: 2.5 | G17: 3.5 | H17: 1.2 | I17: 13500 | J17: 11200 | K17: 300 | L17: 250 | M17: 650 | N17: 540 | O17: 65 | P17: 54 | Q17: 400 | R17: 440 | S17: =IF(LEFT(TimberType[[#This Row],[Classe]])="GL",IF(Input!$I$5=RefText_DB!$B$4,1.25,1.45),IF(Input!$I$5=RefText_DB!$B$4,1.3,1.5)) -> 1.3
A18: C18 - EN338:2016 | B18: 18 | C18: 10 | D18: 0.4 | E18: 18 | F18: 2.2 | G18: 3.4 | H18: 1.2 | I18: 9000 | J18: 6000 | M18: 560 | Q18: 320 | R18: 380 | S18: =IF(LEFT(TimberType[[#This Row],[Classe]])="GL",IF(Input!$I$5=RefText_DB!$B$4,1.25,1.45),IF(Input!$I$5=RefText_DB!$B$4,1.3,1.5)) -> 1.3
A19: C20 - EN338:2016 | B19: 20 | C19: 11.5 | D19: 0.4 | E19: 19 | F19: 2.3 | G19: 3.6 | H19: 1.2 | I19: 9500 | J19: 6400 | M19: 590 | Q19: 330 | R19: 400 | S19: =IF(LEFT(TimberType[[#This Row],[Classe]])="GL",IF(Input!$I$5=RefText_DB!$B$4,1.25,1.45),IF(Input!$I$5=RefText_DB!$B$4,1.3,1.5)) -> 1.3
A20: C22 - EN338:2016 | B20: 22 | C20: 13 | D20: 0.4 | E20: 20 | F20: 2.4 | G20: 3.8 | H20: 1.2 | I20: 10000 | J20: 6700 | M20: 630 | Q20: 340 | R20: 410 | S20: =IF(LEFT(TimberType[[#This Row],[Classe]])="GL",IF(Input!$I$5=RefText_DB!$B$4,1.25,1.45),IF(Input!$I$5=RefText_DB!$B$4,1.3,1.5)) -> 1.3
A21: C24 - EN338:2016 | B21: 24 | C21: 14.5 | D21: 0.4 | E21: 21 | F21: 2.5 | G21: 4 | H21: 1.2 | I21: 11000 | J21: 7400 | K21: 370 | M21: 690 | Q21: 350 | R21: 420 | S21: =IF(LEFT(TimberType[[#This Row],[Classe]])="GL",IF(Input!$I$5=RefText_DB!$B$4,1.25,1.45),IF(Input!$I$5=RefText_DB!$B$4,1.3,1.5)) -> 1.3
A22: C27 - EN338:2016 | B22: 27 | C22: 16.5 | D22: 0.4 | E22: 22 | F22: 2.5 | G22: 4 | H22: 1.2 | I22: 11500 | J22: 7700 | M22: 720 | Q22: 360 | R22: 430 | S22: =IF(LEFT(TimberType[[#This Row],[Classe]])="GL",IF(Input!$I$5=RefText_DB!$B$4,1.25,1.45),IF(Input!$I$5=RefText_DB!$B$4,1.3,1.5)) -> 1.3
A23: C30 - EN338:2016 | B23: 30 | C23: 19 | D23: 0.4 | E23: 24 | F23: 2.7 | G23: 4 | H23: 1.2 | I23: 12000 | J23: 8000 | K23: 400 | M23: 750 | Q23: 380 | R23: 460 | S23: =IF(LEFT(TimberType[[#This Row],[Classe]])="GL",IF(Input!$I$5=RefText_DB!$B$4,1.25,1.45),IF(Input!$I$5=RefText_DB!$B$4,1.3,1.5)) -> 1.3
A24: D24 - EN338:2016 | B24: 24 | C24: 14 | D24: 0.6 | E24: 21 | F24: 4.9 | G24: 3.7 | H24: 1.2 | I24: 10000 | J24: 8400 | M24: 630 | Q24: 485 | R24: 580 | S24: =IF(LEFT(TimberType[[#This Row],[Classe]])="GL",IF(Input!$I$5=RefText_DB!$B$4,1.25,1.45),IF(Input!$I$5=RefText_DB!$B$4,1.3,1.5)) -> 1.3
A25: D30 - EN338:2016 | B25: 30 | C25: 18 | D25: 0.6 | E25: 24 | F25: 5.3 | G25: 3.9 | H25: 1.2 | I25: 11000 | J25: 9200 | M25: 690 | Q25: 530 | R25: 640 | S25: =IF(LEFT(TimberType[[#This Row],[Classe]])="GL",IF(Input!$I$5=RefText_DB!$B$4,1.25,1.45),IF(Input!$I$5=RefText_DB!$B$4,1.3,1.5)) -> 1.3
A26: UNI - Castagno S | B26: 28 | C26: 17 | D26: 0.5 | E26: 22 | F26: 3.8 | G26: 2 | H26: 1.2 | I26: 11000 | J26: 8000 | M26: 950 | Q26: 465 | R26: 550 | S26: =IF(LEFT(TimberType[[#This Row],[Classe]])="GL",IF(Input!$I$5=RefText_DB!$B$4,1.25,1.45),IF(Input!$I$5=RefText_DB!$B$4,1.3,1.5)) -> 1.3
A27: UNI - Querce cad. S | B27: 42 | C27: 25 | D27: 0.8 | E27: 27 | F27: 5.7 | G27: 4 | H27: 1.2 | I27: 12000 | J27: 10100 | M27: 750 | Q27: 760 | R27: 825 | S27: =IF(LEFT(TimberType[[#This Row],[Classe]])="GL",IF(Input!$I$5=RefText_DB!$B$4,1.25,1.45),IF(Input!$I$5=RefText_DB!$B$4,1.3,1.5)) -> 1.3
A28: UNI - Pioppo Ontano S | B28: 26 | C28: 16 | D28: 0.4 | E28: 22 | F28: 3.2 | G28: 2.7 | H28: 1.2 | I28: 8000 | J28: 6700 | M28: 500 | Q28: 420 | R28: 460 | S28: =IF(LEFT(TimberType[[#This Row],[Classe]])="GL",IF(Input!$I$5=RefText_DB!$B$4,1.25,1.45),IF(Input!$I$5=RefText_DB!$B$4,1.3,1.5)) -> 1.3
A29: UNI - Altre latifoglie S | B29: 27 | C29: 16 | D29: 0.5 | E29: 22 | F29: 3.9 | G29: 2 | H29: 1.2 | I29: 11500 | J29: 8400 | M29: 720 | Q29: 515 | R29: 560 | S29: =IF(LEFT(TimberType[[#This Row],[Classe]])="GL",IF(Input!$I$5=RefText_DB!$B$4,1.25,1.45),IF(Input!$I$5=RefText_DB!$B$4,1.3,1.5)) -> 1.3
A30: UNI - Abete Nord S1 | B30: 29 | C30: 17 | D30: 0.4 | E30: 23 | F30: 2.9 | G30: 3 | H30: 1.2 | I30: 12000 | J30: 8000 | M30: 750 | Q30: 380 | R30: 415 | S30: =IF(LEFT(TimberType[[#This Row],[Classe]])="GL",IF(Input!$I$5=RefText_DB!$B$4,1.25,1.45),IF(Input!$I$5=RefText_DB!$B$4,1.3,1.5)) -> 1.3
A31: UNI - Abete Nord S2 | B31: 23 | C31: 14 | D31: 0.4 | E31: 20 | F31: 2.9 | G31: 2.5 | H31: 1.2 | I31: 10500 | J31: 7000 | M31: 660 | Q31: 380 | R31: 415 | S31: =IF(LEFT(TimberType[[#This Row],[Classe]])="GL",IF(Input!$I$5=RefText_DB!$B$4,1.25,1.45),IF(Input!$I$5=RefText_DB!$B$4,1.3,1.5)) -> 1.3
A32: UNI - Abete Nord S3 | B32: 17 | C32: 10 | D32: 0.4 | E32: 18 | F32: 2.9 | G32: 1.9 | H32: 1.2 | I32: 9500 | J32: 6400 | M32: 590 | Q32: 380 | R32: 415 | S32: =IF(LEFT(TimberType[[#This Row],[Classe]])="GL",IF(Input!$I$5=RefText_DB!$B$4,1.25,1.45),IF(Input!$I$5=RefText_DB!$B$4,1.3,1.5)) -> 1.3
A33: UNI - Abete Centro-Sud S1 | B33: 32 | C33: 19 | D33: 0.3 | E33: 24 | F33: 2.1 | G33: 3.2 | H33: 1.2 | I33: 11000 | J33: 7400 | M33: 690 | Q33: 280 | R33: 305 | S33: =IF(LEFT(TimberType[[#This Row],[Classe]])="GL",IF(Input!$I$5=RefText_DB!$B$4,1.25,1.45),IF(Input!$I$5=RefText_DB!$B$4,1.3,1.5)) -> 1.3
A34: UNI - Abete Centro-Sud S2 | B34: 28 | C34: 17 | D34: 0.3 | E34: 22 | F34: 2.1 | G34: 2.9 | H34: 1.2 | I34: 10000 | J34: 6700 | M34: 630 | Q34: 280 | R34: 305 | S34: =IF(LEFT(TimberType[[#This Row],[Classe]])="GL",IF(Input!$I$5=RefText_DB!$B$4,1.25,1.45),IF(Input!$I$5=RefText_DB!$B$4,1.3,1.5)) -> 1.3
A35: UNI - Abete Centro-Sud S3 | B35: 21 | C35: 13 | D35: 0.3 | E35: 20 | F35: 2.1 | G35: 2.3 | H35: 1.2 | I35: 9500 | J35: 6400 | M35: 590 | Q35: 280 | R35: 305 | S35: =IF(LEFT(TimberType[[#This Row],[Classe]])="GL",IF(Input!$I$5=RefText_DB!$B$4,1.25,1.45),IF(Input!$I$5=RefText_DB!$B$4,1.3,1.5)) -> 1.3
A36: UNI - Larice S1 | B36: 42 | C36: 25 | D36: 0.6 | E36: 27 | F36: 4 | G36: 4 | H36: 1.2 | I36: 13000 | J36: 8700 | M36: 810 | Q36: 550 | R36: 600 | S36: =IF(LEFT(TimberType[[#This Row],[Classe]])="GL",IF(Input!$I$5=RefText_DB!$B$4,1.25,1.45),IF(Input!$I$5=RefText_DB!$B$4,1.3,1.5)) -> 1.3
A37: UNI - Larice S2 | B37: 32 | C37: 19 | D37: 0.6 | E37: 24 | F37: 4 | G37: 3.2 | H37: 1.2 | I37: 12000 | J37: 8000 | M37: 750 | Q37: 550 | R37: 600 | S37: =IF(LEFT(TimberType[[#This Row],[Classe]])="GL",IF(Input!$I$5=RefText_DB!$B$4,1.25,1.45),IF(Input!$I$5=RefText_DB!$B$4,1.3,1.5)) -> 1.3
A38: UNI - Larice S3 | B38: 26 | C38: 16 | D38: 0.6 | E38: 22 | F38: 4 | G38: 2.7 | H38: 1.2 | I38: 11500 | J38: 7700 | M38: 720 | Q38: 550 | R38: 600 | S38: =IF(LEFT(TimberType[[#This Row],[Classe]])="GL",IF(Input!$I$5=RefText_DB!$B$4,1.25,1.45),IF(Input!$I$5=RefText_DB!$B$4,1.3,1.5)) -> 1.3
A39: UNI - Douglasia S1 | B39: 40 | C39: 24 | D39: 0.4 | E39: 26 | F39: 2.6 | G39: 4 | H39: 1.2 | I39: 14000 | J39: 9400 | M39: 880 | Q39: 400 | R39: 435 | S39: =IF(LEFT(TimberType[[#This Row],[Classe]])="GL",IF(Input!$I$5=RefText_DB!$B$4,1.25,1.45),IF(Input!$I$5=RefText_DB!$B$4,1.3,1.5)) -> 1.3
A40: UNI - Douglasia S2/3 | B40: 23 | C40: 14 | D40: 0.4 | E40: 20 | F40: 2.6 | G40: 3.4 | H40: 1.2 | I40: 12500 | J40: 8400 | M40: 780 | Q40: 420 | R40: 455 | S40: =IF(LEFT(TimberType[[#This Row],[Classe]])="GL",IF(Input!$I$5=RefText_DB!$B$4,1.25,1.45),IF(Input!$I$5=RefText_DB!$B$4,1.3,1.5)) -> 1.3
A41: UNI - Altre conifere S1 | B41: 33 | C41: 20 | D41: 0.5 | E41: 24 | F41: 4 | G41: 3.3 | H41: 1.2 | I41: 12300 | J41: 8200 | M41: 770 | Q41: 530 | R41: 575 | S41: =IF(LEFT(TimberType[[#This Row],[Classe]])="GL",IF(Input!$I$5=RefText_DB!$B$4,1.25,1.45),IF(Input!$I$5=RefText_DB!$B$4,1.3,1.5)) -> 1.3
A42: UNI - Altre conifere S2 | B42: 26 | C42: 16 | D42: 0.5 | E42: 22 | F42: 4 | G42: 2.7 | H42: 1.2 | I42: 11400 | J42: 7600 | M42: 710 | Q42: 530 | R42: 575 | S42: =IF(LEFT(TimberType[[#This Row],[Classe]])="GL",IF(Input!$I$5=RefText_DB!$B$4,1.25,1.45),IF(Input!$I$5=RefText_DB!$B$4,1.3,1.5)) -> 1.3
A43: UNI - Altre conifere S3 | B43: 22 | C43: 13 | D43: 0.5 | E43: 20 | F43: 4 | G43: 2.4 | H43: 1.2 | I43: 10500 | J43: 7000 | M43: 660 | Q43: 530 | R43: 575 | S43: =IF(LEFT(TimberType[[#This Row],[Classe]])="GL",IF(Input!$I$5=RefText_DB!$B$4,1.25,1.45),IF(Input!$I$5=RefText_DB!$B$4,1.3,1.5)) -> 1.3
A45: sovraccarico variabile (a tendina)
B46: valore kN/m2 | C46: y2 (compare nella finestra parametri)
A47: A: ambienti ad uso residenziale | B47: 2 | C47: 0.3 | D47: 1
A48: B1: uffici non aperti al pubblico | B48: 2 | C48: 0.3 | D48: 2
A49: B2: uffici aperti al pubblico | B49: 3 | C49: 0.3 | D49: 3
A50: C1: ospedali, ristoranti, caffè, scuole | B50: 3 | C50: 0.6 | D50: 4
A51: C2: balconi, ballatoi, scale, cinema, teatri | B51: 4 | C51: 0.6 | D51: 5
A52: C3: musei, sale da ballo, stazioni | B52: 5 | C52: 0.6 | D52: 6
A53: D1: negozi | B53: 4 | C53: 0.6 | D53: 7
A54: D2: centri commerciali | B54: 5 | C54: 0.6 | D54: 8
A55: E1: Biblioteche, archivi, magazzini | B55: 6 | C55: 0.8 | D55: 9
A56: F: rimesse e parcheggi (max 30 kN) | B56: 2.5 | C56: 0.6 | D56: 10
A57: H1: Coperture e sottotetti non accessibili | B57: 0.5 | C57: 0 | D57: 11
A59: Valori di kmod
I62: CS | J62: Permanent | K62: Long term | L62: Medium term | M62: Short term | N62: Istantaneous
I63: 1 | J63: =IF(Input!$I$5="UNI EN 1995:2015",0.6,0.6) -> 0.6 | K63: =IF(Input!$I$5="UNI EN 1995:2015",0.7,0.7) -> 0.7 | L63: =IF(Input!$I$5="UNI EN 1995:2015",0.8,0.8) -> 0.8 | M63: =IF(Input!$I$5="UNI EN 1995:2015",0.9,0.9) -> 0.9 | N63: =IF(Input!$I$5="UNI EN 1995:2015",1.1,1.1) -> 1.1
I64: 2 | J64: =IF(Input!$I$5="UNI EN 1995:2015",0.6,0.6) -> 0.6 | K64: =IF(Input!$I$5="UNI EN 1995:2015",0.7,0.7) -> 0.7 | L64: =IF(Input!$I$5="UNI EN 1995:2015",0.8,0.8) -> 0.8 | M64: =IF(Input!$I$5="UNI EN 1995:2015",0.9,0.9) -> 0.9 | N64: =IF(Input!$I$5="UNI EN 1995:2015",1.1,1.1) -> 1.1
I65: 3 | J65: =IF(Input!$I$5="UNI EN 1995:2015",0.5,0.5) -> 0.5 | K65: =IF(Input!$I$5="UNI EN 1995:2015",0.55,0.55) -> 0.55 | L65: =IF(Input!$I$5="UNI EN 1995:2015",0.65,0.65) -> 0.65 | M65: =IF(Input!$I$5="UNI EN 1995:2015",0.7,0.7) -> 0.7 | N65: =IF(Input!$I$5="UNI EN 1995:2015",0.9,0.9) -> 0.9
A67: Valori di kdef | I67: CS | J67: Quasi Permanenti
I68: 1 | J68: 0.69
I69: 2 | J69: 0.89
I70: 3 | J70: 2
I72: γ | J72: Description | K72: UNI EN 1995:2014 | L72: NTC2018
I73: γM | J73: Connections | K73: 1.3 | L73: 1.5
I74: γM,SLU,1 | K74: 1.25 | L74: 1.25 | M74: per CLT da EC5:2025
I75: γM,SLU,2 | K75: 1.25 | L75: 1.45
A76: Classe di durata del carico accidentale | I76: γM1 | K76: 1 | L76: 1.05 | M76: Instabilità
A77: Classe di durata | I77: γM,2 | K77: 1.25 | L77: 1.25 | M77: Sezione tesa
A78: =INDEX(LEN_IN[],14,MATCH(CONDITIONS!$E$3,Len_DB!$C$8:$H$8,0)+1) -> Load duration | B78: 1 | I78: γg | K78: 1.35 | L78: 1.35
A79: =INDEX(LEN_IN[],15,MATCH(CONDITIONS!$E$3,Len_DB!$C$8:$H$8,0)+1) -> Permanent | B79: 2 | I79: γq | K79: 1.5 | L79: 1.5
A80: =INDEX(LEN_IN[],16,MATCH(CONDITIONS!$E$3,Len_DB!$C$8:$H$8,0)+1) -> Long term | B80: 3
A81: =INDEX(LEN_IN[],17,MATCH(CONDITIONS!$E$3,Len_DB!$C$8:$H$8,0)+1) -> Medium term | B81: 4
A82: =INDEX(LEN_IN[],18,MATCH(CONDITIONS!$E$3,Len_DB!$C$8:$H$8,0)+1) -> Short term | B82: 5 | I82: Tipo pannello | J82: ρk
I83: Compensato finlandese | J83: 410 | K83: 1
I84: Compensato americano | J84: 410 | K84: 2
I85: Compensato canadese | J85: 420 | K85: 3
I86: Pannelli di particelle e OSB | J86: 550 | K86: 4
A89: Tipo sezione cambrette
A90: Tonda | B90: 1
A91: Rettangolare | B91: 2
A93: Tipo vite
A94: Diametro gambo liscio uguale a diametro esterno parte filettata | B94: 1
A95: Diametro esterno parte filettata > diametro gambo liscio | B95: 2
A97: Valori di kef (chiodi)
B98: no preforo | C98: si preforo
A99: a1 >=14d | B99: 1 | C99: 1 | D99: 1
A100: a1 = 10d | B100: 0.85 | C100: 0.85 | D100: 2
A101: a1 = 7d | B101: 0.7 | C101: 0.7 | D101: 3
A102: a1 = 4d | B102: - | C102: 0.5 | D102: 4
C105: no preforo
A106: DISTANZE MINIME | B106: modo 1 e 4 | C106: modo 2 e 5 | D106: Modo 3
D107: ρ<420 kg/m3 | E107: ρ>420 kg/m3
A108: a1 | B108: =5*#REF!/COS(#REF!) ->  | C108: =5*#REF! ->  | D108: =(5+7)*#REF! ->  | E108: =(7+8)*#REF! -> 
A109: a2 | C109: =5*#REF! ->  | D109: =5*#REF! ->  | E109: =5*#REF! -> 
A110: a1cg | C110: =10*#REF! -> 
A111: a2cg | C111: =4*#REF! -> 
A112: a4c | D112: =5*#REF! ->  | E112: =7*#REF! -> 
A113: a cross | B113: =1.5*#REF! -> 
B116: Modo 1 | C116: Modo 2 | D116: Modo 3 | E116: Modo 4 | F116: Modo 5
A117: Larghezza minima travetto | B117: =IF(AND(#REF!,#REF!<420),D112*2+B113,E112*2+B113) ->  | C117: =IF(AND(#REF!,#REF!<420),D112*2+IF(Input!#REF!=2,Dati!C109,0),E112*2+IF(Input!#REF!=2,Dati!C109,0)) ->  | D117: =IF(AND(#REF!,#REF!<420),D112*2+IF(Input!#REF!=2,Dati!D109,0),E112*2+IF(Input!#REF!=2,Dati!D109,0)) ->  | E117: =B117 ->  | F117: =C117 -> 
